date,department/service,beneficiary,amount,summary of purpose,category,transaction number,SAP vendor number
01.08.2021,ASSET MANAGEMENT,FRANKHAM CONSULTANCY GROUP LTD,"1,250.00",DISREPAIR,PROFESSIONAL FEES,5902479229,1000043952
01.08.2021,CHIEF EXECUTIVE,SYSTRA LTD,"22,451.00",CAPITAL PS (REGEN),CONSTRUCTION FEES  - EXTERNAL,5902479060,11305109
01.08.2021,HOUSING HRA,PJC CONSULTANCY LTD,550,CAPITAL PS (HRA),CONSTRUCTION FEES  - EXTERNAL,5902479609,1000077403
02.08.2021,COMMUNITIES,ROADWORKS MEDIA,"5,000.00",SOUTH,GRANTS,5902479556,1000081375
02.08.2021,COMMUNITIES HRA,LEATHERMARKET JMB HOUSING,"8,750.00",LEATHERMARKET CO-OP,M&M ALLOWANCE CO-OPS,5902479311,11182872
02.08.2021,CUSTOMER EXPERIENCE HGF,UBIQUS UK LTD,267.2,CORONER'S,PROFESSIONAL FEES,5902479493,1000058055
02.08.2021,CUSTOMER EXPERIENCE HGF,FORENSIC PATHOLOGY SERVICES,344.7,CORONER'S,PROFESSIONAL FEES,5902479348,1000086871
02.08.2021,CUSTOMER EXPERIENCE HGF,FORENSIC PATHOLOGY SERVICES,344.7,CORONER'S,PROFESSIONAL FEES,5902479349,1000086871
02.08.2021,EMPLOYEE EXPERIENCE,EMMA MARINOS COACHING LIMITED,"2,437.50",CONTRACT COSTS � NON R/C,CONSULTANTS SERVICES,5902479551,1000086554
02.08.2021,ENV & LEIS,CROWN OIL LTD,699.5,SANDGATE STREET,VEHICLE FUEL,5902479495,1000081749
02.08.2021,ENVIRONMENT DIRECTORATE,F M CONWAY LTD,"191,548.91",HIGHWAY MAINTENANCE OVERHEADS,HIGHWAYS TERM CONTRACT,2103297393,4001384
02.08.2021,F & C S EXCLUDING CORPORATE BUDGETS,EMS EVENTS LTD,"3,641.10",CONSTITUTIONAL TEAM,OP LEASE/HIRE CHARGES:PLANT/EQUIP/FURNIT,5902479425,1000057494
02.08.2021,F & C S EXCLUDING CORPORATE BUDGETS,REDACTED PERSONAL DATA,500,SESS,OTHER PAYMENTS FOR CLIENTS,REDACTED,REDACTED
02.08.2021,F & C S EXCLUDING CORPORATE BUDGETS,REDACTED PERSONAL DATA,500,SESS,OTHER PAYMENTS FOR CLIENTS,REDACTED,REDACTED
02.08.2021,F & C S EXCLUDING CORPORATE BUDGETS,REDACTED PERSONAL DATA,500,SESS,OTHER PAYMENTS FOR CLIENTS,REDACTED,REDACTED
02.08.2021,F & C S EXCLUDING CORPORATE BUDGETS,REDACTED PERSONAL DATA,500,SESS,OTHER PAYMENTS FOR CLIENTS,REDACTED,REDACTED
02.08.2021,F & C S EXCLUDING CORPORATE BUDGETS,REDACTED PERSONAL DATA,500,SESS,OTHER PAYMENTS FOR CLIENTS,REDACTED,REDACTED
02.08.2021,F & C S EXCLUDING CORPORATE BUDGETS,REDACTED PERSONAL DATA,500,SESS,OTHER PAYMENTS FOR CLIENTS,REDACTED,REDACTED
02.08.2021,F & C S EXCLUDING CORPORATE BUDGETS,REDACTED PERSONAL DATA,500,SESS,OTHER PAYMENTS FOR CLIENTS,REDACTED,REDACTED
02.08.2021,F & C S EXCLUDING CORPORATE BUDGETS,REDACTED PERSONAL DATA,500,SESS,OTHER PAYMENTS FOR CLIENTS,REDACTED,REDACTED
02.08.2021,F & C S EXCLUDING CORPORATE BUDGETS,REDACTED PERSONAL DATA,500,SESS,OTHER PAYMENTS FOR CLIENTS,REDACTED,REDACTED
02.08.2021,F & C S EXCLUDING CORPORATE BUDGETS,REDACTED PERSONAL DATA,500,SESS,OTHER PAYMENTS FOR CLIENTS,REDACTED,REDACTED
02.08.2021,F & C S EXCLUDING CORPORATE BUDGETS,REDACTED PERSONAL DATA,500,SESS,OTHER PAYMENTS FOR CLIENTS,REDACTED,REDACTED
02.08.2021,F & C S EXCLUDING CORPORATE BUDGETS,REDACTED PERSONAL DATA,500,SESS,OTHER PAYMENTS FOR CLIENTS,REDACTED,REDACTED
02.08.2021,HOUSING HRA,T BROWN GROUP  LTD,"73,000.22",CAPITAL PS (HRA),CONSTRUCTION,2103297388,3000000310
02.08.2021,HOUSING HRA,CALFORD SEADEN LLP,"2,450.00",CAPITAL PS (HRA),CONSTRUCTION FEES  - EXTERNAL,5902479257,1061592
02.08.2021,PUBLIC HEALTH,REDACTED PERSONAL DATA,500,COVID-19 CONTROL OUTBREAK MGMNT.FUND,OTHER PAYMENTS FOR CLIENTS,REDACTED,REDACTED
02.08.2021,RESIDENT SERVICES,BRIDGEWATER ROOFING CONTRACTORS LTD,"24,850.00",AYLESBURY,OTHER R&M,2103297407,3000001482
03.08.2021,ADULT SOCIAL CARE,WINDSOR WALK HOUSING ASSOCIATION,333.5,APPOINTEESHIPS,OTHER PAYMENTS FOR CLIENTS,2103301068,1012653
03.08.2021,ADULT SOCIAL CARE,CHOICE SUPPORT,400,APPOINTEESHIPS,OTHER PAYMENTS FOR CLIENTS,2103300994,1104183
03.08.2021,ADULT SOCIAL CARE,SOUTHSIDE PARTNERSHIP LTD,537.8,APPOINTEESHIPS,OTHER PAYMENTS FOR CLIENTS,2103301045,1716624
03.08.2021,ADULT SOCIAL CARE,SOUTHSIDE PARTNERSHIP LTD,537.8,APPOINTEESHIPS,OTHER PAYMENTS FOR CLIENTS,2103301046,1716624
03.08.2021,ADULT SOCIAL CARE,THAMES REACH,684.16,APPOINTEESHIPS,OTHER PAYMENTS FOR CLIENTS,2103301060,1723415
03.08.2021,ADULT SOCIAL CARE,PEABODY TRUST,554.44,APPOINTEESHIPS,OTHER PAYMENTS FOR CLIENTS,2103301037,11275862
03.08.2021,ADULT SOCIAL CARE,F A ALBIN AND SONS,"8,885.22",APPOINTEESHIPS,OTHER PAYMENTS FOR CLIENTS,2103301454,11313949
03.08.2021,ADULT SOCIAL CARE,EQUINOX CARE,600,APPOINTEESHIPS,OTHER PAYMENTS FOR CLIENTS,2103301004,11325422
03.08.2021,ADULT SOCIAL CARE,PLUS SERVICES,516,APPOINTEESHIPS,OTHER PAYMENTS FOR CLIENTS,2103301041,1000021241
03.08.2021,ADULT SOCIAL CARE,METROPOLITAN HOUSING TRUST LTD,534.95,APPOINTEESHIPS,OTHER PAYMENTS FOR CLIENTS,2103301029,1000047547
03.08.2021,ADULT SOCIAL CARE,GLEN CARE GROUP,300,APPOINTEESHIPS,OTHER PAYMENTS FOR CLIENTS,2103301006,1000050223
03.08.2021,ADULT SOCIAL CARE,AFFINITY SUTTON HOMES LTD,319.24,APPOINTEESHIPS,OTHER PAYMENTS FOR CLIENTS,2103300984,1000051647
03.08.2021,ADULT SOCIAL CARE,ST MUNGO'S ASSOCIATION,325.16,APPOINTEESHIPS,OTHER PAYMENTS FOR CLIENTS,2103301048,1000058785
03.08.2021,ADULT SOCIAL CARE,DINARDO SUPPORTS LTD,378.53,APPOINTEESHIPS,OTHER PAYMENTS FOR CLIENTS,2103301000,1000063093
03.08.2021,ADULT SOCIAL CARE,DINARDO SUPPORTS LTD,378.53,APPOINTEESHIPS,OTHER PAYMENTS FOR CLIENTS,2103301001,1000063093
03.08.2021,ADULT SOCIAL CARE,FOUNTAIN CARE LTD,344.4,APPOINTEESHIPS,OTHER PAYMENTS FOR CLIENTS,2103300974,1000066815
03.08.2021,ADULT SOCIAL CARE,LONDON CYRENIANS HOUSING LTD,600,APPOINTEESHIPS,OTHER PAYMENTS FOR CLIENTS,2103301021,1000078600
03.08.2021,ADULT SOCIAL CARE,ELIZABETH PETERS CARE HOMES LTD,280,APPOINTEESHIPS,OTHER PAYMENTS FOR CLIENTS,2103301002,1000078858
03.08.2021,ADULT SOCIAL CARE,POP INN CAFE,420,APPOINTEESHIPS,OTHER PAYMENTS FOR CLIENTS,2103301042,1000079353
03.08.2021,ADULT SOCIAL CARE,STRADA CARE LTD,560,APPOINTEESHIPS,OTHER PAYMENTS FOR CLIENTS,2103301050,1000082133
03.08.2021,ADULT SOCIAL CARE,HOUSE OF SHAN LTD,460,APPOINTEESHIPS,OTHER PAYMENTS FOR CLIENTS,2103301016,1000083169
03.08.2021,ADULT SOCIAL CARE,229 MITCHAM LANE LTD,420,APPOINTEESHIPS,OTHER PAYMENTS FOR CLIENTS,2103301062,1000083875
03.08.2021,ADULT SOCIAL CARE,CYGNET HEALTH CHURCHHILL HOSPITAL,420,APPOINTEESHIPS,OTHER PAYMENTS FOR CLIENTS,2103300996,1000085783
03.08.2021,ADULT SOCIAL CARE,RHP OUTREACH SERVICES LTD,452,APPOINTEESHIPS,OTHER PAYMENTS FOR CLIENTS,2103301043,1000086262
03.08.2021,ADULT SOCIAL CARE,SALISBURY SUPPORT 4 AUTISM LTD,900,APPOINTEESHIPS,OTHER PAYMENTS FOR CLIENTS,2103301044,1000086842
03.08.2021,ADULT SOCIAL CARE,REDACTED PERSONAL DATA,320,APPOINTEESHIPS,OTHER PAYMENTS FOR CLIENTS,REDACTED,REDACTED
03.08.2021,ADULT SOCIAL CARE,REDACTED PERSONAL DATA,260,APPOINTEESHIPS,OTHER PAYMENTS FOR CLIENTS,REDACTED,REDACTED
03.08.2021,ADULT SOCIAL CARE,REDACTED PERSONAL DATA,623.4,APPOINTEESHIPS,OTHER PAYMENTS FOR CLIENTS,REDACTED,REDACTED
03.08.2021,ADULT SOCIAL CARE,REDACTED PERSONAL DATA,520,APPOINTEESHIPS,OTHER PAYMENTS FOR CLIENTS,REDACTED,REDACTED
03.08.2021,ADULT SOCIAL CARE,REDACTED PERSONAL DATA,400,APPOINTEESHIPS,OTHER PAYMENTS FOR CLIENTS,REDACTED,REDACTED
03.08.2021,ADULT SOCIAL CARE,PEOPLE PLUS,"3,150.00",DIR OF ASC,EXTERNAL AGENCIES AND BODIES,5902479897,1000076642
03.08.2021,ADULT SOCIAL CARE,SWK DISABLEMENT ASSN,"1,209.13",DISCHARGE TO ACCESS,HOMECARE - SPOT,2103301260,1000011698
03.08.2021,ADULT SOCIAL CARE,LONDON CARE LTD,"53,353.13",EXTRA CARE CONTRACT,HOMECARE - C&V,5902479887,1000003398
03.08.2021,ADULT SOCIAL CARE,MEDACS HOMECARE,"1,024.34",LD LTS 18-64,HOMECARE - C&V,2103301376,11287415
03.08.2021,ADULT SOCIAL CARE,MEDACS HOMECARE,"1,343.12",LD LTS 18-64,HOMECARE - C&V,2103301396,11287415
03.08.2021,ADULT SOCIAL CARE,SWK DISABLEMENT ASSN,"1,141.76",LD LTS 18-64,HOMECARE - C&V,2103301270,1000011698
03.08.2021,ADULT SOCIAL CARE,SWEETTREE HOME CARE SERVICES LTD,460,LD LTS 18-64,HOMECARE - SPOT,2103301224,1000058171
03.08.2021,ADULT SOCIAL CARE,SWK DISABLEMENT ASSN,350.74,LD LTS 18-64,SUPPORTED LIVING,2103301258,1000011698
03.08.2021,ADULT SOCIAL CARE,SWK DISABLEMENT ASSN,369.2,LD LTS 18-64,SUPPORTED LIVING,2103301259,1000011698
03.08.2021,ADULT SOCIAL CARE,SWK DISABLEMENT ASSN,443.04,LD LTS 18-64,SUPPORTED LIVING,2103301257,1000011698
03.08.2021,ADULT SOCIAL CARE,SWK DISABLEMENT ASSN,443.04,LD LTS 18-64,SUPPORTED LIVING,2103301264,1000011698
03.08.2021,ADULT SOCIAL CARE,SWK DISABLEMENT ASSN,443.04,LD LTS 18-64,SUPPORTED LIVING,2103301268,1000011698
03.08.2021,ADULT SOCIAL CARE,SWK DISABLEMENT ASSN,590.72,LD LTS 18-64,SUPPORTED LIVING,2103301261,1000011698
03.08.2021,ADULT SOCIAL CARE,SWK DISABLEMENT ASSN,664.56,LD LTS 18-64,SUPPORTED LIVING,2103301298,1000011698
03.08.2021,ADULT SOCIAL CARE,SWK DISABLEMENT ASSN,"1,144.52",LD LTS 18-64,SUPPORTED LIVING,2103301241,1000011698
03.08.2021,ADULT SOCIAL CARE,SWK DISABLEMENT ASSN,"1,255.28",LD LTS 18-64,SUPPORTED LIVING,2103301263,1000011698
03.08.2021,ADULT SOCIAL CARE,SWEETTREE HOME CARE SERVICES LTD,400,LD LTS 65+,HOMECARE - C&V,2103301219,1000058171
03.08.2021,ADULT SOCIAL CARE,SWEETTREE HOME CARE SERVICES LTD,400,LD LTS 65+,HOMECARE - C&V,2103301226,1000058171
03.08.2021,ADULT SOCIAL CARE,SWEETTREE HOME CARE SERVICES LTD,"1,530.50",LD LTS 65+,HOMECARE - C&V,2103301221,1000058171
03.08.2021,ADULT SOCIAL CARE,SWEETTREE HOME CARE SERVICES LTD,"1,824.75",LD LTS 65+,HOMECARE - C&V,2103301220,1000058171
03.08.2021,ADULT SOCIAL CARE,SWEETTREE HOME CARE SERVICES LTD,499.56,LD LTS 65+,HOMECARE - SPOT,2103301218,1000058171
03.08.2021,ADULT SOCIAL CARE,SWEETTREE HOME CARE SERVICES LTD,499.56,LD LTS 65+,HOMECARE - SPOT,2103301222,1000058171
03.08.2021,ADULT SOCIAL CARE,SWEETTREE HOME CARE SERVICES LTD,499.56,LD LTS 65+,HOMECARE - SPOT,2103301225,1000058171
03.08.2021,ADULT SOCIAL CARE,SWK DISABLEMENT ASSN,"1,550.64",LD LTS 65+,SUPPORTED LIVING,2103301266,1000011698
03.08.2021,ADULT SOCIAL CARE,MEDACS HOMECARE,458.91,MEM LTS 18-64,HOMECARE - C&V,2103301351,11287415
03.08.2021,ADULT SOCIAL CARE,MEDACS HOMECARE,964.19,MEM LTS 65+,HOMECARE - C&V,2103301373,11287415
03.08.2021,ADULT SOCIAL CARE,MEDACS HOMECARE,"1,404.60",MEM LTS 65+,HOMECARE - C&V,2103301390,11287415
03.08.2021,ADULT SOCIAL CARE,MEDACS HOMECARE,533.05,MH LTS 18-64,HOMECARE - C&V,2103301346,11287415
03.08.2021,ADULT SOCIAL CARE,MEDACS HOMECARE,707.4,MH LTS 18-64,HOMECARE - C&V,2103301380,11287415
03.08.2021,ADULT SOCIAL CARE,MEDACS HOMECARE,"1,582.70",MH LTS 18-64,HOMECARE - C&V,2103301378,11287415
03.08.2021,ADULT SOCIAL CARE,MEDACS HOMECARE,"1,589.81",MH LTS 18-64,HOMECARE - C&V,2103301335,11287415
03.08.2021,ADULT SOCIAL CARE,SWK DISABLEMENT ASSN,369.2,MH LTS 18-64,HOMECARE - SPOT,2103301252,1000011698
03.08.2021,ADULT SOCIAL CARE,SWK DISABLEMENT ASSN,428.16,MH LTS 18-64,HOMECARE - SPOT,2103301279,1000011698
03.08.2021,ADULT SOCIAL CARE,SWK DISABLEMENT ASSN,516.88,MH LTS 18-64,HOMECARE - SPOT,2103301297,1000011698
03.08.2021,ADULT SOCIAL CARE,SWK DISABLEMENT ASSN,660.08,MH LTS 18-64,HOMECARE - SPOT,2103301308,1000011698
03.08.2021,ADULT SOCIAL CARE,SWK DISABLEMENT ASSN,276.9,MH LTS 18-64,SUPPORTED LIVING,2103301284,1000011698
03.08.2021,ADULT SOCIAL CARE,SWK DISABLEMENT ASSN,295.36,MH LTS 18-64,SUPPORTED LIVING,2103301293,1000011698
03.08.2021,ADULT SOCIAL CARE,SWK DISABLEMENT ASSN,332.28,MH LTS 18-64,SUPPORTED LIVING,2103301313,1000011698
03.08.2021,ADULT SOCIAL CARE,SWK DISABLEMENT ASSN,369.2,MH LTS 18-64,SUPPORTED LIVING,2103301230,1000011698
03.08.2021,ADULT SOCIAL CARE,SWK DISABLEMENT ASSN,406.12,MH LTS 18-64,SUPPORTED LIVING,2103301254,1000011698
03.08.2021,ADULT SOCIAL CARE,SWK DISABLEMENT ASSN,443.04,MH LTS 18-64,SUPPORTED LIVING,2103301276,1000011698
03.08.2021,ADULT SOCIAL CARE,SWK DISABLEMENT ASSN,479.96,MH LTS 18-64,SUPPORTED LIVING,2103301316,1000011698
03.08.2021,ADULT SOCIAL CARE,SWK DISABLEMENT ASSN,553.8,MH LTS 18-64,SUPPORTED LIVING,2103301256,1000011698
03.08.2021,ADULT SOCIAL CARE,SWK DISABLEMENT ASSN,590.72,MH LTS 18-64,SUPPORTED LIVING,2103301283,1000011698
03.08.2021,ADULT SOCIAL CARE,SWK DISABLEMENT ASSN,664.56,MH LTS 18-64,SUPPORTED LIVING,2103301250,1000011698
03.08.2021,ADULT SOCIAL CARE,SWK DISABLEMENT ASSN,"1,624.48",MH LTS 18-64,SUPPORTED LIVING,2103301281,1000011698
03.08.2021,ADULT SOCIAL CARE,SWK DISABLEMENT ASSN,295.36,MH LTS 65+,SUPPORTED LIVING,2103301290,1000011698
03.08.2021,ADULT SOCIAL CARE,AGE UK LEWISHAM & SOUTHWARK,"272,201.50",OLDER PEOPLES HUBS,EXTERNAL AGENCIES AND BODIES,5902479950,1507154
03.08.2021,ADULT SOCIAL CARE,MEDACS HOMECARE,264.21,PHY LTS 18-64,HOMECARE - C&V,2103301377,11287415
03.08.2021,ADULT SOCIAL CARE,MEDACS HOMECARE,296.68,PHY LTS 18-64,HOMECARE - C&V,2103301338,11287415
03.08.2021,ADULT SOCIAL CARE,MEDACS HOMECARE,305.97,PHY LTS 18-64,HOMECARE - C&V,2103301320,11287415
03.08.2021,ADULT SOCIAL CARE,MEDACS HOMECARE,314.87,PHY LTS 18-64,HOMECARE - C&V,2103301370,11287415
03.08.2021,ADULT SOCIAL CARE,MEDACS HOMECARE,324.53,PHY LTS 18-64,HOMECARE - C&V,2103301340,11287415
03.08.2021,ADULT SOCIAL CARE,MEDACS HOMECARE,329.2,PHY LTS 18-64,HOMECARE - C&V,2103301374,11287415
03.08.2021,ADULT SOCIAL CARE,MEDACS HOMECARE,332.19,PHY LTS 18-64,HOMECARE - C&V,2103301363,11287415
03.08.2021,ADULT SOCIAL CARE,MEDACS HOMECARE,333.72,PHY LTS 18-64,HOMECARE - C&V,2103301367,11287415
03.08.2021,ADULT SOCIAL CARE,MEDACS HOMECARE,403.26,PHY LTS 18-64,HOMECARE - C&V,2103301342,11287415
03.08.2021,ADULT SOCIAL CARE,MEDACS HOMECARE,459,PHY LTS 18-64,HOMECARE - C&V,2103301321,11287415
03.08.2021,ADULT SOCIAL CARE,MEDACS HOMECARE,472.8,PHY LTS 18-64,HOMECARE - C&V,2103301389,11287415
03.08.2021,ADULT SOCIAL CARE,MEDACS HOMECARE,595.3,PHY LTS 18-64,HOMECARE - C&V,2103301402,11287415
03.08.2021,ADULT SOCIAL CARE,MEDACS HOMECARE,609.87,PHY LTS 18-64,HOMECARE - C&V,2103301387,11287415
03.08.2021,ADULT SOCIAL CARE,MEDACS HOMECARE,667.55,PHY LTS 18-64,HOMECARE - C&V,2103301332,11287415
03.08.2021,ADULT SOCIAL CARE,MEDACS HOMECARE,729.01,PHY LTS 18-64,HOMECARE - C&V,2103301403,11287415
03.08.2021,ADULT SOCIAL CARE,MEDACS HOMECARE,746.28,PHY LTS 18-64,HOMECARE - C&V,2103301372,11287415
03.08.2021,ADULT SOCIAL CARE,MEDACS HOMECARE,755.59,PHY LTS 18-64,HOMECARE - C&V,2103301333,11287415
03.08.2021,ADULT SOCIAL CARE,MEDACS HOMECARE,834.35,PHY LTS 18-64,HOMECARE - C&V,2103301347,11287415
03.08.2021,ADULT SOCIAL CARE,MEDACS HOMECARE,955.12,PHY LTS 18-64,HOMECARE - C&V,2103301336,11287415
03.08.2021,ADULT SOCIAL CARE,MEDACS HOMECARE,"1,107.94",PHY LTS 18-64,HOMECARE - C&V,2103301382,11287415
03.08.2021,ADULT SOCIAL CARE,MEDACS HOMECARE,"1,297.83",PHY LTS 18-64,HOMECARE - C&V,2103301323,11287415
03.08.2021,ADULT SOCIAL CARE,MEDACS HOMECARE,"1,483.42",PHY LTS 18-64,HOMECARE - C&V,2103301384,11287415
03.08.2021,ADULT SOCIAL CARE,MEDACS HOMECARE,"3,385.70",PHY LTS 18-64,HOMECARE - C&V,2103301371,11287415
03.08.2021,ADULT SOCIAL CARE,SWK DISABLEMENT ASSN,499.52,PHY LTS 18-64,HOMECARE - SPOT,2103301242,1000011698
03.08.2021,ADULT SOCIAL CARE,SWK DISABLEMENT ASSN,820.64,PHY LTS 18-64,HOMECARE - SPOT,2103301271,1000011698
03.08.2021,ADULT SOCIAL CARE,SWK DISABLEMENT ASSN,945.52,PHY LTS 18-64,HOMECARE - SPOT,2103301272,1000011698
03.08.2021,ADULT SOCIAL CARE,SWK DISABLEMENT ASSN,"1,141.76",PHY LTS 18-64,HOMECARE - SPOT,2103301244,1000011698
03.08.2021,ADULT SOCIAL CARE,SWK DISABLEMENT ASSN,"1,462.88",PHY LTS 18-64,HOMECARE - SPOT,2103301227,1000011698
03.08.2021,ADULT SOCIAL CARE,SWK DISABLEMENT ASSN,"1,801.84",PHY LTS 18-64,HOMECARE - SPOT,2103301273,1000011698
03.08.2021,ADULT SOCIAL CARE,SWK DISABLEMENT ASSN,"2,354.88",PHY LTS 18-64,HOMECARE - SPOT,2103301243,1000011698
03.08.2021,ADULT SOCIAL CARE,SWK DISABLEMENT ASSN,"2,765.20",PHY LTS 18-64,HOMECARE - SPOT,2103301303,1000011698
03.08.2021,ADULT SOCIAL CARE,SWK DISABLEMENT ASSN,"3,101.28",PHY LTS 18-64,HOMECARE - SPOT,2103301317,1000011698
03.08.2021,ADULT SOCIAL CARE,SWK DISABLEMENT ASSN,"3,603.68",PHY LTS 18-64,HOMECARE - SPOT,2103301304,1000011698
03.08.2021,ADULT SOCIAL CARE,SWK DISABLEMENT ASSN,516.88,PHY LTS 18-64,SUPPORTED LIVING,2103301285,1000011698
03.08.2021,ADULT SOCIAL CARE,MEDACS HOMECARE,263.91,PHY LTS 65+,HOMECARE - C&V,2103301395,11287415
03.08.2021,ADULT SOCIAL CARE,MEDACS HOMECARE,296.68,PHY LTS 65+,HOMECARE - C&V,2103301326,11287415
03.08.2021,ADULT SOCIAL CARE,MEDACS HOMECARE,296.71,PHY LTS 65+,HOMECARE - C&V,2103301353,11287415
03.08.2021,ADULT SOCIAL CARE,MEDACS HOMECARE,310.55,PHY LTS 65+,HOMECARE - C&V,2103301327,11287415
03.08.2021,ADULT SOCIAL CARE,MEDACS HOMECARE,352.35,PHY LTS 65+,HOMECARE - C&V,2103301341,11287415
03.08.2021,ADULT SOCIAL CARE,MEDACS HOMECARE,366.62,PHY LTS 65+,HOMECARE - C&V,2103301357,11287415
03.08.2021,ADULT SOCIAL CARE,MEDACS HOMECARE,379.56,PHY LTS 65+,HOMECARE - C&V,2103301399,11287415
03.08.2021,ADULT SOCIAL CARE,MEDACS HOMECARE,380.19,PHY LTS 65+,HOMECARE - C&V,2103301349,11287415
03.08.2021,ADULT SOCIAL CARE,MEDACS HOMECARE,384.79,PHY LTS 65+,HOMECARE - C&V,2103301356,11287415
03.08.2021,ADULT SOCIAL CARE,MEDACS HOMECARE,496.06,PHY LTS 65+,HOMECARE - C&V,2103301358,11287415
03.08.2021,ADULT SOCIAL CARE,MEDACS HOMECARE,514.49,PHY LTS 65+,HOMECARE - C&V,2103301345,11287415
03.08.2021,ADULT SOCIAL CARE,MEDACS HOMECARE,556.52,PHY LTS 65+,HOMECARE - C&V,2103301401,11287415
03.08.2021,ADULT SOCIAL CARE,MEDACS HOMECARE,638.43,PHY LTS 65+,HOMECARE - C&V,2103301388,11287415
03.08.2021,ADULT SOCIAL CARE,MEDACS HOMECARE,885.33,PHY LTS 65+,HOMECARE - C&V,2103301337,11287415
03.08.2021,ADULT SOCIAL CARE,MEDACS HOMECARE,894.68,PHY LTS 65+,HOMECARE - C&V,2103301400,11287415
03.08.2021,ADULT SOCIAL CARE,MEDACS HOMECARE,927.02,PHY LTS 65+,HOMECARE - C&V,2103301383,11287415
03.08.2021,ADULT SOCIAL CARE,MEDACS HOMECARE,954.86,PHY LTS 65+,HOMECARE - C&V,2103301350,11287415
03.08.2021,ADULT SOCIAL CARE,MEDACS HOMECARE,992.16,PHY LTS 65+,HOMECARE - C&V,2103301394,11287415
03.08.2021,ADULT SOCIAL CARE,MEDACS HOMECARE,"1,005.15",PHY LTS 65+,HOMECARE - C&V,2103301366,11287415
03.08.2021,ADULT SOCIAL CARE,MEDACS HOMECARE,"1,117.18",PHY LTS 65+,HOMECARE - C&V,2103301385,11287415
03.08.2021,ADULT SOCIAL CARE,MEDACS HOMECARE,"1,126.38",PHY LTS 65+,HOMECARE - C&V,2103301397,11287415
03.08.2021,ADULT SOCIAL CARE,MEDACS HOMECARE,"1,135.58",PHY LTS 65+,HOMECARE - C&V,2103301330,11287415
03.08.2021,ADULT SOCIAL CARE,MEDACS HOMECARE,"1,186.63",PHY LTS 65+,HOMECARE - C&V,2103301379,11287415
03.08.2021,ADULT SOCIAL CARE,MEDACS HOMECARE,"1,237.61",PHY LTS 65+,HOMECARE - C&V,2103301391,11287415
03.08.2021,ADULT SOCIAL CARE,MEDACS HOMECARE,"1,247.11",PHY LTS 65+,HOMECARE - C&V,2103301319,11287415
03.08.2021,ADULT SOCIAL CARE,MEDACS HOMECARE,"1,270.16",PHY LTS 65+,HOMECARE - C&V,2103301339,11287415
03.08.2021,ADULT SOCIAL CARE,MEDACS HOMECARE,"1,284.10",PHY LTS 65+,HOMECARE - C&V,2103301328,11287415
03.08.2021,ADULT SOCIAL CARE,MEDACS HOMECARE,"1,353.70",PHY LTS 65+,HOMECARE - C&V,2103301344,11287415
03.08.2021,ADULT SOCIAL CARE,MEDACS HOMECARE,"1,371.19",PHY LTS 65+,HOMECARE - C&V,2103301381,11287415
03.08.2021,ADULT SOCIAL CARE,MEDACS HOMECARE,"1,933.16",PHY LTS 65+,HOMECARE - C&V,2103301392,11287415
03.08.2021,ADULT SOCIAL CARE,MEDACS HOMECARE,"2,419.91",PHY LTS 65+,HOMECARE - C&V,2103301375,11287415
03.08.2021,ADULT SOCIAL CARE,MEDACS HOMECARE,"2,419.95",PHY LTS 65+,HOMECARE - C&V,2103301324,11287415
03.08.2021,ADULT SOCIAL CARE,MEDACS HOMECARE,"2,540.18",PHY LTS 65+,HOMECARE - C&V,2103301364,11287415
03.08.2021,ADULT SOCIAL CARE,MEDACS HOMECARE,"2,665.53",PHY LTS 65+,HOMECARE - C&V,2103301329,11287415
03.08.2021,ADULT SOCIAL CARE,MEDACS HOMECARE,"2,767.57",PHY LTS 65+,HOMECARE - C&V,2103301365,11287415
03.08.2021,ADULT SOCIAL CARE,MEDACS HOMECARE,"2,916.12",PHY LTS 65+,HOMECARE - C&V,2103301322,11287415
03.08.2021,ADULT SOCIAL CARE,MEDACS HOMECARE,"3,553.98",PHY LTS 65+,HOMECARE - C&V,2103301386,11287415
03.08.2021,ADULT SOCIAL CARE,SWK DISABLEMENT ASSN,356.8,PHY LTS 65+,HOMECARE - SPOT,2103301245,1000011698
03.08.2021,ADULT SOCIAL CARE,SWK DISABLEMENT ASSN,361.26,PHY LTS 65+,HOMECARE - SPOT,2103301307,1000011698
03.08.2021,ADULT SOCIAL CARE,SWK DISABLEMENT ASSN,392.48,PHY LTS 65+,HOMECARE - SPOT,2103301275,1000011698
03.08.2021,ADULT SOCIAL CARE,SWK DISABLEMENT ASSN,446,PHY LTS 65+,HOMECARE - SPOT,2103301310,1000011698
03.08.2021,ADULT SOCIAL CARE,SWK DISABLEMENT ASSN,673.46,PHY LTS 65+,HOMECARE - SPOT,2103301309,1000011698
03.08.2021,ADULT SOCIAL CARE,SWK DISABLEMENT ASSN,749.28,PHY LTS 65+,HOMECARE - SPOT,2103301247,1000011698
03.08.2021,ADULT SOCIAL CARE,SWK DISABLEMENT ASSN,892,PHY LTS 65+,HOMECARE - SPOT,2103301311,1000011698
03.08.2021,ADULT SOCIAL CARE,SWK DISABLEMENT ASSN,"1,195.28",PHY LTS 65+,HOMECARE - SPOT,2103301248,1000011698
03.08.2021,ADULT SOCIAL CARE,SWK DISABLEMENT ASSN,"1,471.80",PHY LTS 65+,HOMECARE - SPOT,2103301301,1000011698
03.08.2021,ADULT SOCIAL CARE,SWK DISABLEMENT ASSN,"1,552.08",PHY LTS 65+,HOMECARE - SPOT,2103301302,1000011698
03.08.2021,ADULT SOCIAL CARE,SWK DISABLEMENT ASSN,"1,641.28",PHY LTS 65+,HOMECARE - SPOT,2103301229,1000011698
03.08.2021,ADULT SOCIAL CARE,SWK DISABLEMENT ASSN,"2,069.44",PHY LTS 65+,HOMECARE - SPOT,2103301269,1000011698
03.08.2021,ADULT SOCIAL CARE,SWK DISABLEMENT ASSN,"2,497.60",PHY LTS 65+,HOMECARE - SPOT,2103301246,1000011698
03.08.2021,ADULT SOCIAL CARE,SWK DISABLEMENT ASSN,"2,747.36",PHY LTS 65+,HOMECARE - SPOT,2103301232,1000011698
03.08.2021,ADULT SOCIAL CARE,SWK DISABLEMENT ASSN,321.12,SOCIAL ISOLATION,HOMECARE - SPOT,2103301228,1000011698
03.08.2021,ADULT SOCIAL CARE,SWK DISABLEMENT ASSN,"1,266.64",SOCIAL ISOLATION,HOMECARE - SPOT,2103301299,1000011698
03.08.2021,ADULT SOCIAL CARE,MEDACS HOMECARE,412.61,SUB LTS 18-64,HOMECARE - C&V,2103301398,11287415
03.08.2021,ADULT SOCIAL CARE,MEDACS HOMECARE,"1,080.06",SUB LTS 18-64,HOMECARE - SPOT,2103301362,11287415
03.08.2021,ASSET MANAGEMENT,ASHFORDS LLP,"4,791.67",DISREPAIR,PAYMENTS FOR LEGAL SERVICES,2103301418,1000055865
03.08.2021,ASSET MANAGEMENT,ASHFORDS LLP,"6,458.33",DISREPAIR,PAYMENTS FOR LEGAL SERVICES,2103301426,1000055865
03.08.2021,ASSET MANAGEMENT,PROPERTY FACILITIES GROUP LTD,929.85,DISREPAIR,PAYMENTS FOR LEGAL SERVICES,2103301419,1000063713
03.08.2021,ASSET MANAGEMENT,FRANKLYN SHAW ASSOCIATES LTD,259.08,DISREPAIR,PAYMENTS FOR LEGAL SERVICES,2103301422,1000068289
03.08.2021,ASSET MANAGEMENT,CHESHIRE ESTATE AND LEGAL LTD,"4,166.67",DISREPAIR,PAYMENTS FOR LEGAL SERVICES,2103301427,1000081908
03.08.2021,ASSET MANAGEMENT,CHESHIRE ESTATE AND LEGAL LTD,"6,250.00",DISREPAIR,PAYMENTS FOR LEGAL SERVICES,2103301430,1000081908
03.08.2021,ASSET MANAGEMENT,CHESHIRE ESTATE AND LEGAL LTD,"7,291.67",DISREPAIR,PAYMENTS FOR LEGAL SERVICES,2103301410,1000081908
03.08.2021,ASSET MANAGEMENT,UPSHOT UK LIMITED,400,DISREPAIR,PAYMENTS FOR LEGAL SERVICES,2103301429,1000087129
03.08.2021,ASSET MANAGEMENT,JUDGE AND PRIESTLEY SOLICITORS,"1,332.00",DISREPAIR,PAYMENTS FOR LEGAL SERVICES,5902480021,1472217
03.08.2021,ASSET MANAGEMENT,JUDGE AND PRIESTLEY SOLICITORS,"29,808.00",DISREPAIR,PAYMENTS FOR LEGAL SERVICES,5902480021,1472217
03.08.2021,ASSET MANAGEMENT,ANTONY HODARI  SOLICITORS,902.59,DISREPAIR,PAYMENTS FOR LEGAL SERVICES,2103301409,1000031040
03.08.2021,ASSET MANAGEMENT,ANTONY HODARI  SOLICITORS,"1,041.67",DISREPAIR,PAYMENTS FOR LEGAL SERVICES,2103301424,1000031040
03.08.2021,ASSET MANAGEMENT,ANTONY HODARI  SOLICITORS,"1,458.33",DISREPAIR,PAYMENTS FOR LEGAL SERVICES,2103301413,1000031040
03.08.2021,ASSET MANAGEMENT,ANTONY HODARI  SOLICITORS,"3,333.33",DISREPAIR,PAYMENTS FOR LEGAL SERVICES,2103301408,1000031040
03.08.2021,ASSET MANAGEMENT,ANTHONY GOLD SOLICITORS,503.29,DISREPAIR,PAYMENTS FOR LEGAL SERVICES,2103301431,1000050198
03.08.2021,ASSET MANAGEMENT,MLA SOLICITORS,"2,200.00",DISREPAIR,PAYMENTS FOR LEGAL SERVICES,2103301421,1000079716
03.08.2021,ASSET MANAGEMENT,BARNES SOLICITORS LLP,"2,666.67",DISREPAIR,PAYMENTS FOR LEGAL SERVICES,2103301415,1000083820
03.08.2021,ASSET MANAGEMENT,BOND TURNER  SOLICITORS,416.67,DISREPAIR,PAYMENTS FOR LEGAL SERVICES,2103301420,1000085362
03.08.2021,ASSET MANAGEMENT,BOND TURNER  SOLICITORS,"1,250.00",DISREPAIR,PAYMENTS FOR LEGAL SERVICES,2103301411,1000085362
03.08.2021,ASSET MANAGEMENT,BOND TURNER  SOLICITORS,"3,764.64",DISREPAIR,PAYMENTS FOR LEGAL SERVICES,2103301423,1000085362
03.08.2021,ASSET MANAGEMENT,BOND TURNER  SOLICITORS,"5,416.67",DISREPAIR,PAYMENTS FOR LEGAL SERVICES,2103301428,1000085362
03.08.2021,ASSET MANAGEMENT,ENVISION  SOLICITORS LIMITED,260,DISREPAIR,PAYMENTS FOR LEGAL SERVICES,2103301412,1000086191
03.08.2021,ASSET MANAGEMENT,ENVISION  SOLICITORS LIMITED,711.42,DISREPAIR,PAYMENTS FOR LEGAL SERVICES,2103301416,1000086191
03.08.2021,ASSET MANAGEMENT,MJV & CO  SOLICITORS LTD,"3,750.00",DISREPAIR,PAYMENTS FOR LEGAL SERVICES,2103301417,1000086326
03.08.2021,ASSET MANAGEMENT,LONDON FIRE BRIGADE,352,ENG CONTRACTS (NORTH),LIFTS,5902480050,1000083629
03.08.2021,ASSET MANAGEMENT,LONDON FIRE BRIGADE,352,ENG CONTRACTS (NORTH),LIFTS,5902480052,1000083629
03.08.2021,CENTRAL FUNCTIONS,CBS MAINTENANCE SERVICES LTD,454,COMMERCIAL PROPERTIES,BUILDING R&M,5902480044,1000072375
03.08.2021,CENTRAL FUNCTIONS,KENT COUNTY COUNCIL - LASER,"4,864.61",HEATING ACCOUNT,ELECTRICITY,5902479969,1000012926
03.08.2021,CENTRAL FUNCTIONS,KENT COUNTY COUNCIL - LASER,"65,692.01",HEATING ACCOUNT,ELECTRICITY,5902479969,1000012926
03.08.2021,CENTRAL FUNCTIONS,KENT COUNTY COUNCIL - LASER,"13,349.16",HEATING ACCOUNT,GAS,5902479968,1000012926
03.08.2021,CENTRAL FUNCTIONS,KENT COUNTY COUNCIL - LASER,"419,045.10",HEATING ACCOUNT,GAS,5902479968,1000012926
03.08.2021,CHIEF EXECUTIVE,MEINHARDT (UK) LIMITED,"1,800.00",CAPITAL PS (REGEN),CONSTRUCTION FEES - ENGINEER,5902479958,1000083916
03.08.2021,CHILDREN AND ADULT,FAITHFUL & GOULD,"32,843.23",CAPITAL PS (EDUCATION),CONSTRUCTION FEES,5902480038,1000061390
03.08.2021,CHILDREN AND ADULT,FAITHFUL & GOULD,"38,191.79",CAPITAL PS (EDUCATION),CONSTRUCTION FEES,5902480041,1000061390
03.08.2021,CHILDREN AND ADULT,SHARPE PRITCHARD LLP,564,CAPITAL PS (EDUCATION),CONSTRUCTION FEES - LEGAL,5902479957,1790085
03.08.2021,CHILDREN AND FAMILIES,NETWORK RECRUITMENT SOLUTIONS,300,CONTACT SERVICE,OTHER PAYMENTS FOR CLIENTS,5902479986,1000071241
03.08.2021,CHILDREN AND FAMILIES,NETWORK RECRUITMENT SOLUTIONS,380,CONTACT SERVICE,OTHER PAYMENTS FOR CLIENTS,5902479984,1000071241
03.08.2021,CHILDREN AND FAMILIES,NETWORK RECRUITMENT SOLUTIONS,429.38,CONTACT SERVICE,OTHER PAYMENTS FOR CLIENTS,5902479978,1000071241
03.08.2021,CHILDREN AND FAMILIES,NETWORK RECRUITMENT SOLUTIONS,450,CONTACT SERVICE,OTHER PAYMENTS FOR CLIENTS,5902479980,1000071241
03.08.2021,CHILDREN AND FAMILIES,NETWORK RECRUITMENT SOLUTIONS,525,CONTACT SERVICE,OTHER PAYMENTS FOR CLIENTS,5902479979,1000071241
03.08.2021,CHILDREN AND FAMILIES,NETWORK RECRUITMENT SOLUTIONS,797,CONTACT SERVICE,OTHER PAYMENTS FOR CLIENTS,5902479981,1000071241
03.08.2021,CHILDREN AND FAMILIES,NETWORK RECRUITMENT SOLUTIONS,"1,050.00",CONTACT SERVICE,OTHER PAYMENTS FOR CLIENTS,5902479983,1000071241
03.08.2021,COLLECTION FUNDS,GREATER LONDON AUTHORITY,"3,731,702.35",GLA PRECEPT,LEVIES,5902479953,1000015827
03.08.2021,COMMISSIONING & CENTRAL,SERVELEC SOCIAL CARE LTD,"7,500.00",C&AS SOFTWARE APPS,EXTERNAL AGENCIES AND BODIES,5902480018,1000077688
03.08.2021,COMMISSIONING & CENTRAL,SERVELEC SOCIAL CARE LTD,"7,500.00",C&AS SOFTWARE APPS,EXTERNAL AGENCIES AND BODIES,5902480020,1000077688
03.08.2021,COMMISSIONING & CENTRAL,SERVELEC SOCIAL CARE LTD,"7,500.00",C&AS SOFTWARE APPS,EXTERNAL AGENCIES AND BODIES,5902480022,1000077688
03.08.2021,COMMISSIONING & CENTRAL,WEB LABS LTD,"1,500.00",C&AS SOFTWARE APPS,SOFTWARE,5902480025,1000039819
03.08.2021,COMMUNITIES,DOG KENNEL HILL ADVENTURE PLAYGROUND LTD,"3,500.00",SOUTH,GRANTS,5902480048,11134529
03.08.2021,COMMUNITIES,MY FIRST 1000 DAYS,"3,200.00",SOUTH,GRANTS,5902480015,1000084554
03.08.2021,COMMUNITIES,KALEIDOSCOPE PROJECT,"3,157.14",TIER 4 SERVICES,OTHER CONTRACTORS,5902480026,1000083325
03.08.2021,CUSTOMER EXPERIENCE HGF,VIRGIN MEDIA,315,IT MANAGEMENT,COMMS & COMPUTING CONTRACT CHARGES,5902479889,1000026457
03.08.2021,CUSTOMER EXPERIENCE HGF,VIRGIN MEDIA,630.18,IT MANAGEMENT,COMMS & COMPUTING CONTRACT CHARGES,5902479886,1000026457
03.08.2021,CUSTOMER EXPERIENCE HGF,VIRGIN MEDIA,"1,041.28",IT MANAGEMENT,COMMS & COMPUTING CONTRACT CHARGES,5902479892,1000026457
03.08.2021,CUSTOMER EXPERIENCE HGF,VIRGIN MEDIA,"7,363.15",IT MANAGEMENT,COMMS & COMPUTING CONTRACT CHARGES,5902479891,1000026457
03.08.2021,CUSTOMER EXPERIENCE HGF,EASYLINK UK,914.25,SMART MOBILE RESPONSE TEAM,EQUIPMENT PURCHASE & REPAIR,5902479902,1000066550
03.08.2021,DSG,BEORMUND PRIMARY SCHOOL,970,VIRTUAL SCHOOL PP,SCHOOLS CAPITATION,5902479921,5001000008
03.08.2021,EMPLOYEE EXPERIENCE,TABRIS LTD,"2,883.00",ILM COSTS,TRAINING,5902479945,1000080027
03.08.2021,EMPLOYEE EXPERIENCE,TABRIS LTD,"6,383.00",ILM COSTS,TRAINING,5902479948,1000080027
03.08.2021,EMPLOYEE EXPERIENCE,TABRIS LTD,"7,483.00",ILM COSTS,TRAINING,5902479947,1000080027
03.08.2021,ENV & LEIS,ST JOHNS AMBULANCE,798,MANAGEMENT TEAM,TRAINING,5902479924,1032324
03.08.2021,ENV & LEIS,ST JOHNS AMBULANCE,"1,197.00",MANAGEMENT TEAM,TRAINING,5902479940,1032324
03.08.2021,ENVIRONMENT AND LEISURE,CONCEPT ENGINEERING CONSULTANTS LTD,"1,201.50",CAPITAL PS (LEISURE),CONSTR'N SUB CONTRACT - NON CERTIFICATED,5902479935,1000076582
03.08.2021,ENVIRONMENT DIRECTORATE,DAYS FLEET,"5,219.56",COMMERCIAL VEH CTRL A/C,HIRED VEHICLES,5902480032,1000084165
03.08.2021,ENVIRONMENT DIRECTORATE,DAYS FLEET,"5,219.56",COMMERCIAL VEH CTRL A/C,HIRED VEHICLES,5902480035,1000084165
03.08.2021,ENVIRONMENT DIRECTORATE,I.S & G STEEL STOCKHOLDER LTD,360,ENGINEERING CRAFTS,MATERIALS,5902479973,1028293
03.08.2021,ENVIRONMENT DIRECTORATE,I.S & G STEEL STOCKHOLDER LTD,420,ENGINEERING CRAFTS,MATERIALS,5902479973,1028293
03.08.2021,ENVIRONMENT DIRECTORATE,F H BRUNDLE,"1,640.00",ENGINEERING CRAFTS,MATERIALS,5902479975,1082714
03.08.2021,ENVIRONMENT DIRECTORATE,HELIARC TECHNOLOGY LTD,"9,950.00",ENGINEERING CRAFTS,MATERIALS,5902480012,1000068644
03.08.2021,ENVIRONMENT DIRECTORATE,PURPOSE POWDER COATINGS LTD,357,GRANGE DOORS,MATERIALS,5902480008,1000059450
03.08.2021,ENVIRONMENT DIRECTORATE,MARWOOD ELECTRICAL COMPANY LTD,570.4,PUBLIC LIGHTING,MATERIALS,5902479972,1001874
03.08.2021,ENVIRONMENT DIRECTORATE,BEW ELECTRICAL DISTRIBUTORS LTD,280,PUBLIC LIGHTING,MATERIALS,5902479997,1000045371
03.08.2021,ENVIRONMENT DIRECTORATE,BEW ELECTRICAL DISTRIBUTORS LTD,441.76,PUBLIC LIGHTING,MATERIALS,5902479997,1000045371
03.08.2021,ENVIRONMENT DIRECTORATE,BEW ELECTRICAL DISTRIBUTORS LTD,519.57,PUBLIC LIGHTING,MATERIALS,5902479997,1000045371
03.08.2021,ENVIRONMENT DIRECTORATE,BEW ELECTRICAL DISTRIBUTORS LTD,570,PUBLIC LIGHTING,MATERIALS,5902479997,1000045371
03.08.2021,ENVIRONMENT DIRECTORATE,BEW ELECTRICAL DISTRIBUTORS LTD,570,PUBLIC LIGHTING,MATERIALS,5902479997,1000045371
03.08.2021,ENVIRONMENT DIRECTORATE,BEW ELECTRICAL DISTRIBUTORS LTD,593.44,PUBLIC LIGHTING,MATERIALS,5902479997,1000045371
03.08.2021,ENVIRONMENT DIRECTORATE,TRAFFIC MANAGEMENT PRODUCTS LTD,"2,500.00",PUBLIC LIGHTING,MATERIALS,5902480010,1000062435
03.08.2021,ENVIRONMENT DIRECTORATE,TRAFFIC MANAGEMENT PRODUCTS LTD,"6,552.00",PUBLIC LIGHTING,MATERIALS,5902480010,1000062435
03.08.2021,ENVIRONMENT DIRECTORATE,EDF ENERGY PLC,"2,050.86",STREET LIGHTING REACTIVE,ELECTRICITY,5902480049,1008746
03.08.2021,F & C S EXCLUDING CORPORATE BUDGETS,REDACTED PERSONAL DATA,500,SESS,OTHER PAYMENTS FOR CLIENTS,REDACTED,REDACTED
03.08.2021,F & C S EXCLUDING CORPORATE BUDGETS,REDACTED PERSONAL DATA,500,SESS,OTHER PAYMENTS FOR CLIENTS,REDACTED,REDACTED
03.08.2021,F & C S EXCLUDING CORPORATE BUDGETS,REDACTED PERSONAL DATA,500,SESS,OTHER PAYMENTS FOR CLIENTS,REDACTED,REDACTED
03.08.2021,F & C S EXCLUDING CORPORATE BUDGETS,REDACTED PERSONAL DATA,500,SESS,OTHER PAYMENTS FOR CLIENTS,REDACTED,REDACTED
03.08.2021,F & C S EXCLUDING CORPORATE BUDGETS,REDACTED PERSONAL DATA,500,SESS,OTHER PAYMENTS FOR CLIENTS,REDACTED,REDACTED
03.08.2021,F & C S EXCLUDING CORPORATE BUDGETS,REDACTED PERSONAL DATA,500,SESS,OTHER PAYMENTS FOR CLIENTS,REDACTED,REDACTED
03.08.2021,F & C S EXCLUDING CORPORATE BUDGETS,REDACTED PERSONAL DATA,500,SESS,OTHER PAYMENTS FOR CLIENTS,REDACTED,REDACTED
03.08.2021,F & C S EXCLUDING CORPORATE BUDGETS,REDACTED PERSONAL DATA,500,SESS,OTHER PAYMENTS FOR CLIENTS,REDACTED,REDACTED
03.08.2021,F & C S EXCLUDING CORPORATE BUDGETS,REDACTED PERSONAL DATA,500,SESS,OTHER PAYMENTS FOR CLIENTS,REDACTED,REDACTED
03.08.2021,F & C S EXCLUDING CORPORATE BUDGETS,REDACTED PERSONAL DATA,500,SESS,OTHER PAYMENTS FOR CLIENTS,REDACTED,REDACTED
03.08.2021,F & C S EXCLUDING CORPORATE BUDGETS,REDACTED PERSONAL DATA,500,SESS,OTHER PAYMENTS FOR CLIENTS,REDACTED,REDACTED
03.08.2021,F & C S EXCLUDING CORPORATE BUDGETS,REDACTED PERSONAL DATA,500,SESS,OTHER PAYMENTS FOR CLIENTS,REDACTED,REDACTED
03.08.2021,F & C S EXCLUDING CORPORATE BUDGETS,REDACTED PERSONAL DATA,500,SESS,OTHER PAYMENTS FOR CLIENTS,REDACTED,REDACTED
03.08.2021,F & C S EXCLUDING CORPORATE BUDGETS,REDACTED PERSONAL DATA,500,SESS,OTHER PAYMENTS FOR CLIENTS,REDACTED,REDACTED
03.08.2021,HOUSING,OCO LIMITED,"138,474.17",PAYMENTS CONTROL ACCOUNT - OCO,I-WORLD CONTRACTORS HOLDING ACCOUNT,5902479951,1006066
03.08.2021,HOUSING,SMITH & BYFORD LTD,"113,765.58",SMITH AND BYFORD,I-WORLD CONTRACTORS HOLDING ACCOUNT,5902479952,11212119
03.08.2021,HOUSING HRA,MORGAN SINDALL PLC,"28,715.71",CAPITAL PS (HRA),CONSTR'N SUB CONTRACT - NON CERTIFICATED,2103301436,3000001556
03.08.2021,HOUSING HRA,WYNNE-WILLIAMS ASSOCIATES LTD,"2,250.00",CAPITAL PS (HRA),CONSTRUCTION FEES,5902479888,1000081419
03.08.2021,HOUSING HRA,POTTER RAPER LTD,"1,290.00",CAPITAL PS (HRA),CONSTRUCTION FEES  - EXTERNAL,5902480014,1009369
03.08.2021,HOUSING HRA,AVAL CONSULTING GROUP LIMITED,"4,530.00",CAPITAL PS (HRA),CONSTRUCTION FEES  - EXTERNAL,5902480009,1000086229
03.08.2021,HOUSING HRA,AVAL CONSULTING GROUP LIMITED,"4,530.00",CAPITAL PS (HRA),CONSTRUCTION FEES  - EXTERNAL,5902480009,1000086229
03.08.2021,HOUSING HRA,AVAL CONSULTING GROUP LIMITED,"4,880.00",CAPITAL PS (HRA),CONSTRUCTION FEES  - EXTERNAL,5902480009,1000086229
03.08.2021,HOUSING HRA,AVAL CONSULTING GROUP LIMITED,"4,880.00",CAPITAL PS (HRA),CONSTRUCTION FEES  - EXTERNAL,5902480009,1000086229
03.08.2021,HOUSING HRA,DURKAN LTD,"680,779.84",CAPITAL PS (HRA),CONSTRUCTION FEES  - EXTERNAL,2103300958,3000000960
03.08.2021,HOUSING HRA,ENGIE REGENERATION LTD,"100,622.95",CAPITAL PS (HRA),CONSTRUCTION FEES  - EXTERNAL,2103300957,3000002035
03.08.2021,HOUSING HRA,TISSERIN ENGINEERS LTD,"3,450.00",CAPITAL PS (HRA),CONSTRUCTION FEES - ENGINEER,5902479999,1000085047
03.08.2021,HOUSING HRA,STANDAGE & CO LTD,"6,584.29",CAPITAL PS (HRA),CONSTRUCTION MAIN CONTRACT -CERTIFICATED,2103301433,4002817
03.08.2021,HOUSING HRA,STANDAGE & CO LTD,"51,157.47",CAPITAL PS (HRA),CONSTRUCTION MAIN CONTRACT -CERTIFICATED,2103301433,4002817
03.08.2021,HOUSING HRA,ENGIE REGENERATION LTD,"120,047.96",CAPITAL PS (HRA),CONSTRUCTION MAIN CONTRACT -CERTIFICATED,2103300827,3000002035
03.08.2021,HOUSING HRA,NIBLOCK (BUILDERS) LTD,"2,264.05",CAPITAL PS (HRA),CONSTRUCTION SITE COSTS,2103300935,3000000235
03.08.2021,HOUSING HRA,ENGIE REGENERATION LTD,"7,260.00",CAPITAL PS (HRA),COVID 19 SUPPLIER RELIEF,2103300828,3000002035
03.08.2021,LEISURE DIRECTORATE,NPOWER LTD,"1,041.29",BURGESS AREA TEAM,ELECTRICITY,5902479961,1000078994
03.08.2021,LEISURE DIRECTORATE,NPOWER LTD,"11,098.96",BURGESS AREA TEAM,ELECTRICITY,5902479961,1000078994
03.08.2021,LEISURE DIRECTORATE,P D CONSTRUCTION LTD,"40,201.00",CEMETERIES,BUILDING R&M,2103301406,4001883
03.08.2021,LEISURE DIRECTORATE,WESTMINSTER WASTE,836,CEMETERIES,OTHER CONTRACTORS,5902479985,1000080933
03.08.2021,LEISURE DIRECTORATE,THE READING AGENCY,"2,470.50",LIBRARIES DEVELOPMENT,FREELANCE SPECIALISTS,5902479942,1000043626
03.08.2021,LEISURE DIRECTORATE,TGL GROUP LTD,545,TREES PRINCIPAL ROADS,OTHER CONTRACTORS,5902480034,1000081990
03.08.2021,NEW BUILD,ALBURY S.I. LTD,"4,140.00",DEVELOPMENT DELIVERY,CONSULTANTS SERVICES,5902480036,1000038277
03.08.2021,PUBLIC HEALTH,REDACTED PERSONAL DATA,500,COVID-19 CONTROL OUTBREAK MGMNT.FUND,OTHER PAYMENTS FOR CLIENTS,REDACTED,REDACTED
03.08.2021,PUBLIC HEALTH,REDACTED PERSONAL DATA,500,COVID-19 CONTROL OUTBREAK MGMNT.FUND,OTHER PAYMENTS FOR CLIENTS,REDACTED,REDACTED
03.08.2021,REGENERATION,BETA DISTRIBUTION (SOUTH) LTD,787.5,MASTER PLAN-H/WAY & TRANS INTERCHANGE,MARKETING & PUBLICITY SERVICES,5902479936,1000044844
03.08.2021,REGENERATION,NOELLA PIO - KIVLEHAN,350,MASTER PLAN-H/WAY & TRANS INTERCHANGE,MARKETING & PUBLICITY SERVICES,5902479946,1000083815
03.08.2021,RESIDENT SERVICES,CRIME CONCERN UK LTD,"1,240.00",OPERATIONS/OFFICES ACCOMMODATION,OTHER CONTRACTORS,5902479926,1000067928
03.08.2021,RESIDENT SERVICES,CRIME CONCERN UK LTD,"3,100.00",OPERATIONS/OFFICES ACCOMMODATION,OTHER CONTRACTORS,5902479920,1000067928
03.08.2021,RESIDENT SERVICES,CRIME CONCERN UK LTD,"3,100.00",OPERATIONS/OFFICES ACCOMMODATION,OTHER CONTRACTORS,5902479922,1000067928
03.08.2021,RESIDENT SERVICES,LIFTEC LIFTS LTD,"26,136.00",SUPPORTED HOSTELS,SECURITY SERVICES,2103300947,3000001620
03.08.2021,RESIDENT SERVICES,GALAXY LETTINGS LTD,"4,800.00",TA PLACEMENTS,EXTERNAL AGENCIES AND BODIES,5902479905,1000055897
03.08.2021,RESIDENT SERVICES,J & M OASIS LTD,"2,727.00",TA PLACEMENTS,EXTERNAL AGENCIES AND BODIES,5902479908,1000072169
03.08.2021,RESIDENT SERVICES HGF,SOUTH OF THE RIVER INVESTMENTS LTD,541.5,NIGHTLY TA (NSC),EXTERNAL AGENCIES AND BODIES,5902479971,1000073638
03.08.2021,RESIDENT SERVICES HGF,SOUTH OF THE RIVER INVESTMENTS LTD,"2,166.00",NIGHTLY TA (NSC),EXTERNAL AGENCIES AND BODIES,5902479974,1000073638
03.08.2021,RESIDENT SERVICES HGF,LTA DIRECT LTD,"13,380.00",PSL PLACEMENTS,EXTERNAL AGENCIES AND BODIES,5902480046,1000085314
03.08.2021,RESIDENT SERVICES HGF,PROPERTYPLACEBOOK LTD,"1,470.00",RAPID REHOUSING,EXTERNAL AGENCIES AND BODIES,5902479890,1000077817
03.08.2021,SBS SUPPORT,T4 INTELLIGENT INFRASTRUCTURE,944.72,SBS - HOLDING ACCOUNT,OTHER CONTRACTORS,2103301437,3000001985
03.08.2021,SBS SUPPORT,T4 INTELLIGENT INFRASTRUCTURE,"1,489.74",SBS - HOLDING ACCOUNT,OTHER CONTRACTORS,2103301435,3000001985
03.08.2021,SBS SUPPORT,T4 INTELLIGENT INFRASTRUCTURE,"2,665.93",SBS - HOLDING ACCOUNT,OTHER CONTRACTORS,2103301438,3000001985
03.08.2021,SBS SUPPORT,VPS (UK) LTD,292.88,VOIDS OVERHEADS,OTHER CONTRACTORS,5902479929,1000040614
03.08.2021,SBS SUPPORT,VPS (UK) LTD,885.36,VOIDS OVERHEADS,OTHER CONTRACTORS,5902479928,1000040614
03.08.2021,STRATEGIC FINANCING BUDGETS,THE BANK OF NEW YORK MELLON,887.12,CASH MANAGERS' COSTS,PROFESSIONAL FEES,5902479965,1000072540
03.08.2021,STRATEGIC FINANCING BUDGETS,VALUATION OFFICE AGENCY,"4,650.00",PROPERTY RELATED INSURANCE,PROFESSIONAL FEES,5902479899,1000065901
04.08.2021,ADULT SOCIAL CARE,REDACTED PERSONAL DATA,395.2,APPOINTEESHIPS,OTHER PAYMENTS FOR CLIENTS,REDACTED,REDACTED
04.08.2021,ADULT SOCIAL CARE,NATIONAL AUTISTIC SOCIETY CARE PACK,-421.87,LD LTS 18-64,"MAND STATUTORY CHARGES, RESIDENTIAL",2103301405,1000020538
04.08.2021,ADULT SOCIAL CARE,INSPIRE SOCIAL CARE LTD,800,SAFEGUARDING & DOLS,EXTERNAL AGENCIES AND BODIES,5902480160,1000081757
04.08.2021,ASSET MANAGEMENT,SIMON L TAYLOR LTD,700,DISREPAIR,PAYMENTS FOR LEGAL SERVICES,5902479451,1000056151
04.08.2021,ASSET MANAGEMENT,SIMON L TAYLOR LTD,785,DISREPAIR,PAYMENTS FOR LEGAL SERVICES,5902479450,1000056151
04.08.2021,ASSET MANAGEMENT,SILK & MACKMAN SERVICES LTD,"89,110.30",ENG CONTRACTS (NORTH),I-WORLD CONTRACTORS HOLDING ACCOUNT,5902480059,1000035282
04.08.2021,ASSET MANAGEMENT,LONDON FIRE BRIGADE,352,ENG CONTRACTS (NORTH),LIFTS,5902480058,1000083629
04.08.2021,ASSET MANAGEMENT,LONDON FIRE BRIGADE,352,ENG CONTRACTS (NORTH),LIFTS,5902480060,1000083629
04.08.2021,ASSET MANAGEMENT,LONDON FIRE BRIGADE,352,ENG CONTRACTS (NORTH),LIFTS,5902480065,1000083629
04.08.2021,CENTRAL FUNCTIONS,STANBURY BUILDING SERVICES LTD,365,COMMERCIAL PROPERTIES,BUILDING R&M,2103301472,3000001967
04.08.2021,CENTRAL FUNCTIONS,STANBURY BUILDING SERVICES LTD,375,COMMERCIAL PROPERTIES,BUILDING R&M,2103301475,3000001967
04.08.2021,CENTRAL FUNCTIONS,STANBURY BUILDING SERVICES LTD,395,COMMERCIAL PROPERTIES,BUILDING R&M,2103301476,3000001967
04.08.2021,CENTRAL FUNCTIONS,STANBURY BUILDING SERVICES LTD,895,COMMERCIAL PROPERTIES,BUILDING R&M,2103302059,3000001967
04.08.2021,CHIEF EXECUTIVE,HAYATSU ARCHITECTS LTD,"5,037.40",CAPITAL PS (REGEN),CONSTRUCTION FEES,5902479510,1000082843
04.08.2021,CHIEF EXECUTIVE,RED R DESIGN,300,CAPITAL PS (REGEN),CONSTRUCTION FEES - ARCHITECT,5902480141,1000035984
04.08.2021,CHILDREN AND FAMILIES,REDACTED PERSONAL DATA,500,ADOPTION SUPP FUND,PROFESSIONAL FEES,REDACTED,REDACTED
04.08.2021,CHILDREN AND FAMILIES,REDACTED PERSONAL DATA,"4,960.00",ADOPTION SUPP FUND,PROFESSIONAL FEES,REDACTED,REDACTED
04.08.2021,CHILDREN AND FAMILIES,REDACTED PERSONAL DATA,520,ADOPTION SUPP FUND,PROFESSIONAL FEES,REDACTED,REDACTED
04.08.2021,CHILDREN AND FAMILIES,REDACTED PERSONAL DATA,280,ADOPTION SUPP FUND,PROFESSIONAL FEES,REDACTED,REDACTED
04.08.2021,CHILDREN AND FAMILIES,REDACTED PERSONAL DATA,560,ADOPTION SUPP FUND,PROFESSIONAL FEES,REDACTED,REDACTED
04.08.2021,CHILDREN AND FAMILIES,REDACTED PERSONAL DATA,700,ADOPTION SUPP FUND,PROFESSIONAL FEES,REDACTED,REDACTED
04.08.2021,CHILDREN AND FAMILIES,REDACTED PERSONAL DATA,"2,450.00",ADOPTION SUPP FUND,PROFESSIONAL FEES,REDACTED,REDACTED
04.08.2021,CHILDREN AND FAMILIES,REDACTED PERSONAL DATA,510,ADOPTION SUPP FUND,PROFESSIONAL FEES,REDACTED,REDACTED
04.08.2021,CHILDREN AND FAMILIES,WORKING TRANSITIONS,600,CENTRAL SUPPORT,TRAINING,5902480158,1000063689
04.08.2021,CHILDREN AND FAMILIES,CORAM VOICE,"22,237.50",CHILDRENS ADVOCACY & INDEPENDENT VISITOR,EXTERNAL AGENCIES AND BODIES,5902480161,1000076392
04.08.2021,CHILDREN AND FAMILIES,REDACTED PERSONAL DATA,400,FE SUPPORT,OTHER PAYMENTS FOR CLIENTS,REDACTED,REDACTED
04.08.2021,CHILDREN AND FAMILIES,REDACTED PERSONAL DATA,400,FRIENDS &FAMILY FOST,ADDITIONAL PAYMENTS TO AGENCIES/CARERS,REDACTED,REDACTED
04.08.2021,CHILDREN AND FAMILIES,REDACTED PERSONAL DATA,400,FRIENDS &FAMILY FOST,ADDITIONAL PAYMENTS TO AGENCIES/CARERS,REDACTED,REDACTED
04.08.2021,CHILDREN AND FAMILIES,REDACTED PERSONAL DATA,400,FRIENDS &FAMILY FOST,ADDITIONAL PAYMENTS TO AGENCIES/CARERS,REDACTED,REDACTED
04.08.2021,CHILDREN AND FAMILIES,LOGICOUS LTD,"1,232.50",FRIENDS &FAMILY FOST,NURSING PLACEMENTS FEES,5902480121,1000073852
04.08.2021,CHILDREN AND FAMILIES,REDACTED PERSONAL DATA,342.85,FRIENDS &FAMILY FOST,PAYMENTS TO CARERS,REDACTED,REDACTED
04.08.2021,CHILDREN AND FAMILIES,REDACTED PERSONAL DATA,"2,000.00",LEAVING CARE GRANT,OTHER PAYMENTS FOR CLIENTS,REDACTED,REDACTED
04.08.2021,CHILDREN AND FAMILIES,HOLLY BRYAN ASSOCIATES LTD,"6,000.00",MANAGEMENT INFORMATION UNIT,PROFESSIONAL FEES,5902480169,1000077962
04.08.2021,CHILDREN AND FAMILIES,HOLLY BRYAN ASSOCIATES LTD,"6,800.00",MANAGEMENT INFORMATION UNIT,PROFESSIONAL FEES,5902480168,1000077962
04.08.2021,CHILDREN AND FAMILIES,MAGIC ROUNDABOUT NURSERIES LTD,919.16,P & R CARE TEAM,EXTERNAL AGENCIES AND BODIES,5902480116,1000045128
04.08.2021,CHILDREN AND FAMILIES,METROPOLITAN HOUSING TRUST LTD,661.52,SEMI-IND CARELEAVERS,EXTERNAL AGENCIES AND BODIES,2103302051,1000047547
04.08.2021,CHILDREN AND FAMILIES,OWNLIFE LTD,"3,542.86",SEMI-IND CARELEAVERS,EXTERNAL AGENCIES AND BODIES,2103302045,1000056219
04.08.2021,CHILDREN AND FAMILIES,CONTACT PROFESSIONALS,274.21,SEMI-IND CARELEAVERS,EXTERNAL AGENCIES AND BODIES,2103302042,1000057263
04.08.2021,CHILDREN AND FAMILIES,BARNARDOS SERVICES LTD,664.29,SEMI-IND CARELEAVERS,EXTERNAL AGENCIES AND BODIES,2103302048,1000063730
04.08.2021,CHILDREN AND FAMILIES,TRANSFORMING LIVES COMPANY LTD,"3,378.00",SEMI-IND CARELEAVERS,EXTERNAL AGENCIES AND BODIES,2103302044,1000083352
04.08.2021,CHILDREN AND FAMILIES,TRANSFORMING LIVES COMPANY LTD,"3,739.84",SEMI-IND CARELEAVERS,EXTERNAL AGENCIES AND BODIES,2103302047,1000083352
04.08.2021,CHILDREN AND FAMILIES,TRANSFORMING LIVES COMPANY LTD,"3,739.92",SEMI-IND CARELEAVERS,EXTERNAL AGENCIES AND BODIES,2103302043,1000083352
04.08.2021,CHILDREN AND FAMILIES,REDACTED PERSONAL DATA,300,SEMI-IND CARELEAVERS,OTHER PAYMENTS FOR CLIENTS,REDACTED,REDACTED
04.08.2021,CHILDREN AND FAMILIES,TRANSFORMING LIVES COMPANY LTD,"4,149.35",SEMI-IND LAC 16-17,EXTERNAL AGENCIES AND BODIES,2103302035,1000083352
04.08.2021,CHILDREN AND FAMILIES,TRANSFORMING LIVES COMPANY LTD,"4,888.00",SEMI-IND LAC 16-17,EXTERNAL AGENCIES AND BODIES,2103302037,1000083352
04.08.2021,CHILDREN AND FAMILIES,TRANSFORMING LIVES COMPANY LTD,"5,411.71",SEMI-IND LAC 16-17,EXTERNAL AGENCIES AND BODIES,2103302039,1000083352
04.08.2021,CHILDREN AND FAMILIES,TRANSFORMING LIVES COMPANY LTD,300,SEMI-IND LAC 16-17,OTHER PAYMENTS FOR CLIENTS,2103302038,1000083352
04.08.2021,CHILDREN AND FAMILIES,TRANSFORMING LIVES COMPANY LTD,310,SEMI-IND LAC 16-17,OTHER PAYMENTS FOR CLIENTS,2103302036,1000083352
04.08.2021,CHILDREN AND FAMILIES,TRANSFORMING LIVES COMPANY LTD,310,SEMI-IND LAC 16-17,OTHER PAYMENTS FOR CLIENTS,2103302040,1000083352
04.08.2021,CHILDREN AND FAMILIES,REDACTED PERSONAL DATA,372.86,SEMI-IND LAC 16-17,OTHER PAYMENTS FOR CLIENTS,REDACTED,REDACTED
04.08.2021,CHILDREN AND FAMILIES,ARC COMMUNITY TRUSTEES,650,SPECIAL GUARDIANSHIP,EXTERNAL AGENCIES AND BODIES,5902480124,1000046206
04.08.2021,CHILDREN AND FAMILIES,REDACTED PERSONAL DATA,388.04,SPECIAL GUARDIANSHIP,PAYMENTS TO CARERS,REDACTED,REDACTED
04.08.2021,CHILDREN AND FAMILIES,REDACTED PERSONAL DATA,342.45,SPECIAL GUARDIANSHIP,PAYMENTS TO CARERS,REDACTED,REDACTED
04.08.2021,CHILDREN AND FAMILIES,REDACTED PERSONAL DATA,389.34,SPECIAL GUARDIANSHIP,PAYMENTS TO CARERS,REDACTED,REDACTED
04.08.2021,CHILDREN AND FAMILIES,REDACTED PERSONAL DATA,356.15,SPECIAL GUARDIANSHIP,PAYMENTS TO CARERS,REDACTED,REDACTED
04.08.2021,CHILDREN AND FAMILIES,REDACTED PERSONAL DATA,403.04,SPECIAL GUARDIANSHIP,PAYMENTS TO CARERS,REDACTED,REDACTED
04.08.2021,CHILDREN AND FAMILIES,REDACTED PERSONAL DATA,-254.18,SPECIAL GUARDIANSHIP,PAYMENTS TO CARERS,REDACTED,REDACTED
04.08.2021,CHILDREN AND FAMILIES,REDACTED PERSONAL DATA,525,SPECIAL GUARDIANSHIP,PAYMENTS TO CARERS,REDACTED,REDACTED
04.08.2021,CHILDREN AND FAMILIES,REDACTED PERSONAL DATA,525,SPECIAL GUARDIANSHIP,PAYMENTS TO CARERS,REDACTED,REDACTED
04.08.2021,CHILDREN AND FAMILIES,REDACTED PERSONAL DATA,341.15,SPECIAL GUARDIANSHIP,PAYMENTS TO CARERS,REDACTED,REDACTED
04.08.2021,CHILDREN AND FAMILIES,CFC SOLICITORS,300,SPECIAL GUARDIANSHIP,PROFESSIONAL FEES,5902480122,1000084056
04.08.2021,CHILDREN AND FAMILIES,TACT,"1,400.00",STAYPUT- FOST CARERS,EXTERNAL AGENCIES AND BODIES,2103302053,1000012941
04.08.2021,CHILDREN AND FAMILIES,TACT,"1,500.00",STAYPUT- FOST CARERS,EXTERNAL AGENCIES AND BODIES,2103302054,1000012941
04.08.2021,CHILDREN AND FAMILIES,TACT,"1,500.00",STAYPUT- FOST CARERS,EXTERNAL AGENCIES AND BODIES,2103302056,1000012941
04.08.2021,CHILDREN AND FAMILIES,TACT,"1,550.00",STAYPUT- FOST CARERS,EXTERNAL AGENCIES AND BODIES,2103302041,1000012941
04.08.2021,CHILDREN AND FAMILIES,TACT,"1,550.00",STAYPUT- FOST CARERS,EXTERNAL AGENCIES AND BODIES,2103302050,1000012941
04.08.2021,CHILDREN AND FAMILIES,TACT,"1,550.00",STAYPUT- FOST CARERS,EXTERNAL AGENCIES AND BODIES,2103302055,1000012941
04.08.2021,CHILDREN AND FAMILIES,ROYAL VILLAGE DAY NURSERY,596,TEAM A,EXTERNAL AGENCIES AND BODIES,5902480107,1000082242
04.08.2021,CHILDREN AND FAMILIES,ROYAL VILLAGE DAY NURSERY,650,TEAM A,EXTERNAL AGENCIES AND BODIES,5902480109,1000082242
04.08.2021,CHILDREN AND FAMILIES,BE BRIGHT PROJECT LTD,755.52,TEAM A,EXTERNAL AGENCIES AND BODIES,5902480112,1000086212
04.08.2021,CHILDREN AND FAMILIES,BE BRIGHT PROJECT LTD,755.52,TEAM A,EXTERNAL AGENCIES AND BODIES,5902480113,1000086212
04.08.2021,CHILDREN AND FAMILIES,METROPOLITAN HOUSING TRUST LTD,678.88,UASC CARELEAVERS,EXTERNAL AGENCIES AND BODIES,2103302052,1000047547
04.08.2021,CHILDREN AND FAMILIES,OWNLIFE LTD,"2,790.00",UASC CARELEAVERS,EXTERNAL AGENCIES AND BODIES,2103302046,1000056219
04.08.2021,COMMUNITIES,SOUTH OF THE RIVER INVESTMENTS LTD,"4,017.00",NO RECOURSE TO PUBLIC FUNDS,ACCOMMODATION CHARGES,5902480102,1000073638
04.08.2021,COMMUNITIES,LINK AGE SOUTHWARK,"3,680.00",WEST CENTRAL,GRANTS,5902480119,1000034150
04.08.2021,COMMUNITIES,WALWORTH COMMUNITY GARDENING NETWORK,"3,100.00",WEST CENTRAL,GRANTS,5902480066,1000083636
04.08.2021,COMMUNITIES,WALWORTH COMMUNITY GARDENING NETWORK,"4,400.00",WEST CENTRAL,GRANTS,5902480067,1000083636
04.08.2021,COMMUNITIES,WALWORTH COMMUNITY GARDENING NETWORK,"4,400.00",WEST CENTRAL,GRANTS,5902480069,1000083636
04.08.2021,COMMUNITIES,BROOK,"36,437.50",YOUNG PEOPLES SERVICE,OTHER CONTRACTORS,5902480137,1000076901
04.08.2021,CUSTOMER EXPERIENCE HGF,VIRGIN MEDIA,"2,555.40",IT MANAGEMENT,COMMS & COMPUTING CONTRACT CHARGES,5902479882,1000026457
04.08.2021,DSG,ARK SCHOOLS T/A GLOBE ACADEMY,"1,312.82",AC & FREE - MSTREAM,STATEMENTED FEES,2103302076,1000060008
04.08.2021,DSG,ARK SCHOOLS T/A GLOBE ACADEMY,"1,312.82",AC & FREE - MSTREAM,STATEMENTED FEES,2103302077,1000060008
04.08.2021,DSG,ARK SCHOOLS T/A GLOBE ACADEMY,"1,312.82",AC & FREE - MSTREAM,STATEMENTED FEES,2103302078,1000060008
04.08.2021,DSG,ARK SCHOOLS T/A GLOBE ACADEMY,"1,312.82",AC & FREE - MSTREAM,STATEMENTED FEES,2103302083,1000060008
04.08.2021,DSG,ARK SCHOOLS T/A GLOBE ACADEMY,"1,312.82",AC & FREE - MSTREAM,STATEMENTED FEES,2103302090,1000060008
04.08.2021,DSG,ARK SCHOOLS T/A GLOBE ACADEMY,"1,312.82",AC & FREE - MSTREAM,STATEMENTED FEES,2103302091,1000060008
04.08.2021,DSG,ARK SCHOOLS T/A GLOBE ACADEMY,"1,312.82",AC & FREE - MSTREAM,STATEMENTED FEES,2103302094,1000060008
04.08.2021,DSG,ARK SCHOOLS T/A GLOBE ACADEMY,"1,312.82",AC & FREE - MSTREAM,STATEMENTED FEES,2103302098,1000060008
04.08.2021,DSG,ARK SCHOOLS T/A GLOBE ACADEMY,"2,625.64",AC & FREE - MSTREAM,STATEMENTED FEES,2103302079,1000060008
04.08.2021,DSG,ARK SCHOOLS T/A GLOBE ACADEMY,"2,625.64",AC & FREE - MSTREAM,STATEMENTED FEES,2103302082,1000060008
04.08.2021,DSG,ARK SCHOOLS T/A GLOBE ACADEMY,"2,625.64",AC & FREE - MSTREAM,STATEMENTED FEES,2103302087,1000060008
04.08.2021,DSG,ARK SCHOOLS T/A GLOBE ACADEMY,"2,625.64",AC & FREE - MSTREAM,STATEMENTED FEES,2103302088,1000060008
04.08.2021,DSG,ARK SCHOOLS T/A GLOBE ACADEMY,"2,625.64",AC & FREE - MSTREAM,STATEMENTED FEES,2103302089,1000060008
04.08.2021,DSG,ARK SCHOOLS T/A GLOBE ACADEMY,"2,625.64",AC & FREE - MSTREAM,STATEMENTED FEES,2103302092,1000060008
04.08.2021,DSG,ARK SCHOOLS T/A GLOBE ACADEMY,"2,625.64",AC & FREE - MSTREAM,STATEMENTED FEES,2103302093,1000060008
04.08.2021,DSG,ARK SCHOOLS T/A GLOBE ACADEMY,"2,625.64",AC & FREE - MSTREAM,STATEMENTED FEES,2103302096,1000060008
04.08.2021,DSG,ARK SCHOOLS T/A GLOBE ACADEMY,"2,625.64",AC & FREE - MSTREAM,STATEMENTED FEES,2103302097,1000060008
04.08.2021,DSG,ARK SCHOOLS T/A GLOBE ACADEMY,"2,625.64",AC & FREE - MSTREAM,STATEMENTED FEES,2103302099,1000060008
04.08.2021,DSG,ARK SCHOOLS T/A GLOBE ACADEMY,"2,625.64",AC & FREE - MSTREAM,STATEMENTED FEES,2103302101,1000060008
04.08.2021,DSG,ARK SCHOOLS T/A GLOBE ACADEMY,"3,938.46",AC & FREE - MSTREAM,STATEMENTED FEES,2103302075,1000060008
04.08.2021,DSG,ARK SCHOOLS T/A GLOBE ACADEMY,"3,938.46",AC & FREE - MSTREAM,STATEMENTED FEES,2103302100,1000060008
04.08.2021,DSG,ARK SCHOOLS T/A GLOBE ACADEMY,"4,173.13",AC & FREE - MSTREAM,STATEMENTED FEES,2103302080,1000060008
04.08.2021,DSG,ARK SCHOOLS T/A GLOBE ACADEMY,"4,173.13",AC & FREE - MSTREAM,STATEMENTED FEES,2103302081,1000060008
04.08.2021,DSG,ARK SCHOOLS T/A GLOBE ACADEMY,"4,173.13",AC & FREE - MSTREAM,STATEMENTED FEES,2103302084,1000060008
04.08.2021,DSG,ARK SCHOOLS T/A GLOBE ACADEMY,"4,173.13",AC & FREE - MSTREAM,STATEMENTED FEES,2103302085,1000060008
04.08.2021,DSG,ARK SCHOOLS T/A GLOBE ACADEMY,"4,173.13",AC & FREE - MSTREAM,STATEMENTED FEES,2103302086,1000060008
04.08.2021,DSG,ARK SCHOOLS T/A GLOBE ACADEMY,"4,173.13",AC & FREE - MSTREAM,STATEMENTED FEES,2103302095,1000060008
04.08.2021,DSG,ST MICHAELS CATHOLIC COLLEGE,"1,312.82",AC & FREE - MSTREAM,STATEMENTED FEES,2103302193,1000071000
04.08.2021,DSG,ST MICHAELS CATHOLIC COLLEGE,"1,739.49",AC & FREE - MSTREAM,STATEMENTED FEES,2103302195,1000071000
04.08.2021,DSG,ST MICHAELS CATHOLIC COLLEGE,"2,625.64",AC & FREE - MSTREAM,STATEMENTED FEES,2103302188,1000071000
04.08.2021,DSG,ST MICHAELS CATHOLIC COLLEGE,"2,625.64",AC & FREE - MSTREAM,STATEMENTED FEES,2103302190,1000071000
04.08.2021,DSG,ST MICHAELS CATHOLIC COLLEGE,"2,625.64",AC & FREE - MSTREAM,STATEMENTED FEES,2103302191,1000071000
04.08.2021,DSG,ST MICHAELS CATHOLIC COLLEGE,"2,625.64",AC & FREE - MSTREAM,STATEMENTED FEES,2103302192,1000071000
04.08.2021,DSG,ST MICHAELS CATHOLIC COLLEGE,"3,938.46",AC & FREE - MSTREAM,STATEMENTED FEES,2103302185,1000071000
04.08.2021,DSG,ST MICHAELS CATHOLIC COLLEGE,"3,938.46",AC & FREE - MSTREAM,STATEMENTED FEES,2103302186,1000071000
04.08.2021,DSG,ST MICHAELS CATHOLIC COLLEGE,"3,938.46",AC & FREE - MSTREAM,STATEMENTED FEES,2103302189,1000071000
04.08.2021,DSG,ST MICHAELS CATHOLIC COLLEGE,"3,938.46",AC & FREE - MSTREAM,STATEMENTED FEES,2103302194,1000071000
04.08.2021,DSG,ST MICHAELS CATHOLIC COLLEGE,"4,173.13",AC & FREE - MSTREAM,STATEMENTED FEES,2103302184,1000071000
04.08.2021,DSG,ST MICHAELS CATHOLIC COLLEGE,"4,173.13",AC & FREE - MSTREAM,STATEMENTED FEES,2103302187,1000071000
04.08.2021,DSG,ANGEL OAK ACADEMY,"2,625.64",AC & FREE - MSTREAM,STATEMENTED FEES,2103302067,1000075379
04.08.2021,DSG,ANGEL OAK ACADEMY,"2,625.64",AC & FREE - MSTREAM,STATEMENTED FEES,2103302071,1000075379
04.08.2021,DSG,ANGEL OAK ACADEMY,"3,938.46",AC & FREE - MSTREAM,STATEMENTED FEES,2103302068,1000075379
04.08.2021,DSG,ANGEL OAK ACADEMY,"3,938.46",AC & FREE - MSTREAM,STATEMENTED FEES,2103302069,1000075379
04.08.2021,DSG,ANGEL OAK ACADEMY,"3,938.46",AC & FREE - MSTREAM,STATEMENTED FEES,2103302072,1000075379
04.08.2021,DSG,ANGEL OAK ACADEMY,"3,938.46",AC & FREE - MSTREAM,STATEMENTED FEES,2103302074,1000075379
04.08.2021,DSG,ANGEL OAK ACADEMY,"4,173.13",AC & FREE - MSTREAM,STATEMENTED FEES,2103302070,1000075379
04.08.2021,DSG,ANGEL OAK ACADEMY,"4,173.13",AC & FREE - MSTREAM,STATEMENTED FEES,2103302073,1000075379
04.08.2021,DSG,HARRIS BOYS ACADEMY EAST DULWICH,656.41,AC & FREE - MSTREAM,STATEMENTED FEES,2103302137,1000079700
04.08.2021,DSG,HARRIS BOYS ACADEMY EAST DULWICH,"1,312.82",AC & FREE - MSTREAM,STATEMENTED FEES,2103302134,1000079700
04.08.2021,DSG,HARRIS BOYS ACADEMY EAST DULWICH,"1,312.82",AC & FREE - MSTREAM,STATEMENTED FEES,2103302135,1000079700
04.08.2021,DSG,HARRIS BOYS ACADEMY EAST DULWICH,"2,625.64",AC & FREE - MSTREAM,STATEMENTED FEES,2103302131,1000079700
04.08.2021,DSG,HARRIS BOYS ACADEMY EAST DULWICH,"2,625.64",AC & FREE - MSTREAM,STATEMENTED FEES,2103302136,1000079700
04.08.2021,DSG,HARRIS BOYS ACADEMY EAST DULWICH,"2,953.85",AC & FREE - MSTREAM,STATEMENTED FEES,2103302138,1000079700
04.08.2021,DSG,HARRIS BOYS ACADEMY EAST DULWICH,"4,173.13",AC & FREE - MSTREAM,STATEMENTED FEES,2103302132,1000079700
04.08.2021,DSG,HARRIS BOYS ACADEMY EAST DULWICH,"4,173.13",AC & FREE - MSTREAM,STATEMENTED FEES,2103302133,1000079700
04.08.2021,DSG,HARRIS PRIMARY ACADEMY EAST DULWICH,"1,312.82",AC & FREE - MSTREAM,STATEMENTED FEES,2103302141,1000080271
04.08.2021,DSG,HARRIS PRIMARY ACADEMY EAST DULWICH,"2,625.64",AC & FREE - MSTREAM,STATEMENTED FEES,2103302139,1000080271
04.08.2021,DSG,HARRIS PRIMARY ACADEMY EAST DULWICH,"2,625.64",AC & FREE - MSTREAM,STATEMENTED FEES,2103302140,1000080271
04.08.2021,DSG,HARRIS PRIMARY ACADEMY EAST DULWICH,"2,625.64",AC & FREE - MSTREAM,STATEMENTED FEES,2103302143,1000080271
04.08.2021,DSG,HARRIS PRIMARY ACADEMY EAST DULWICH,"2,625.64",AC & FREE - MSTREAM,STATEMENTED FEES,2103302145,1000080271
04.08.2021,DSG,HARRIS PRIMARY ACADEMY EAST DULWICH,"3,938.46",AC & FREE - MSTREAM,STATEMENTED FEES,2103302144,1000080271
04.08.2021,DSG,HARRIS PRIMARY ACADEMY EAST DULWICH,"4,173.13",AC & FREE - MSTREAM,STATEMENTED FEES,2103302142,1000080271
04.08.2021,DSG,THE CHARTER SCHOOL EDUCATIONAL TRUST,717.95,AC & FREE - MSTREAM,STATEMENTED FEES,2103302211,1000064975
04.08.2021,DSG,THE CHARTER SCHOOL EDUCATIONAL TRUST,"1,312.82",AC & FREE - MSTREAM,STATEMENTED FEES,2103302213,1000064975
04.08.2021,DSG,THE CHARTER SCHOOL EDUCATIONAL TRUST,"1,312.82",AC & FREE - MSTREAM,STATEMENTED FEES,2103302214,1000064975
04.08.2021,DSG,THE CHARTER SCHOOL EDUCATIONAL TRUST,"1,312.82",AC & FREE - MSTREAM,STATEMENTED FEES,2103302218,1000064975
04.08.2021,DSG,THE CHARTER SCHOOL EDUCATIONAL TRUST,"1,312.82",AC & FREE - MSTREAM,STATEMENTED FEES,2103302224,1000064975
04.08.2021,DSG,THE CHARTER SCHOOL EDUCATIONAL TRUST,"1,312.82",AC & FREE - MSTREAM,STATEMENTED FEES,2103302230,1000064975
04.08.2021,DSG,THE CHARTER SCHOOL EDUCATIONAL TRUST,"1,312.82",AC & FREE - MSTREAM,STATEMENTED FEES,2103302233,1000064975
04.08.2021,DSG,THE CHARTER SCHOOL EDUCATIONAL TRUST,"1,312.82",AC & FREE - MSTREAM,STATEMENTED FEES,2103302234,1000064975
04.08.2021,DSG,THE CHARTER SCHOOL EDUCATIONAL TRUST,"1,312.82",AC & FREE - MSTREAM,STATEMENTED FEES,2103302238,1000064975
04.08.2021,DSG,THE CHARTER SCHOOL EDUCATIONAL TRUST,"1,435.90",AC & FREE - MSTREAM,STATEMENTED FEES,2103302210,1000064975
04.08.2021,DSG,THE CHARTER SCHOOL EDUCATIONAL TRUST,"1,890.95",AC & FREE - MSTREAM,STATEMENTED FEES,2103302212,1000064975
04.08.2021,DSG,THE CHARTER SCHOOL EDUCATIONAL TRUST,"2,625.64",AC & FREE - MSTREAM,STATEMENTED FEES,2103302216,1000064975
04.08.2021,DSG,THE CHARTER SCHOOL EDUCATIONAL TRUST,"2,625.64",AC & FREE - MSTREAM,STATEMENTED FEES,2103302217,1000064975
04.08.2021,DSG,THE CHARTER SCHOOL EDUCATIONAL TRUST,"2,625.64",AC & FREE - MSTREAM,STATEMENTED FEES,2103302219,1000064975
04.08.2021,DSG,THE CHARTER SCHOOL EDUCATIONAL TRUST,"2,625.64",AC & FREE - MSTREAM,STATEMENTED FEES,2103302220,1000064975
04.08.2021,DSG,THE CHARTER SCHOOL EDUCATIONAL TRUST,"2,625.64",AC & FREE - MSTREAM,STATEMENTED FEES,2103302226,1000064975
04.08.2021,DSG,THE CHARTER SCHOOL EDUCATIONAL TRUST,"3,938.46",AC & FREE - MSTREAM,STATEMENTED FEES,2103302215,1000064975
04.08.2021,DSG,THE CHARTER SCHOOL EDUCATIONAL TRUST,"3,938.46",AC & FREE - MSTREAM,STATEMENTED FEES,2103302235,1000064975
04.08.2021,DSG,THE CHARTER SCHOOL EDUCATIONAL TRUST,"3,938.46",AC & FREE - MSTREAM,STATEMENTED FEES,2103302236,1000064975
04.08.2021,DSG,THE CHARTER SCHOOL EDUCATIONAL TRUST,"4,173.13",AC & FREE - MSTREAM,STATEMENTED FEES,2103302221,1000064975
04.08.2021,DSG,THE CHARTER SCHOOL EDUCATIONAL TRUST,"4,173.13",AC & FREE - MSTREAM,STATEMENTED FEES,2103302222,1000064975
04.08.2021,DSG,THE CHARTER SCHOOL EDUCATIONAL TRUST,"4,173.13",AC & FREE - MSTREAM,STATEMENTED FEES,2103302223,1000064975
04.08.2021,DSG,THE CHARTER SCHOOL EDUCATIONAL TRUST,"4,173.13",AC & FREE - MSTREAM,STATEMENTED FEES,2103302227,1000064975
04.08.2021,DSG,THE CHARTER SCHOOL EDUCATIONAL TRUST,"4,173.13",AC & FREE - MSTREAM,STATEMENTED FEES,2103302228,1000064975
04.08.2021,DSG,THE CHARTER SCHOOL EDUCATIONAL TRUST,"4,173.13",AC & FREE - MSTREAM,STATEMENTED FEES,2103302229,1000064975
04.08.2021,DSG,THE CHARTER SCHOOL EDUCATIONAL TRUST,"4,173.13",AC & FREE - MSTREAM,STATEMENTED FEES,2103302232,1000064975
04.08.2021,DSG,THE CHARTER SCHOOL EDUCATIONAL TRUST,"4,964.10",AC & FREE - MSTREAM,STATEMENTED FEES,2103302225,1000064975
04.08.2021,DSG,THE CHARTER SCHOOL EDUCATIONAL TRUST,"4,964.10",AC & FREE - MSTREAM,STATEMENTED FEES,2103302231,1000064975
04.08.2021,DSG,THE CHARTER SCHOOL EDUCATIONAL TRUST,"4,964.10",AC & FREE - MSTREAM,STATEMENTED FEES,2103302237,1000064975
04.08.2021,DSG,SURREY SQUARE PRIMARY SCHOOL,"1,312.82",AC & FREE - MSTREAM,STATEMENTED FEES,2103302200,1000082648
04.08.2021,DSG,SURREY SQUARE PRIMARY SCHOOL,"2,625.64",AC & FREE - MSTREAM,STATEMENTED FEES,2103302197,1000082648
04.08.2021,DSG,SURREY SQUARE PRIMARY SCHOOL,"2,625.64",AC & FREE - MSTREAM,STATEMENTED FEES,2103302201,1000082648
04.08.2021,DSG,SURREY SQUARE PRIMARY SCHOOL,"2,625.64",AC & FREE - MSTREAM,STATEMENTED FEES,2103302204,1000082648
04.08.2021,DSG,SURREY SQUARE PRIMARY SCHOOL,"3,938.46",AC & FREE - MSTREAM,STATEMENTED FEES,2103302196,1000082648
04.08.2021,DSG,SURREY SQUARE PRIMARY SCHOOL,"3,938.46",AC & FREE - MSTREAM,STATEMENTED FEES,2103302198,1000082648
04.08.2021,DSG,SURREY SQUARE PRIMARY SCHOOL,"3,938.46",AC & FREE - MSTREAM,STATEMENTED FEES,2103302203,1000082648
04.08.2021,DSG,SURREY SQUARE PRIMARY SCHOOL,"3,938.46",AC & FREE - MSTREAM,STATEMENTED FEES,2103302205,1000082648
04.08.2021,DSG,SURREY SQUARE PRIMARY SCHOOL,"3,938.46",AC & FREE - MSTREAM,STATEMENTED FEES,2103302206,1000082648
04.08.2021,DSG,SURREY SQUARE PRIMARY SCHOOL,"3,938.46",AC & FREE - MSTREAM,STATEMENTED FEES,2103302207,1000082648
04.08.2021,DSG,SURREY SQUARE PRIMARY SCHOOL,"3,938.46",AC & FREE - MSTREAM,STATEMENTED FEES,2103302208,1000082648
04.08.2021,DSG,SURREY SQUARE PRIMARY SCHOOL,"3,938.46",AC & FREE - MSTREAM,STATEMENTED FEES,2103302209,1000082648
04.08.2021,DSG,SURREY SQUARE PRIMARY SCHOOL,"4,173.13",AC & FREE - MSTREAM,STATEMENTED FEES,2103302199,1000082648
04.08.2021,DSG,SURREY SQUARE PRIMARY SCHOOL,"4,173.13",AC & FREE - MSTREAM,STATEMENTED FEES,2103302202,1000082648
04.08.2021,DSG,THE COMPLETE WORKS INDEPENDENT SCHOOL,"3,075.00",AC & FREE - RB/UNIT,STATEMENTED FEES,2103302239,1000033256
04.08.2021,DSG,THE COMPLETE WORKS INDEPENDENT SCHOOL,"7,175.00",AC & FREE - RB/UNIT,STATEMENTED FEES,2103302240,1000033256
04.08.2021,DSG,THE COMPLETE WORKS INDEPENDENT SCHOOL,"7,175.00",AC & FREE - RB/UNIT,STATEMENTED FEES,2103302241,1000033256
04.08.2021,DSG,THE COMPLETE WORKS INDEPENDENT SCHOOL,"7,175.00",AC & FREE - RB/UNIT,STATEMENTED FEES,2103302242,1000033256
04.08.2021,DSG,THE COMPLETE WORKS INDEPENDENT SCHOOL,"7,175.00",AC & FREE - RB/UNIT,STATEMENTED FEES,2103302243,1000033256
04.08.2021,DSG,FLEET TUTORS,"1,482.00",AC & FREE - RB/UNIT,STATEMENTED FEES,2103302123,1000044820
04.08.2021,DSG,FLEET TUTORS,"1,829.00",AC & FREE - RB/UNIT,STATEMENTED FEES,2103302130,1000044820
04.08.2021,DSG,FLEET TUTORS,"1,884.00",AC & FREE - RB/UNIT,STATEMENTED FEES,2103302120,1000044820
04.08.2021,DSG,FLEET TUTORS,"1,884.00",AC & FREE - RB/UNIT,STATEMENTED FEES,2103302121,1000044820
04.08.2021,DSG,FLEET TUTORS,"1,884.00",AC & FREE - RB/UNIT,STATEMENTED FEES,2103302124,1000044820
04.08.2021,DSG,FLEET TUTORS,"2,147.00",AC & FREE - RB/UNIT,STATEMENTED FEES,2103302128,1000044820
04.08.2021,DSG,FLEET TUTORS,"2,295.00",AC & FREE - RB/UNIT,STATEMENTED FEES,2103302126,1000044820
04.08.2021,DSG,FLEET TUTORS,"2,295.00",AC & FREE - RB/UNIT,STATEMENTED FEES,2103302127,1000044820
04.08.2021,DSG,FLEET TUTORS,"2,718.00",AC & FREE - RB/UNIT,STATEMENTED FEES,2103302122,1000044820
04.08.2021,DSG,FLEET TUTORS,"3,076.00",AC & FREE - RB/UNIT,STATEMENTED FEES,2103302129,1000044820
04.08.2021,DSG,FLEET TUTORS,"3,162.00",AC & FREE - RB/UNIT,STATEMENTED FEES,2103302125,1000044820
04.08.2021,DSG,CARBONE CLINIC UK LTD,900,AC & FREE - RB/UNIT,STATEMENTED FEES,2103302106,1000080937
04.08.2021,DSG,CARBONE CLINIC UK LTD,"1,612.50",AC & FREE - RB/UNIT,STATEMENTED FEES,2103302104,1000080937
04.08.2021,DSG,CARBONE CLINIC UK LTD,"2,250.00",AC & FREE - RB/UNIT,STATEMENTED FEES,2103302103,1000080937
04.08.2021,DSG,CARBONE CLINIC UK LTD,"5,550.00",AC & FREE - RB/UNIT,STATEMENTED FEES,2103302105,1000080937
04.08.2021,DSG,ASPIRE JC LTD,"4,800.00",AC & FREE - RB/UNIT,STATEMENTED FEES,2103302102,1000083919
04.08.2021,DSG,CRESSEY OASIS EDUCATION LTD,"20,701.97",INDEP MAINSTREAM,STATEMENTED FEES,2103302109,1000068133
04.08.2021,DSG,CRESSEY OASIS EDUCATION LTD,"22,803.80",INDEP MAINSTREAM,STATEMENTED FEES,2103302108,1000068133
04.08.2021,DSG,CRESSEY OASIS EDUCATION LTD,"23,262.66",INDEP MAINSTREAM,STATEMENTED FEES,2103302107,1000068133
04.08.2021,DSG,CRESSEY OASIS EDUCATION LTD,"23,559.96",INDEP MAINSTREAM,STATEMENTED FEES,2103302110,1000068133
04.08.2021,DSG,PECULIAR CARE HOMES LTD,"3,590.00",INDEP MAINSTREAM,STATEMENTED FEES,2103302154,1000076991
04.08.2021,DSG,PARAYHOUSE SCHOOL,"6,217.00",INDEP MAINSTREAM,STATEMENTED FEES,2103302149,1000011369
04.08.2021,DSG,PARAYHOUSE SCHOOL,"6,217.00",INDEP MAINSTREAM,STATEMENTED FEES,2103302150,1000011369
04.08.2021,DSG,PARAYHOUSE SCHOOL,"6,217.00",INDEP MAINSTREAM,STATEMENTED FEES,2103302151,1000011369
04.08.2021,DSG,PARAYHOUSE SCHOOL,"6,217.00",INDEP MAINSTREAM,STATEMENTED FEES,2103302152,1000011369
04.08.2021,DSG,PARAYHOUSE SCHOOL,"6,217.00",INDEP MAINSTREAM,STATEMENTED FEES,2103302153,1000011369
04.08.2021,DSG,ST JAMES CE SCHOOL,"1,950.00",LBS RB / SEN UNIT,STATEMENTED FEES,2103302183,5001000070
04.08.2021,DSG,RIVERSTON SCHOOL,"11,069.50",NMSS/ INDEP SPECIAL,STATEMENTED FEES,2103302182,11213696
04.08.2021,DSG,RIVERSTON SCHOOL,"11,089.90",NMSS/ INDEP SPECIAL,STATEMENTED FEES,2103302178,11213696
04.08.2021,DSG,RIVERSTON SCHOOL,"11,207.35",NMSS/ INDEP SPECIAL,STATEMENTED FEES,2103302181,11213696
04.08.2021,DSG,RIVERSTON SCHOOL,"11,674.50",NMSS/ INDEP SPECIAL,STATEMENTED FEES,2103302176,11213696
04.08.2021,DSG,RIVERSTON SCHOOL,"12,108.88",NMSS/ INDEP SPECIAL,STATEMENTED FEES,2103302179,11213696
04.08.2021,DSG,RIVERSTON SCHOOL,"13,466.50",NMSS/ INDEP SPECIAL,STATEMENTED FEES,2103302175,11213696
04.08.2021,DSG,RIVERSTON SCHOOL,"14,056.50",NMSS/ INDEP SPECIAL,STATEMENTED FEES,2103302177,11213696
04.08.2021,DSG,RIVERSTON SCHOOL,"14,253.28",NMSS/ INDEP SPECIAL,STATEMENTED FEES,2103302180,11213696
04.08.2021,DSG,RIVERSTON SCHOOL,"16,696.50",NMSS/ INDEP SPECIAL,STATEMENTED FEES,2103302174,11213696
04.08.2021,DSG,FAIRLEY HOUSE SCHOOL,"11,200.00",NMSS/ INDEP SPECIAL,STATEMENTED FEES,2103302111,1000030807
04.08.2021,DSG,FAIRLEY HOUSE SCHOOL,"11,200.00",NMSS/ INDEP SPECIAL,STATEMENTED FEES,2103302116,1000030807
04.08.2021,DSG,FAIRLEY HOUSE SCHOOL,"11,200.00",NMSS/ INDEP SPECIAL,STATEMENTED FEES,2103302117,1000030807
04.08.2021,DSG,FAIRLEY HOUSE SCHOOL,"11,200.00",NMSS/ INDEP SPECIAL,STATEMENTED FEES,2103302119,1000030807
04.08.2021,DSG,FAIRLEY HOUSE SCHOOL,"11,368.00",NMSS/ INDEP SPECIAL,STATEMENTED FEES,2103302112,1000030807
04.08.2021,DSG,FAIRLEY HOUSE SCHOOL,"11,368.00",NMSS/ INDEP SPECIAL,STATEMENTED FEES,2103302113,1000030807
04.08.2021,DSG,FAIRLEY HOUSE SCHOOL,"11,368.00",NMSS/ INDEP SPECIAL,STATEMENTED FEES,2103302114,1000030807
04.08.2021,DSG,FAIRLEY HOUSE SCHOOL,"11,368.00",NMSS/ INDEP SPECIAL,STATEMENTED FEES,2103302115,1000030807
04.08.2021,DSG,FAIRLEY HOUSE SCHOOL,"11,368.00",NMSS/ INDEP SPECIAL,STATEMENTED FEES,2103302118,1000030807
04.08.2021,DSG,ABINGDON HOUSE SCHOOL,"11,245.00",NMSS/ INDEP SPECIAL,STATEMENTED FEES,2103302064,1000072800
04.08.2021,DSG,ABINGDON HOUSE SCHOOL,"11,695.00",NMSS/ INDEP SPECIAL,STATEMENTED FEES,2103302066,1000072800
04.08.2021,DSG,ABINGDON HOUSE SCHOOL,"12,190.00",NMSS/ INDEP SPECIAL,STATEMENTED FEES,2103302065,1000072800
04.08.2021,DSG,ACORN CARE & EDUCATION LTD,"8,302.78",NON MAINTAINED EY,STATEMENTED FEES,2103302146,1000085841
04.08.2021,DSG,ACORN CARE & EDUCATION LTD,"16,333.33",NON MAINTAINED EY,STATEMENTED FEES,2103302147,1000085841
04.08.2021,DSG,NATIONAL AUTISTIC SOCIETY CARE PACK,"37,921.14",OTHER LA SPECIAL,STATEMENTED FEES,2103302148,1000020538
04.08.2021,DSG,PULSE HEALTHCARE LTD,"1,001.00",OTHER LA SPECIAL,STATEMENTED FEES,2103302170,1000035063
04.08.2021,DSG,PULSE HEALTHCARE LTD,"1,001.00",OTHER LA SPECIAL,STATEMENTED FEES,2103302171,1000035063
04.08.2021,DSG,PULSE HEALTHCARE LTD,"1,001.00",OTHER LA SPECIAL,STATEMENTED FEES,2103302172,1000035063
04.08.2021,DSG,RESOURCES FOR AUTISM,720,OTHER LA SPECIAL,STATEMENTED FEES,2103302173,1000062540
04.08.2021,DSG,WINCHMORE TUTORS LTD,504,OTHER LA SPECIAL,STATEMENTED FEES,2103302246,1000075298
04.08.2021,DSG,WINCHMORE TUTORS LTD,"1,416.00",OTHER LA SPECIAL,STATEMENTED FEES,2103302245,1000075298
04.08.2021,DSG,WINCHMORE TUTORS LTD,"1,584.00",OTHER LA SPECIAL,STATEMENTED FEES,2103302244,1000075298
04.08.2021,DSG,PROSPERO RECRUITMENT LTD,360,OTHER LA SPECIAL,STATEMENTED FEES,2103302168,1000082492
04.08.2021,DSG,PROSPERO RECRUITMENT LTD,675,OTHER LA SPECIAL,STATEMENTED FEES,2103302158,1000082492
04.08.2021,DSG,PROSPERO RECRUITMENT LTD,675,OTHER LA SPECIAL,STATEMENTED FEES,2103302159,1000082492
04.08.2021,DSG,PROSPERO RECRUITMENT LTD,675,OTHER LA SPECIAL,STATEMENTED FEES,2103302163,1000082492
04.08.2021,DSG,PROSPERO RECRUITMENT LTD,675,OTHER LA SPECIAL,STATEMENTED FEES,2103302164,1000082492
04.08.2021,DSG,PROSPERO RECRUITMENT LTD,900,OTHER LA SPECIAL,STATEMENTED FEES,2103302155,1000082492
04.08.2021,DSG,PROSPERO RECRUITMENT LTD,900,OTHER LA SPECIAL,STATEMENTED FEES,2103302162,1000082492
04.08.2021,DSG,PROSPERO RECRUITMENT LTD,900,OTHER LA SPECIAL,STATEMENTED FEES,2103302169,1000082492
04.08.2021,DSG,PROSPERO RECRUITMENT LTD,"1,102.50",OTHER LA SPECIAL,STATEMENTED FEES,2103302166,1000082492
04.08.2021,DSG,PROSPERO RECRUITMENT LTD,"1,125.00",OTHER LA SPECIAL,STATEMENTED FEES,2103302157,1000082492
04.08.2021,DSG,PROSPERO RECRUITMENT LTD,"1,125.00",OTHER LA SPECIAL,STATEMENTED FEES,2103302160,1000082492
04.08.2021,DSG,PROSPERO RECRUITMENT LTD,"1,125.00",OTHER LA SPECIAL,STATEMENTED FEES,2103302161,1000082492
04.08.2021,DSG,PROSPERO RECRUITMENT LTD,"1,125.00",OTHER LA SPECIAL,STATEMENTED FEES,2103302165,1000082492
04.08.2021,DSG,PROSPERO RECRUITMENT LTD,"1,125.00",OTHER LA SPECIAL,STATEMENTED FEES,2103302167,1000082492
04.08.2021,EDUCATION,BLACKFRIARS SETTLEMENT,"1,000.00",ALC COMMUNITY LEARNING,GRANTS,5902480080,1013178
04.08.2021,EDUCATION,BLACKFRIARS SETTLEMENT,"1,000.00",ALC COMMUNITY LEARNING,GRANTS,5902480086,1013178
04.08.2021,EDUCATION,BLACKFRIARS SETTLEMENT,"1,250.00",ALC COMMUNITY LEARNING,GRANTS,5902480087,1013178
04.08.2021,EDUCATION,BLACKFRIARS SETTLEMENT,"2,500.00",ALC COMMUNITY LEARNING,GRANTS,5902480073,1013178
04.08.2021,EDUCATION,MIME CONSULTING LTD,666.67,ALC MANAGEMENT AND SUPPORT,PROFESSIONAL FEES,5902480071,1000057079
04.08.2021,EDUCATION,MIME CONSULTING LTD,"6,666.66",ALC MANAGEMENT AND SUPPORT,PROFESSIONAL FEES,5902480071,1000057079
04.08.2021,ENVIRONMENT AND LEISURE,SYDENHAM HILL T&RA,"1,343.02",CAPITAL PS (LEISURE),CAPITAL GRANTS,5902480145,1976617
04.08.2021,ENVIRONMENT AND LEISURE,INTO SERVICES LONDON LTD,800,CAPITAL PS (LEISURE),CONST'N MAIN CONTRACT - NON CERTIFICATED,5902480114,1000059328
04.08.2021,ENVIRONMENT AND LEISURE,SOILTECHNICS LTD,"9,495.00",CAPITAL PS (LEISURE),CONSTRUCTION FEES  - EXTERNAL,5902480129,1000014274
04.08.2021,ENVIRONMENT DIRECTORATE,BOC LTD,271.96,ENGINEERING CRAFTS,MATERIALS,5902480154,1001589
04.08.2021,ENVIRONMENT DIRECTORATE,GREENHAM TRADING LTD,"2,078.54",ESTATE CLEANING-GENERAL,MATERIALS,5902480095,1000006610
04.08.2021,ENVIRONMENT DIRECTORATE,SOUTHWARK NEWSPAPER LTD,276,HIGHWAYS DEVELOPMENT,MARKETING & PUBLICITY SERVICES,5902480084,1556957
04.08.2021,ENVIRONMENT DIRECTORATE,SOUTHWARK NEWSPAPER LTD,300,HIGHWAYS DEVELOPMENT,MARKETING & PUBLICITY SERVICES,5902480074,1556957
04.08.2021,ENVIRONMENT DIRECTORATE,SOUTHWARK NEWSPAPER LTD,468,HIGHWAYS DEVELOPMENT,MARKETING & PUBLICITY SERVICES,5902480082,1556957
04.08.2021,ENVIRONMENT DIRECTORATE,SOUTHWARK NEWSPAPER LTD,648,HIGHWAYS DEVELOPMENT,MARKETING & PUBLICITY SERVICES,5902480081,1556957
04.08.2021,ENVIRONMENT DIRECTORATE,SHARPE PRITCHARD LLP,"1,800.00",PFI PROJECT,PAYMENTS FOR LEGAL SERVICES,5902480159,1790085
04.08.2021,ENVIRONMENT DIRECTORATE,REDACTED PERSONAL DATA,536,RESIDENTIAL SERVICES,MANDATORY STATUTORY FEES & CHARGES,REDACTED,REDACTED
04.08.2021,F & C S EXCLUDING CORPORATE BUDGETS,CAPITA BUSINESS SERVICES LTD,"2,080.00",ADMINISTRATIVE SUPPORT,EQUIPMENT PURCHASE & REPAIR,5902480092,1000006291
04.08.2021,F & C S EXCLUDING CORPORATE BUDGETS,MRO PEOPLE LTD,850,ADMINISTRATIVE SUPPORT,TRAINING,5902480089,1000083017
04.08.2021,F & C S EXCLUDING CORPORATE BUDGETS,BDO LLP,"2,083.33",RISK ADMIN,PROFESSIONAL FEES,5902480128,1000057898
04.08.2021,F & C S EXCLUDING CORPORATE BUDGETS,REDACTED PERSONAL DATA,500,SESS,OTHER PAYMENTS FOR CLIENTS,REDACTED,REDACTED
04.08.2021,F & C S EXCLUDING CORPORATE BUDGETS,REDACTED PERSONAL DATA,500,SESS,OTHER PAYMENTS FOR CLIENTS,REDACTED,REDACTED
04.08.2021,F & C S EXCLUDING CORPORATE BUDGETS,REDACTED PERSONAL DATA,500,SESS,OTHER PAYMENTS FOR CLIENTS,REDACTED,REDACTED
04.08.2021,F & C S EXCLUDING CORPORATE BUDGETS,REDACTED PERSONAL DATA,500,SESS,OTHER PAYMENTS FOR CLIENTS,REDACTED,REDACTED
04.08.2021,F & C S EXCLUDING CORPORATE BUDGETS,REDACTED PERSONAL DATA,500,SESS,OTHER PAYMENTS FOR CLIENTS,REDACTED,REDACTED
04.08.2021,F & C S EXCLUDING CORPORATE BUDGETS,REDACTED PERSONAL DATA,500,SESS,OTHER PAYMENTS FOR CLIENTS,REDACTED,REDACTED
04.08.2021,F & C S EXCLUDING CORPORATE BUDGETS,REDACTED PERSONAL DATA,500,SESS,OTHER PAYMENTS FOR CLIENTS,REDACTED,REDACTED
04.08.2021,F & C S EXCLUDING CORPORATE BUDGETS,REDACTED PERSONAL DATA,500,SESS,OTHER PAYMENTS FOR CLIENTS,REDACTED,REDACTED
04.08.2021,F & C S EXCLUDING CORPORATE BUDGETS,REDACTED PERSONAL DATA,500,SESS,OTHER PAYMENTS FOR CLIENTS,REDACTED,REDACTED
04.08.2021,F & C S EXCLUDING CORPORATE BUDGETS,REDACTED PERSONAL DATA,500,SESS,OTHER PAYMENTS FOR CLIENTS,REDACTED,REDACTED
04.08.2021,F & C S EXCLUDING CORPORATE BUDGETS,REDACTED PERSONAL DATA,500,SESS,OTHER PAYMENTS FOR CLIENTS,REDACTED,REDACTED
04.08.2021,F & C S EXCLUDING CORPORATE BUDGETS,REDACTED PERSONAL DATA,500,SESS,OTHER PAYMENTS FOR CLIENTS,REDACTED,REDACTED
04.08.2021,F & C S EXCLUDING CORPORATE BUDGETS,REDACTED PERSONAL DATA,500,SESS,OTHER PAYMENTS FOR CLIENTS,REDACTED,REDACTED
04.08.2021,F & C S EXCLUDING CORPORATE BUDGETS,REDACTED PERSONAL DATA,500,SESS,OTHER PAYMENTS FOR CLIENTS,REDACTED,REDACTED
04.08.2021,F & C S EXCLUDING CORPORATE BUDGETS,REDACTED PERSONAL DATA,500,SESS,OTHER PAYMENTS FOR CLIENTS,REDACTED,REDACTED
04.08.2021,F & C S EXCLUDING CORPORATE BUDGETS,REDACTED PERSONAL DATA,500,SESS,OTHER PAYMENTS FOR CLIENTS,REDACTED,REDACTED
04.08.2021,F & C S EXCLUDING CORPORATE BUDGETS,REDACTED PERSONAL DATA,500,SESS,OTHER PAYMENTS FOR CLIENTS,REDACTED,REDACTED
04.08.2021,HOUSING,BRIDGEWATER ROOFING CONTRACTORS LTD,"96,152.29",BRC,I-WORLD CONTRACTORS HOLDING ACCOUNT,2103302248,3000001482
04.08.2021,HOUSING,PRB ESTATES LTD,"28,681.30",PRBE,I-WORLD CONTRACTORS HOLDING ACCOUNT,2103302249,3000001691
04.08.2021,HOUSING HRA,GUILDMORE LTD,"211,731.55",CAPITAL PS (HRA),CONSTRUCTION MAIN CONTRACT -CERTIFICATED,2103301470,3000002150
04.08.2021,HOUSING HRA,HOARE LEA CONSULTING ENGINEERS,"2,965.82",CAPITAL PS (REGEN),CONSTRUCTION FEES  - EXTERNAL,5902479977,1000056233
04.08.2021,HOUSING HRA,MARTIN ARNOLD LTD,"12,446.23",CAPITAL PS (REGEN),CONSTRUCTION SITE COSTS,5902480142,1000076993
04.08.2021,LEISURE DIRECTORATE,BEATRICE BAUMGARTNER-COHEN,360,DAMILOLA TAYLOR CENTRE,MISCELLANEOUS EXPENSES,5902480140,1000083184
04.08.2021,LEISURE DIRECTORATE,COMPLETE SERVICES LONDON LTD,"19,900.00",FACILITIES MAINTENANCE,BUILDING R&M,2103302247,3000002160
04.08.2021,PUBLIC HEALTH,REDACTED PERSONAL DATA,500,COVID-19 CONTROL OUTBREAK MGMNT.FUND,OTHER PAYMENTS FOR CLIENTS,REDACTED,REDACTED
04.08.2021,PUBLIC HEALTH,REDACTED PERSONAL DATA,500,COVID-19 CONTROL OUTBREAK MGMNT.FUND,OTHER PAYMENTS FOR CLIENTS,REDACTED,REDACTED
04.08.2021,PUBLIC HEALTH,ELITE GUARDING (UK) LTD,"10,825.00",COVID-19 MASS RAPID TESTING,EXTERNAL AGENCIES AND BODIES,5902480062,1000086183
04.08.2021,REGENERATION,STANBURY BUILDING SERVICES LTD,325,CPHA  MANAGED PROPERTIES,BUILDING R&M,5902480167,1000078207
04.08.2021,REGENERATION,STANBURY BUILDING SERVICES LTD,600,MISC INDUSTRIAL PROPERTIES,BUILDING R&M,5902480096,1000078207
04.08.2021,RESIDENT SERVICES,SILK & MACKMAN SERVICES LTD,"3,091.35",EXTRA CARE,SECURITY SERVICES,2103301477,3000001590
04.08.2021,RESIDENT SERVICES,WILLOW ESTATE AGENTS (LONDON) LTD,"7,020.00",TA PLACEMENTS,EXTERNAL AGENCIES AND BODIES,5902480118,1000060607
04.08.2021,RESIDENT SERVICES HGF,CHRIS ANTHONY ESTATES,"2,381.94",HOMELESS PROJECTS,GRANTS,5902480077,1000086346
04.08.2021,RESIDENT SERVICES HGF,REDACTED PERSONAL DATA,"3,060.00",NIGHTLY TA (NSC),EXTERNAL AGENCIES AND BODIES,REDACTED,REDACTED
04.08.2021,RESIDENT SERVICES HGF,SHUTTLEWORTH (UK) LTD,855,NIGHTLY TA (NSC),EXTERNAL AGENCIES AND BODIES,5902480165,1000056468
04.08.2021,RESIDENT SERVICES HGF,TAAKSVALE HOUSING LTD,"66,752.00",NIGHTLY TA (NSC),EXTERNAL AGENCIES AND BODIES,5902480146,1000073665
04.08.2021,RESIDENT SERVICES HGF,NORBURY PROPERTY SERVICES (LONDON) LTD,"27,068.50",NIGHTLY TA (NSC),EXTERNAL AGENCIES AND BODIES,5902480151,1000075566
04.08.2021,RESIDENT SERVICES HGF,ZFA ACCOMMODATION LTD,"20,951.00",NIGHTLY TA (NSC),EXTERNAL AGENCIES AND BODIES,5902480103,1000082620
04.08.2021,RESIDENT SERVICES HGF,SOUTH OF THE RIVER INVESTMENTS LTD,"40,687.75",PSL PLACEMENTS,EXTERNAL AGENCIES AND BODIES,5902480138,1000073638
04.08.2021,RESIDENT SERVICES HGF,BETHEL ROCK LTD,640,PSL PLACEMENTS,EXTERNAL AGENCIES AND BODIES,5902480100,1000080864
04.08.2021,RESIDENT SERVICES HGF,BETHEL ROCK LTD,"21,613.41",PSL PLACEMENTS,EXTERNAL AGENCIES AND BODIES,5902480093,1000080864
04.08.2021,RESIDENT SERVICES HGF,BETHEL ROCK LTD,"4,000.00",PSL PLACEMENTS,GRANTS,5902480101,1000080864
04.08.2021,SBS SUPPORT,TOTALMOBILE LTD,"8,000.00",ICT & COMMUNICATIONS,SOFTWARE,5902479520,1000085502
04.08.2021,STRATEGIC FINANCING BUDGETS,GREATER LONDON AUTHORITY,"152,654.90",LONDON PENSION FUND,LEVIES,5902480104,1000015827
05.08.2021,ADULT SOCIAL CARE,THE RIVERSIDE GROUP LTD,312.62,APPOINTEESHIPS,OTHER PAYMENTS FOR CLIENTS,5902480211,1000069625
05.08.2021,ADULT SOCIAL CARE,THE RIVERSIDE GROUP LTD,312.62,APPOINTEESHIPS,OTHER PAYMENTS FOR CLIENTS,5902480218,1000069625
05.08.2021,ADULT SOCIAL CARE,THE RIVERSIDE GROUP LTD,312.62,APPOINTEESHIPS,OTHER PAYMENTS FOR CLIENTS,5902480234,1000069625
05.08.2021,ADULT SOCIAL CARE,PHS GROUP PLC,422.82,FRED FRANCIS CENTRE,PREMISES CLEANING,5902480251,1851993
05.08.2021,ADULT SOCIAL CARE,ELEANOR NURSING AND SOCIAL CARE LTD,"1,003.40",LD LTS 18-64,HOMECARE - SPOT,2103302408,1000081695
05.08.2021,ADULT SOCIAL CARE,ELEANOR NURSING AND SOCIAL CARE LTD,"1,090.04",LD LTS 18-64,SUPPORTED LIVING,2103302415,1000081695
05.08.2021,ADULT SOCIAL CARE,SIGNIS LTD,"8,700.00",PDQ,SUBSCRIPTIONS,5902480287,1000075765
05.08.2021,ADULT SOCIAL CARE,ELEANOR NURSING AND SOCIAL CARE LTD,796.08,PHY LTS 18-64,HOMECARE - C&V,2103302410,1000081695
05.08.2021,ADULT SOCIAL CARE,PROFAD CARE AGENCY,349.92,PHY LTS 18-64,HOMECARE - SPOT,2103302417,1000079032
05.08.2021,ADULT SOCIAL CARE,ELEANOR NURSING AND SOCIAL CARE LTD,865,PHY LTS 18-64,HOMECARE - SPOT,2103302413,1000081695
05.08.2021,ADULT SOCIAL CARE,ELEANOR NURSING AND SOCIAL CARE LTD,"1,734.90",PHY LTS 18-64,HOMECARE - SPOT,2103302409,1000081695
05.08.2021,ADULT SOCIAL CARE,ELEANOR NURSING AND SOCIAL CARE LTD,"3,460.00",PHY LTS 18-64,HOMECARE - SPOT,2103302414,1000081695
05.08.2021,ADULT SOCIAL CARE,ELEANOR NURSING AND SOCIAL CARE LTD,"1,090.04",PHY LTS 65+,HOMECARE - SPOT,2103302412,1000081695
05.08.2021,ADULT SOCIAL CARE,RADHA CONSULTING LTD,720,SAFEGUARDING & DOLS,OTHER CONTRACTORS,5902479730,1000061154
05.08.2021,ADULT SOCIAL CARE,CONTACT PROFESSIONALS,285,SPECIALIST CARE,SECTION 17 PAYMENTS TO AGENCIES/CARERS,2103302356,1000057263
05.08.2021,ADULT SOCIAL CARE,CONTACT PROFESSIONALS,285,SPECIALIST CARE,SECTION 17 PAYMENTS TO AGENCIES/CARERS,2103302379,1000057263
05.08.2021,ADULT SOCIAL CARE,CONTACT PROFESSIONALS,285,SPECIALIST CARE,SECTION 17 PAYMENTS TO AGENCIES/CARERS,2103302385,1000057263
05.08.2021,ADULT SOCIAL CARE,CONTACT PROFESSIONALS,380,SPECIALIST CARE,SECTION 17 PAYMENTS TO AGENCIES/CARERS,2103302303,1000057263
05.08.2021,ADULT SOCIAL CARE,CONTACT PROFESSIONALS,798,SPECIALIST CARE,SECTION 17 PAYMENTS TO AGENCIES/CARERS,2103302352,1000057263
05.08.2021,ASSET MANAGEMENT,FRANKLYN SHAW ASSOCIATES LTD,590.61,DISREPAIR,PAYMENTS FOR LEGAL SERVICES,5902480400,1000068289
05.08.2021,ASSET MANAGEMENT,FRANKLYN SHAW ASSOCIATES LTD,630.45,DISREPAIR,PAYMENTS FOR LEGAL SERVICES,5902480386,1000068289
05.08.2021,ASSET MANAGEMENT,FRANKLYN SHAW ASSOCIATES LTD,924.63,DISREPAIR,PAYMENTS FOR LEGAL SERVICES,5902480391,1000068289
05.08.2021,ASSET MANAGEMENT,FRANKLYN SHAW ASSOCIATES LTD,"1,262.00",DISREPAIR,PAYMENTS FOR LEGAL SERVICES,5902480392,1000068289
05.08.2021,ASSET MANAGEMENT,FRANKLYN SHAW ASSOCIATES LTD,"1,522.10",DISREPAIR,PAYMENTS FOR LEGAL SERVICES,5902480380,1000068289
05.08.2021,ASSET MANAGEMENT,FRANKLYN SHAW ASSOCIATES LTD,"2,298.76",DISREPAIR,PAYMENTS FOR LEGAL SERVICES,5902480384,1000068289
05.08.2021,ASSET MANAGEMENT,FRANKLYN SHAW ASSOCIATES LTD,"2,391.28",DISREPAIR,PAYMENTS FOR LEGAL SERVICES,5902480395,1000068289
05.08.2021,ASSET MANAGEMENT,FRANKLYN SHAW ASSOCIATES LTD,"2,445.80",DISREPAIR,PAYMENTS FOR LEGAL SERVICES,5902480382,1000068289
05.08.2021,ASSET MANAGEMENT,FRANKLYN SHAW ASSOCIATES LTD,"2,570.65",DISREPAIR,PAYMENTS FOR LEGAL SERVICES,5902480397,1000068289
05.08.2021,ASSET MANAGEMENT,CURTINS,"7,250.00",HIP MAJOR WORKS,OTHER R&M,5902480064,1000085965
05.08.2021,ASSET MANAGEMENT,PROPERTY FACILITIES GROUP PLC,"24,811.39",MAJOR REPAIRS,HEATING - INDIVIDUAL SYSTEM REPAIR,2103299288,3000001420
05.08.2021,CENTRAL FUNCTIONS,CLYDE & CO,"2,009.00",COMMERCIAL PROPERTIES,SOLICITORS FRAMEWORK LEGAL SERVICES,5902480298,1000067838
05.08.2021,CENTRAL FUNCTIONS,1ST ACE SECURITY LTD,"49,392.00",LEDBURY ESTATE,SECURITY SERVICES,5902479459,1000006992
05.08.2021,CHIEF EXECUTIVE,CURRIE & BROWN UK LTD,"6,035.00",CAPITAL PS (REGEN),CONSTRUCTION,5902479456,1000033455
05.08.2021,CHIEF EXECUTIVE,CONSTRUCTION DESIGN PRO LTD,"6,630.00",CAPITAL PS (REGEN),CONSTRUCTION FEES - ENGINEER,5902479420,1000087079
05.08.2021,CHIEF EXECUTIVE'S OFFICE,J C CONSULTANT SERVICES LTD,"11,011.00",CHIEF EXECUTIVE'S OFFICE,EXTERNAL AGENCIES AND BODIES,5902479716,1000042476
05.08.2021,CHIEF EXECUTIVE'S OFFICE,J C CONSULTANT SERVICES LTD,"26,026.00",CHIEF EXECUTIVE'S OFFICE,EXTERNAL AGENCIES AND BODIES,5902480378,1000042476
05.08.2021,CHILDREN AND FAMILIES,CLIFTON CHILDRENS SOCIETY,"1,191.58",ADOPT LONDON SOUTH,EXTERNAL AGENCIES AND BODIES,5902480364,1000049956
05.08.2021,CHILDREN AND FAMILIES,PARENTS AND CHILDREN TOGETHER,"-3,160.00",ADOPTION SUPP FUND,EXTERNAL AGENCIES AND BODIES,5902474532,1000068128
05.08.2021,CHILDREN AND FAMILIES,PARENTS AND CHILDREN TOGETHER,"-2,307.50",ADOPTION SUPP FUND,EXTERNAL AGENCIES AND BODIES,5902474534,1000068128
05.08.2021,CHILDREN AND FAMILIES,PARENTS AND CHILDREN TOGETHER,"-2,000.00",ADOPTION SUPP FUND,EXTERNAL AGENCIES AND BODIES,5902474459,1000068128
05.08.2021,CHILDREN AND FAMILIES,PARENTS AND CHILDREN TOGETHER,"-1,509.00",ADOPTION SUPP FUND,EXTERNAL AGENCIES AND BODIES,5902474458,1000068128
05.08.2021,CHILDREN AND FAMILIES,PARENTS AND CHILDREN TOGETHER,-975,ADOPTION SUPP FUND,EXTERNAL AGENCIES AND BODIES,5902474531,1000068128
05.08.2021,CHILDREN AND FAMILIES,PARENTS AND CHILDREN TOGETHER,-497.5,ADOPTION SUPP FUND,EXTERNAL AGENCIES AND BODIES,5902474536,1000068128
05.08.2021,CHILDREN AND FAMILIES,PARENTS AND CHILDREN TOGETHER,-360,ADOPTION SUPP FUND,EXTERNAL AGENCIES AND BODIES,5902477608,1000068128
05.08.2021,CHILDREN AND FAMILIES,SOUTH LONDON & MAUDSLEY HOSPITAL,"1,443.50",ADOPTION SUPP FUND,PROFESSIONAL FEES,5902480267,1000013096
05.08.2021,CHILDREN AND FAMILIES,PARENTS AND CHILDREN TOGETHER,-497.5,ADOPTION SUPP FUND,PROFESSIONAL FEES,5902474538,1000068128
05.08.2021,CHILDREN AND FAMILIES,PARENTS AND CHILDREN TOGETHER,300,ADOPTION SUPP FUND,PROFESSIONAL FEES,5902477602,1000068128
05.08.2021,CHILDREN AND FAMILIES,PARENTS AND CHILDREN TOGETHER,300,ADOPTION SUPP FUND,PROFESSIONAL FEES,5902477603,1000068128
05.08.2021,CHILDREN AND FAMILIES,PARENTS AND CHILDREN TOGETHER,300,ADOPTION SUPP FUND,PROFESSIONAL FEES,5902478301,1000068128
05.08.2021,CHILDREN AND FAMILIES,PARENTS AND CHILDREN TOGETHER,450,ADOPTION SUPP FUND,PROFESSIONAL FEES,5902480263,1000068128
05.08.2021,CHILDREN AND FAMILIES,PARENTS AND CHILDREN TOGETHER,"4,850.00",ADOPTION SUPP FUND,PROFESSIONAL FEES,5902476841,1000068128
05.08.2021,CHILDREN AND FAMILIES,PARENTS AND CHILDREN TOGETHER,"4,950.00",ADOPTION SUPP FUND,PROFESSIONAL FEES,5902475128,1000068128
05.08.2021,CHILDREN AND FAMILIES,MAXIMUM POTENTIAL,680,ADOPTION SUPP FUND,PROFESSIONAL FEES,5902480265,1000080313
05.08.2021,CHILDREN AND FAMILIES,PLACEMENT SUPPORT LTD,440,ADOPTION SUPP FUND,PROFESSIONAL FEES,5902480199,1000085153
05.08.2021,CHILDREN AND FAMILIES,PLACEMENT SUPPORT LTD,440,ADOPTION SUPP FUND,PROFESSIONAL FEES,5902480203,1000085153
05.08.2021,CHILDREN AND FAMILIES,PLACEMENT SUPPORT LTD,480,ADOPTION SUPP FUND,PROFESSIONAL FEES,5902480202,1000085153
05.08.2021,CHILDREN AND FAMILIES,PLACEMENT SUPPORT LTD,525,ADOPTION SUPP FUND,PROFESSIONAL FEES,5902480201,1000085153
05.08.2021,CHILDREN AND FAMILIES,PLACEMENT SUPPORT LTD,840,ADOPTION SUPP FUND,PROFESSIONAL FEES,5902480200,1000085153
05.08.2021,CHILDREN AND FAMILIES,ALICE MALLORIE THERAPY SERVICE,360,ADOPTION SUPP FUND,PROFESSIONAL FEES,5902480192,1000085491
05.08.2021,CHILDREN AND FAMILIES,CHROMA THERAPIES LTD,429,ADOPTION SUPP FUND,PROFESSIONAL FEES,5902480362,1000085537
05.08.2021,CHILDREN AND FAMILIES,CHROMA THERAPIES LTD,780,ADOPTION SUPP FUND,PROFESSIONAL FEES,5902480363,1000085537
05.08.2021,CHILDREN AND FAMILIES,CHROMA THERAPIES LTD,819,ADOPTION SUPP FUND,PROFESSIONAL FEES,5902480361,1000085537
05.08.2021,CHILDREN AND FAMILIES,PLAY TOGETHER LIMITED,"1,320.00",ADOPTION SUPP FUND,PROFESSIONAL FEES,5902480343,1000085787
05.08.2021,CHILDREN AND FAMILIES,PLAY TOGETHER LIMITED,"1,800.00",ADOPTION SUPP FUND,PROFESSIONAL FEES,5902480344,1000085787
05.08.2021,CHILDREN AND FAMILIES,PLAY TOGETHER LIMITED,"1,950.00",ADOPTION SUPP FUND,PROFESSIONAL FEES,5902480346,1000085787
05.08.2021,CHILDREN AND FAMILIES,REDACTED PERSONAL DATA,266,ADOPTION SUPP FUND,PROFESSIONAL FEES,REDACTED,REDACTED
05.08.2021,CHILDREN AND FAMILIES,REDACTED PERSONAL DATA,490,ADOPTION SUPP FUND,PROFESSIONAL FEES,REDACTED,REDACTED
05.08.2021,CHILDREN AND FAMILIES,REDACTED PERSONAL DATA,507.5,ADOPTION SUPP FUND,PROFESSIONAL FEES,REDACTED,REDACTED
05.08.2021,CHILDREN AND FAMILIES,REDACTED PERSONAL DATA,298.7,ADOPTION SUPP FUND,PROFESSIONAL FEES,REDACTED,REDACTED
05.08.2021,CHILDREN AND FAMILIES,REDACTED PERSONAL DATA,360,ADOPTION SUPP FUND,PROFESSIONAL FEES,REDACTED,REDACTED
05.08.2021,CHILDREN AND FAMILIES,REDACTED PERSONAL DATA,360,ADOPTION SUPP FUND,PROFESSIONAL FEES,REDACTED,REDACTED
05.08.2021,CHILDREN AND FAMILIES,REDACTED PERSONAL DATA,420,ADOPTION SUPP FUND,PROFESSIONAL FEES,REDACTED,REDACTED
05.08.2021,CHILDREN AND FAMILIES,REDACTED PERSONAL DATA,480,ADOPTION SUPP FUND,PROFESSIONAL FEES,REDACTED,REDACTED
05.08.2021,CHILDREN AND FAMILIES,REDACTED PERSONAL DATA,480,ADOPTION SUPP FUND,PROFESSIONAL FEES,REDACTED,REDACTED
05.08.2021,CHILDREN AND FAMILIES,REDACTED PERSONAL DATA,480,ADOPTION SUPP FUND,PROFESSIONAL FEES,REDACTED,REDACTED
05.08.2021,CHILDREN AND FAMILIES,REDACTED PERSONAL DATA,480,ADOPTION SUPP FUND,PROFESSIONAL FEES,REDACTED,REDACTED
05.08.2021,CHILDREN AND FAMILIES,REDACTED PERSONAL DATA,"4,960.00",ADOPTION SUPP FUND,PROFESSIONAL FEES,REDACTED,REDACTED
05.08.2021,CHILDREN AND FAMILIES,REDACTED PERSONAL DATA,789,ADOPTION SUPP FUND,PROFESSIONAL FEES,REDACTED,REDACTED
05.08.2021,CHILDREN AND FAMILIES,REDACTED PERSONAL DATA,336.5,ADOPTION SUPP FUND,PROFESSIONAL FEES,REDACTED,REDACTED
05.08.2021,CHILDREN AND FAMILIES,REDACTED PERSONAL DATA,"1,680.00",ADOPTION SUPP FUND,PROFESSIONAL FEES,REDACTED,REDACTED
05.08.2021,CHILDREN AND FAMILIES,INTERCOUNTRY ADOPTION CENTRE,"19,500.00",ALS INTER AGENCY,CONTRIBUTION TO PROVISIONS (S&S),5902480261,1000035796
05.08.2021,CHILDREN AND FAMILIES,PARENTS AND CHILDREN TOGETHER,"2,312.20",ALS INTER AGENCY,EXTERNAL AGENCIES AND BODIES,5902480212,1000068128
05.08.2021,CHILDREN AND FAMILIES,POSTURITE LTD,677.21,CENTRAL SUPPORT,MEDICAL / HEALTH & SAFETY SERVICES,5902480372,11015468
05.08.2021,CHILDREN AND FAMILIES,CHILDHOOD FIRST,267,CHILDREN�S RESID,OTHER PAYMENTS FOR CLIENTS,2103302392,1000076330
05.08.2021,CHILDREN AND FAMILIES,CASTLE HOMES LIMITED,"20,163.22",CHILDREN�S RESID,RESIDENTIAL CARE,2103302390,1000019388
05.08.2021,CHILDREN AND FAMILIES,CASTLE HOMES LIMITED,"20,227.50",CHILDREN�S RESID,RESIDENTIAL CARE,2103302389,1000019388
05.08.2021,CHILDREN AND FAMILIES,LIONCARE LIMITED,"16,469.10",CHILDREN�S RESID,RESIDENTIAL CARE,2103302393,1000065330
05.08.2021,CHILDREN AND FAMILIES,LIONCARE LIMITED,"17,018.07",CHILDREN�S RESID,RESIDENTIAL CARE,2103302388,1000065330
05.08.2021,CHILDREN AND FAMILIES,LIONCARE LIMITED,"17,018.07",CHILDREN�S RESID,RESIDENTIAL CARE,2103302394,1000065330
05.08.2021,CHILDREN AND FAMILIES,OWNLIFE RESIDENTIAL LTD,"26,128.57",CHILDREN�S RESID,RESIDENTIAL CARE,2103302391,1000085398
05.08.2021,CHILDREN AND FAMILIES,OPTIMUM FOCUS COMPANY LTD,704.17,FAMILY GROUP CONF�S,PROFESSIONAL FEES,5902480350,1000081322
05.08.2021,CHILDREN AND FAMILIES,OPTIMUM FOCUS COMPANY LTD,842.83,FAMILY GROUP CONF�S,PROFESSIONAL FEES,5902480351,1000081322
05.08.2021,CHILDREN AND FAMILIES,OPTIMUM FOCUS COMPANY LTD,"1,024.83",FAMILY GROUP CONF�S,PROFESSIONAL FEES,5902480349,1000081322
05.08.2021,CHILDREN AND FAMILIES,PETALOUNDA CONSULTANCY LTD,263.95,FAMILY GROUP CONF�S,PROFESSIONAL FEES,5902480358,1000081394
05.08.2021,CHILDREN AND FAMILIES,PETALOUNDA CONSULTANCY LTD,692.03,FAMILY GROUP CONF�S,PROFESSIONAL FEES,5902480356,1000081394
05.08.2021,CHILDREN AND FAMILIES,HERA SOCIAL CARE LTD,343.2,FAMILY GROUP CONF�S,PROFESSIONAL FEES,5902480195,1000084935
05.08.2021,CHILDREN AND FAMILIES,REDACTED PERSONAL DATA,348.31,FAMILY GROUP CONF�S,PROFESSIONAL FEES,REDACTED,REDACTED
05.08.2021,CHILDREN AND FAMILIES,REDACTED PERSONAL DATA,265.56,FAMILY GROUP CONF�S,PROFESSIONAL FEES,REDACTED,REDACTED
05.08.2021,CHILDREN AND FAMILIES,REDACTED PERSONAL DATA,273.22,FAMILY GROUP CONF�S,PROFESSIONAL FEES,REDACTED,REDACTED
05.08.2021,CHILDREN AND FAMILIES,REDACTED PERSONAL DATA,602.07,FAMILY GROUP CONF�S,PROFESSIONAL FEES,REDACTED,REDACTED
05.08.2021,CHILDREN AND FAMILIES,BANYA FAMILY PLACEMENT AGENCY LTD,"1,573.00",FRIENDS & FAMILY FOSTERING,EXTERNAL AGENCIES AND BODIES,2103302401,11328315
05.08.2021,CHILDREN AND FAMILIES,BANYA FAMILY PLACEMENT AGENCY LTD,"3,630.00",FRIENDS & FAMILY FOSTERING,EXTERNAL AGENCIES AND BODIES,2103302402,11328315
05.08.2021,CHILDREN AND FAMILIES,KASPER FOSTERING,"3,513.23",FRIENDS & FAMILY FOSTERING,EXTERNAL AGENCIES AND BODIES,2103302397,1000036628
05.08.2021,CHILDREN AND FAMILIES,KASPER FOSTERING,"4,640.39",FRIENDS & FAMILY FOSTERING,EXTERNAL AGENCIES AND BODIES,2103302398,1000036628
05.08.2021,CHILDREN AND FAMILIES,FOSTERING LONDON LTD,"5,092.68",FRIENDS & FAMILY FOSTERING,EXTERNAL AGENCIES AND BODIES,2103302400,1000077541
05.08.2021,CHILDREN AND FAMILIES,FOSTERING LONDON LTD,"8,627.00",FRIENDS & FAMILY FOSTERING,EXTERNAL AGENCIES AND BODIES,2103302399,1000077541
05.08.2021,CHILDREN AND FAMILIES,REGIONAL FOSTERING SERVICES LTD,"4,406.43",FRIENDS & FAMILY FOSTERING,EXTERNAL AGENCIES AND BODIES,2103302396,1000080112
05.08.2021,CHILDREN AND FAMILIES,FAMILY WORKS FOSTERING LTD,"6,275.29",FRIENDS & FAMILY FOSTERING,EXTERNAL AGENCIES AND BODIES,2103302395,1000082529
05.08.2021,CHILDREN AND FAMILIES,REDACTED PERSONAL DATA,"3,011.29",FRIENDS &FAMILY FOST,PAYMENTS TO CARERS,REDACTED,REDACTED
05.08.2021,CHILDREN AND FAMILIES,REDACTED PERSONAL DATA,"3,011.29",FRIENDS &FAMILY FOST,PAYMENTS TO CARERS,REDACTED,REDACTED
05.08.2021,CHILDREN AND FAMILIES,PURPLE PEBBLES(CHILD CARE) SERVICES,"1,882.14",SEMI-IND CARELEAVERS,EXTERNAL AGENCIES AND BODIES,2103302406,1000070705
05.08.2021,CHILDREN AND FAMILIES,PURPLE PEBBLES(CHILD CARE) SERVICES,"1,992.86",SEMI-IND CARELEAVERS,EXTERNAL AGENCIES AND BODIES,2103302405,1000070705
05.08.2021,CHILDREN AND FAMILIES,STEP AHEAD SERVICES LTD,"19,542.86",SEMI-IND LAC 16-17,EXTERNAL AGENCIES AND BODIES,2103302421,1000036544
05.08.2021,CHILDREN AND FAMILIES,PURPLE PEBBLES(CHILD CARE) SERVICES,400,SEMI-IND LAC 16-17,EXTERNAL AGENCIES AND BODIES,2103302422,1000070705
05.08.2021,CHILDREN AND FAMILIES,REDACTED PERSONAL DATA,"1,463.18",SPECIAL GUARDIANSHIP,PAYMENTS TO CARERS,REDACTED,REDACTED
05.08.2021,CHILDREN AND FAMILIES,CORE ASSETS FOSTERING LTD,"3,696.00",STAYPUT- FOST CARERS,EXTERNAL AGENCIES AND BODIES,2103302425,11288002
05.08.2021,CHILDREN AND FAMILIES,CORE ASSETS FOSTERING LTD,"3,696.00",STAYPUT- FOST CARERS,EXTERNAL AGENCIES AND BODIES,2103302428,11288002
05.08.2021,CHILDREN AND FAMILIES,CORE ASSETS FOSTERING LTD,"3,696.00",STAYPUT- FOST CARERS,EXTERNAL AGENCIES AND BODIES,2103302429,11288002
05.08.2021,CHILDREN AND FAMILIES,ORANGE GROVE FOSTERCARE LTD,"2,635.89",STAYPUT- FOST CARERS,EXTERNAL AGENCIES AND BODIES,2103302426,1000078716
05.08.2021,CHILDREN AND FAMILIES,ORANGE GROVE FOSTERCARE LTD,"3,751.62",STAYPUT- FOST CARERS,EXTERNAL AGENCIES AND BODIES,2103302430,1000078716
05.08.2021,CHILDREN AND FAMILIES,METROPOLITAN HOUSING TRUST LTD,666,UASC CARELEAVERS,EXTERNAL AGENCIES AND BODIES,2103302427,1000047547
05.08.2021,CHILDREN AND FAMILIES,PURPLE PEBBLES(CHILD CARE) SERVICES,280,UASC CARELEAVERS,OTHER PAYMENTS FOR CLIENTS,2103302407,1000070705
05.08.2021,CHILDREN AND FAMILIES,PURPLE PEBBLES(CHILD CARE) SERVICES,300,UASC LAC 16-17,EXTERNAL AGENCIES AND BODIES,2103302420,1000070705
05.08.2021,COMMUNITIES,COPLESTON CENTRE,"3,000.00",EAST CENTRAL,GRANTS,5902480258,1000069576
05.08.2021,COMMUNITIES,SL CREATIVES PROJECT CIC,"1,000.00",EAST CENTRAL,GRANTS,5902479623,1000085336
05.08.2021,COMMUNITIES,METROPOLITAN HOUSING TRUST LTD,995.56,NO RECOURSE TO PUBLIC FUNDS,ACCOMMODATION CHARGES,5902480214,1000047547
05.08.2021,COMMUNITIES,SOUTH OF THE RIVER INVESTMENTS LTD,"7,412.60",NO RECOURSE TO PUBLIC FUNDS,ACCOMMODATION CHARGES,5902480245,1000073638
05.08.2021,COMMUNITIES,NORBURY PROPERTY SERVICES (LONDON) LTD,"3,999.00",NO RECOURSE TO PUBLIC FUNDS,ACCOMMODATION CHARGES,5902480262,1000075566
05.08.2021,COMMUNITIES,SHAD THAMES AREA MANAGEMENT PARTNERSHIP,900,NORTH EAST,GRANTS,5902480331,1000080902
05.08.2021,COMMUNITIES,KALEIDOSCOPE PROJECT,"2,300.00",TIER 4 SERVICES,OTHER CONTRACTORS,5902479410,1000083325
05.08.2021,COMMUNITIES HRA,BROWNING EST MGMT ASSN,"18,845.60",BROWNING EMB,M&M ALLOWANCE CO-OPS,5902479406,1000059362
05.08.2021,COMMUNITIES HRA,KENNINGTON PARK HSE MGMT CO-OP,371,KENNINGTON PK CO-OP,M&M ALLOWANCE CO-OPS,5902479532,1000056189
05.08.2021,COMMUNITIES HRA,MILLPOND ESTATE TRA,"1,300.00",RESIDENTS PARTICIPATION FUND,GRANTS,5902479568,1000042431
05.08.2021,COMMUNITIES HRA,TOM HOPKINS ASSOCIATES LTD,350,TENANT MGT INITITIVES,TRAINING,5902480406,1000078726
05.08.2021,CUSTOMER EXPERIENCE,PARIS SMITH LLP,361.06,SALES & ACQUISITIONS,SOLICITORS FRAMEWORK LEGAL SERVICES,5902480232,1000008059
05.08.2021,CUSTOMER EXPERIENCE,PARIS SMITH LLP,361.06,SALES & ACQUISITIONS,SOLICITORS FRAMEWORK LEGAL SERVICES,5902480238,1000008059
05.08.2021,CUSTOMER EXPERIENCE,PARIS SMITH LLP,363.06,SALES & ACQUISITIONS,SOLICITORS FRAMEWORK LEGAL SERVICES,5902480260,1000008059
05.08.2021,CUSTOMER EXPERIENCE,PARIS SMITH LLP,363.06,SALES & ACQUISITIONS,SOLICITORS FRAMEWORK LEGAL SERVICES,5902480269,1000008059
05.08.2021,CUSTOMER EXPERIENCE,PARIS SMITH LLP,369.06,SALES & ACQUISITIONS,SOLICITORS FRAMEWORK LEGAL SERVICES,5902480242,1000008059
05.08.2021,CUSTOMER EXPERIENCE,PARIS SMITH LLP,369.06,SALES & ACQUISITIONS,SOLICITORS FRAMEWORK LEGAL SERVICES,5902480244,1000008059
05.08.2021,CUSTOMER EXPERIENCE,PARIS SMITH LLP,369.06,SALES & ACQUISITIONS,SOLICITORS FRAMEWORK LEGAL SERVICES,5902480250,1000008059
05.08.2021,CUSTOMER EXPERIENCE,PARIS SMITH LLP,371.06,SALES & ACQUISITIONS,SOLICITORS FRAMEWORK LEGAL SERVICES,5902480254,1000008059
05.08.2021,CUSTOMER EXPERIENCE,PARIS SMITH LLP,371.06,SALES & ACQUISITIONS,SOLICITORS FRAMEWORK LEGAL SERVICES,5902480256,1000008059
05.08.2021,CUSTOMER EXPERIENCE,PARIS SMITH LLP,371.06,SALES & ACQUISITIONS,SOLICITORS FRAMEWORK LEGAL SERVICES,5902480266,1000008059
05.08.2021,CUSTOMER EXPERIENCE,PARIS SMITH LLP,381.06,SALES & ACQUISITIONS,SOLICITORS FRAMEWORK LEGAL SERVICES,5902480252,1000008059
05.08.2021,CUSTOMER EXPERIENCE,PARIS SMITH LLP,383.06,SALES & ACQUISITIONS,SOLICITORS FRAMEWORK LEGAL SERVICES,5902480240,1000008059
05.08.2021,CUSTOMER EXPERIENCE HGF,ABLE 2 OCCUPATIONAL THERAPY SERVICE,832.5,BLUE BADGES,PROFESSIONAL FEES,5902480321,1000064695
05.08.2021,CUSTOMER EXPERIENCE HGF,ABLE 2 OCCUPATIONAL THERAPY SERVICE,"1,652.00",BLUE BADGES,PROFESSIONAL FEES,5902480324,1000064695
05.08.2021,CUSTOMER EXPERIENCE HGF,IMPERIAL COLLEGE PROJECTS LTD,480,CORONER'S,PROFESSIONAL FEES,5902479723,1000080106
05.08.2021,CUSTOMER EXPERIENCE HGF,IMPERIAL COLLEGE PROJECTS LTD,496,CORONER'S,PROFESSIONAL FEES,5902479729,1000080106
05.08.2021,CUSTOMER EXPERIENCE HGF,IMPERIAL COLLEGE PROJECTS LTD,520,CORONER'S,PROFESSIONAL FEES,5902479728,1000080106
05.08.2021,CUSTOMER EXPERIENCE HGF,IMPERIAL COLLEGE PROJECTS LTD,528,CORONER'S,PROFESSIONAL FEES,5902479726,1000080106
05.08.2021,CUSTOMER EXPERIENCE HGF,NRC PATHOLOGY SERVICES LIMITED,360,CORONER'S,PROFESSIONAL FEES,5902479615,1000085798
05.08.2021,EDUCATION,KELLIE ANSELL,"1,600.00",MENTAL HEALTH AND RESILIENCE,CONSULTANTS SERVICES,5902480094,1000086701
05.08.2021,EMPLOYEE EXPERIENCE,MINDAPPLES TRADING LTD,650,CORPORATE TRAINING BUDGETS,TRAINING,5902479523,1000080028
05.08.2021,ENV&LEISURE,RATHBONE ADVERTISING LTD,"5,000.00",COVID-19 TEST & TRACE SUPPORT GRANT,MARKETING & PUBLICITY SERVICES,5902479665,1000086971
05.08.2021,ENVIRONMENT AND LEISURE,HEATHLAND GROUP LTD,"1,466.00",CAPITAL PS (LEISURE),CONSTRUCTION FEES,5902480239,1000081992
05.08.2021,ENVIRONMENT AND LEISURE,HEATHLAND GROUP LTD,"1,689.87",CAPITAL PS (LEISURE),CONSTRUCTION FEES,5902480231,1000081992
05.08.2021,ENVIRONMENT AND LEISURE,HEATHLAND GROUP LTD,"2,542.00",CAPITAL PS (LEISURE),CONSTRUCTION FEES,5902480223,1000081992
05.08.2021,ENVIRONMENT AND LEISURE,HEATHLAND GROUP LTD,"2,775.78",CAPITAL PS (LEISURE),CONSTRUCTION FEES,5902480227,1000081992
05.08.2021,ENVIRONMENT AND LEISURE,STREET TREE CARE LTD,"3,040.00",CAPITAL PS (LEISURE),CONSTRUCTION FEES  - EXTERNAL,5902479558,1000055901
05.08.2021,ENVIRONMENT DIRECTORATE,AUTOMOTIVE LEASING,368.85,COMMERCIAL VEH CTRL A/C,HIRED VEHICLES,5902480255,11014756
05.08.2021,ENVIRONMENT DIRECTORATE,AUTOMOTIVE LEASING,391,COMMERCIAL VEH CTRL A/C,HIRED VEHICLES,5902480255,11014756
05.08.2021,ENVIRONMENT DIRECTORATE,AUTOMOTIVE LEASING,525,COMMERCIAL VEH CTRL A/C,HIRED VEHICLES,5902480259,11014756
05.08.2021,ENVIRONMENT DIRECTORATE,AUTOMOTIVE LEASING,803.23,COMMERCIAL VEH CTRL A/C,HIRED VEHICLES,5902480257,11014756
05.08.2021,ENVIRONMENT DIRECTORATE,AUTOMOTIVE LEASING,981.35,COMMERCIAL VEH CTRL A/C,HIRED VEHICLES,5902480253,11014756
05.08.2021,ENVIRONMENT DIRECTORATE,DAWSONGROUP VANS LTD,275.9,COMMERCIAL VEH CTRL A/C,HIRED VEHICLES,5902480277,1000082230
05.08.2021,ENVIRONMENT DIRECTORATE,DAWSONGROUP VANS LTD,275.9,COMMERCIAL VEH CTRL A/C,HIRED VEHICLES,5902480279,1000082230
05.08.2021,ENVIRONMENT DIRECTORATE,DAWSONGROUP VANS LTD,275.9,COMMERCIAL VEH CTRL A/C,HIRED VEHICLES,5902480280,1000082230
05.08.2021,ENVIRONMENT DIRECTORATE,DAWSONGROUP VANS LTD,275.9,COMMERCIAL VEH CTRL A/C,HIRED VEHICLES,5902480283,1000082230
05.08.2021,ENVIRONMENT DIRECTORATE,DAWSONGROUP VANS LTD,275.9,COMMERCIAL VEH CTRL A/C,HIRED VEHICLES,5902480285,1000082230
05.08.2021,ENVIRONMENT DIRECTORATE,DAWSONGROUP VANS LTD,275.9,COMMERCIAL VEH CTRL A/C,HIRED VEHICLES,5902480359,1000082230
05.08.2021,ENVIRONMENT DIRECTORATE,DAWSONGROUP VANS LTD,275.9,COMMERCIAL VEH CTRL A/C,HIRED VEHICLES,5902480396,1000082230
05.08.2021,ENVIRONMENT DIRECTORATE,DAWSONGROUP VANS LTD,275.9,COMMERCIAL VEH CTRL A/C,HIRED VEHICLES,5902480401,1000082230
05.08.2021,ENVIRONMENT DIRECTORATE,DAWSONGROUP VANS LTD,275.9,COMMERCIAL VEH CTRL A/C,HIRED VEHICLES,5902480410,1000082230
05.08.2021,ENVIRONMENT DIRECTORATE,DAWSONGROUP VANS LTD,300.08,COMMERCIAL VEH CTRL A/C,HIRED VEHICLES,5902480387,1000082230
05.08.2021,ENVIRONMENT DIRECTORATE,DAWSONGROUP VANS LTD,300.08,COMMERCIAL VEH CTRL A/C,HIRED VEHICLES,5902480403,1000082230
05.08.2021,ENVIRONMENT DIRECTORATE,DAWSONGROUP VANS LTD,300.08,COMMERCIAL VEH CTRL A/C,HIRED VEHICLES,5902480407,1000082230
05.08.2021,ENVIRONMENT DIRECTORATE,DAWSONGROUP VANS LTD,300.08,COMMERCIAL VEH CTRL A/C,HIRED VEHICLES,5902480409,1000082230
05.08.2021,ENVIRONMENT DIRECTORATE,DAWSONGROUP VANS LTD,300.08,COMMERCIAL VEH CTRL A/C,HIRED VEHICLES,5902480411,1000082230
05.08.2021,ENVIRONMENT DIRECTORATE,DAWSONGROUP VANS LTD,305.2,COMMERCIAL VEH CTRL A/C,HIRED VEHICLES,5902480375,1000082230
05.08.2021,ENVIRONMENT DIRECTORATE,DAWSONGROUP VANS LTD,452.6,COMMERCIAL VEH CTRL A/C,HIRED VEHICLES,5902480366,1000082230
05.08.2021,ENVIRONMENT DIRECTORATE,DAWSONGROUP VANS LTD,471.2,COMMERCIAL VEH CTRL A/C,HIRED VEHICLES,5902480408,1000082230
05.08.2021,ENVIRONMENT DIRECTORATE,E. H. ROBERTS - PENET GROUP LTD,693,COMMERCIAL VEH CTRL A/C,HIRED VEHICLES,5902480304,1000082787
05.08.2021,ENVIRONMENT DIRECTORATE,E. H. ROBERTS - PENET GROUP LTD,693,COMMERCIAL VEH CTRL A/C,HIRED VEHICLES,5902480305,1000082787
05.08.2021,ENVIRONMENT DIRECTORATE,E. H. ROBERTS - PENET GROUP LTD,726,COMMERCIAL VEH CTRL A/C,HIRED VEHICLES,5902480306,1000082787
05.08.2021,ENVIRONMENT DIRECTORATE,E. H. ROBERTS - PENET GROUP LTD,726,COMMERCIAL VEH CTRL A/C,HIRED VEHICLES,5902480308,1000082787
05.08.2021,ENVIRONMENT DIRECTORATE,E. H. ROBERTS - PENET GROUP LTD,726,COMMERCIAL VEH CTRL A/C,HIRED VEHICLES,5902480309,1000082787
05.08.2021,ENVIRONMENT DIRECTORATE,E. H. ROBERTS - PENET GROUP LTD,726,COMMERCIAL VEH CTRL A/C,HIRED VEHICLES,5902480310,1000082787
05.08.2021,ENVIRONMENT DIRECTORATE,E. H. ROBERTS - PENET GROUP LTD,726,COMMERCIAL VEH CTRL A/C,HIRED VEHICLES,5902480313,1000082787
05.08.2021,ENVIRONMENT DIRECTORATE,E. H. ROBERTS - PENET GROUP LTD,726,COMMERCIAL VEH CTRL A/C,HIRED VEHICLES,5902480314,1000082787
05.08.2021,ENVIRONMENT DIRECTORATE,E. H. ROBERTS - PENET GROUP LTD,798,COMMERCIAL VEH CTRL A/C,HIRED VEHICLES,5902480311,1000082787
05.08.2021,ENVIRONMENT DIRECTORATE,E. H. ROBERTS - PENET GROUP LTD,"1,575.00",COMMERCIAL VEH CTRL A/C,HIRED VEHICLES,5902480301,1000082787
05.08.2021,ENVIRONMENT DIRECTORATE,E. H. ROBERTS - PENET GROUP LTD,"1,575.00",COMMERCIAL VEH CTRL A/C,HIRED VEHICLES,5902480312,1000082787
05.08.2021,ENVIRONMENT DIRECTORATE,E. H. ROBERTS - PENET GROUP LTD,"1,650.00",COMMERCIAL VEH CTRL A/C,HIRED VEHICLES,5902480307,1000082787
05.08.2021,ENVIRONMENT DIRECTORATE,E. H. ROBERTS - PENET GROUP LTD,371,COMMERCIAL VEH CTRL A/C,VEHICLE REPAIRS & MAINTENANCE,5902480317,1000082787
05.08.2021,ENVIRONMENT DIRECTORATE,E. H. ROBERTS - PENET GROUP LTD,467,COMMERCIAL VEH CTRL A/C,VEHICLE REPAIRS & MAINTENANCE,5902480319,1000082787
05.08.2021,ENVIRONMENT DIRECTORATE,E. H. ROBERTS - PENET GROUP LTD,726,COMMERCIAL VEH CTRL A/C,VEHICLE REPAIRS & MAINTENANCE,5902480318,1000082787
05.08.2021,ENVIRONMENT DIRECTORATE,E. H. ROBERTS - PENET GROUP LTD,726,COMMERCIAL VEH CTRL A/C,VEHICLE REPAIRS & MAINTENANCE,5902480325,1000082787
05.08.2021,ENVIRONMENT DIRECTORATE,E. H. ROBERTS - PENET GROUP LTD,836,COMMERCIAL VEH CTRL A/C,VEHICLE REPAIRS & MAINTENANCE,5902480315,1000082787
05.08.2021,ENVIRONMENT DIRECTORATE,E. H. ROBERTS - PENET GROUP LTD,836,COMMERCIAL VEH CTRL A/C,VEHICLE REPAIRS & MAINTENANCE,5902480316,1000082787
05.08.2021,ENVIRONMENT DIRECTORATE,E. H. ROBERTS - PENET GROUP LTD,836,COMMERCIAL VEH CTRL A/C,VEHICLE REPAIRS & MAINTENANCE,5902480326,1000082787
05.08.2021,ENVIRONMENT DIRECTORATE,E. H. ROBERTS - PENET GROUP LTD,990,COMMERCIAL VEH CTRL A/C,VEHICLE REPAIRS & MAINTENANCE,5902480323,1000082787
05.08.2021,ENVIRONMENT DIRECTORATE,E. H. ROBERTS - PENET GROUP LTD,"1,650.00",COMMERCIAL VEH CTRL A/C,VEHICLE REPAIRS & MAINTENANCE,5902480320,1000082787
05.08.2021,ENVIRONMENT DIRECTORATE,E. H. ROBERTS - PENET GROUP LTD,"1,650.00",COMMERCIAL VEH CTRL A/C,VEHICLE REPAIRS & MAINTENANCE,5902480322,1000082787
05.08.2021,ENVIRONMENT DIRECTORATE,ESU1 LTD,"2,999.75",ENVIRONMENTAL PROTECTION,OTHER CONTRACTORS,5902480271,1000086650
05.08.2021,ENVIRONMENT DIRECTORATE,GREENHAM TRADING LTD,382.17,ESTATE CLEANING-GENERAL,MATERIALS,5902480281,1000006610
05.08.2021,ENVIRONMENT DIRECTORATE,PERFORMANCE CHEMICALS LTD,"1,071.80",ESTATE CLEANING-GENERAL,MATERIALS,5902479518,1000037129
05.08.2021,ENVIRONMENT DIRECTORATE,THE T P PARTNERSHIP,445,ESTATE CLEANING-GENERAL,OTHER CONTRACTORS,5902480090,1000045906
05.08.2021,ENVIRONMENT DIRECTORATE,THE T P PARTNERSHIP,455,ESTATE CLEANING-GENERAL,OTHER CONTRACTORS,5902480088,1000045906
05.08.2021,ENVIRONMENT DIRECTORATE,THE T P PARTNERSHIP,"2,060.00",ESTATE CLEANING-GENERAL,OTHER CONTRACTORS,5902480147,1000045906
05.08.2021,ENVIRONMENT DIRECTORATE,MC PRODUCTS UK LTD,"1,510.00",TEAMS 1 TO 12,"CLOTHING, UNIFORMS & LAUNDRY",5902480274,1000080166
05.08.2021,EXTERNAL AFFAIRS,STARFISH SEARCH LTD,"7,475.00",EXTERNAL AFFAIRS SALARIES,RECRUITMENT ADVERTISING,5902480302,1000086886
05.08.2021,EXTERNAL AFFAIRS,STARFISH SEARCH LTD,"7,500.00",EXTERNAL AFFAIRS SALARIES,RECRUITMENT ADVERTISING,5902480303,1000086886
05.08.2021,F & C S EXCLUDING CORPORATE BUDGETS,REDACTED PERSONAL DATA,500,SESS,OTHER PAYMENTS FOR CLIENTS,REDACTED,REDACTED
05.08.2021,F & C S EXCLUDING CORPORATE BUDGETS,REDACTED PERSONAL DATA,500,SESS,OTHER PAYMENTS FOR CLIENTS,REDACTED,REDACTED
05.08.2021,F & C S EXCLUDING CORPORATE BUDGETS,REDACTED PERSONAL DATA,500,SESS,OTHER PAYMENTS FOR CLIENTS,REDACTED,REDACTED
05.08.2021,F & C S EXCLUDING CORPORATE BUDGETS,REDACTED PERSONAL DATA,500,SESS,OTHER PAYMENTS FOR CLIENTS,REDACTED,REDACTED
05.08.2021,F & C S EXCLUDING CORPORATE BUDGETS,REDACTED PERSONAL DATA,500,SESS,OTHER PAYMENTS FOR CLIENTS,REDACTED,REDACTED
05.08.2021,F & C S EXCLUDING CORPORATE BUDGETS,REDACTED PERSONAL DATA,500,SESS,OTHER PAYMENTS FOR CLIENTS,REDACTED,REDACTED
05.08.2021,F & C S EXCLUDING CORPORATE BUDGETS,REDACTED PERSONAL DATA,500,SESS,OTHER PAYMENTS FOR CLIENTS,REDACTED,REDACTED
05.08.2021,F & C S EXCLUDING CORPORATE BUDGETS,REDACTED PERSONAL DATA,500,SESS,OTHER PAYMENTS FOR CLIENTS,REDACTED,REDACTED
05.08.2021,F & C S EXCLUDING CORPORATE BUDGETS,REDACTED PERSONAL DATA,500,SESS,OTHER PAYMENTS FOR CLIENTS,REDACTED,REDACTED
05.08.2021,HOUSING,LIFTEC LIFTS LTD,"70,223.78",PAYMENTS CONTROL ACCOUNT - LIFTEC,I-WORLD CONTRACTORS HOLDING ACCOUNT,5902479438,1000057278
05.08.2021,HOUSING GENERAL FUND,T. E. W. SOFTWARE SOLUTIONS LIMITED,"2,750.00",CAPITAL PS (STRAT SERV),ICT ACQUISITION,5902480241,1000086368
05.08.2021,HOUSING HRA,IMMERSIVE3D LIMITED,366,CAPITAL PS (HRA),CONSTRUCTION FEES  - EXTERNAL,5902479740,1000086953
05.08.2021,HOUSING HRA,IMMERSIVE3D LIMITED,"1,885.00",CAPITAL PS (HRA),CONSTRUCTION FEES  - EXTERNAL,5902480228,1000086953
05.08.2021,HOUSING HRA,IMMERSIVE3D LIMITED,"2,930.00",CAPITAL PS (HRA),CONSTRUCTION FEES  - EXTERNAL,5902480354,1000086953
05.08.2021,HOUSING HRA,DAYKIN MARSHALL STUDIO LIMITED,"11,439.53",CAPITAL PS (HRA),CONSTRUCTION FEES - ARCHITECT,5902479861,1000087049
05.08.2021,HOUSING HRA,MITIE PROPERTY SERVICES (UK) LTD,"9,971.87",CAPITAL PS (REGEN),CONSTRUCTION FEES  - EXTERNAL,2103302250,4010766
05.08.2021,HOUSING HRA,VECTOS (SOUTH) LTD,"5,536.88",CAPITAL PS (REGEN),CONSTRUCTION FEES  - EXTERNAL,5902480134,1000077431
05.08.2021,HOUSING HRA,VECTOS (SOUTH) LTD,"5,536.88",CAPITAL PS (REGEN),CONSTRUCTION FEES  - EXTERNAL,5902480134,1000077431
05.08.2021,HOUSING HRA,FAITHFUL & GOULD,"10,694.26",CAPITAL PS (REGEN),CONSTRUCTION FEES - EMPLOYERS AGENT,5902480110,1000061390
05.08.2021,HOUSING HRA,FAITHFUL & GOULD,"10,694.27",CAPITAL PS (REGEN),CONSTRUCTION FEES - EMPLOYERS AGENT,5902480110,1000061390
05.08.2021,HOUSING HRA,BLOOM PROCUREMENT SERVICES LTD,"13,900.00",CAPITAL PS (REGEN),CONSTRUCTION FEES - QUANTITY SURVEYOR,5902479421,1000082531
05.08.2021,LEISURE DIRECTORATE,VIVEDIA LIMITED,830,CEMETERIES,SUBSCRIPTIONS,5902480243,1000064867
05.08.2021,LEISURE DIRECTORATE,THE PLAY INSPECTION COMPANY LTD,"3,255.00",PLAY MANAGEMENT & ADMINISTRATION,TRAINING,5902479527,1000072456
05.08.2021,LEISURE DIRECTORATE,QUADRON SERVICES LIMITED,254.32,SOUTHWARK AREA TEAM,GROUNDS MAINTENANCE,5902480390,1000066528
05.08.2021,LEISURE DIRECTORATE,ASKEWS & HOLTS LIBRARY SERVICES LTD,312.95,STOCK SERVICES,BOOKS & PUBLICATIONS,5902480291,1494168
05.08.2021,LEISURE DIRECTORATE,ASKEWS & HOLTS LIBRARY SERVICES LTD,"1,241.80",STOCK SERVICES,BOOKS & PUBLICATIONS,5902480289,1494168
05.08.2021,PLANNING AND TRANSPORT,GVA GRIMLEY LTD T/A AVISON YOUNG,937.5,STRATEGIC APPLICATIONS,PROFESSIONAL FEES,5902480398,1000016057
05.08.2021,PLANNING AND TRANSPORT,GVA GRIMLEY LTD T/A AVISON YOUNG,"1,012.50",STRATEGIC APPLICATIONS,PROFESSIONAL FEES,5902480402,1000016057
05.08.2021,PUBLIC HEALTH,REDACTED PERSONAL DATA,500,COVID-19 CONTROL OUTBREAK MGMNT.FUND,OTHER PAYMENTS FOR CLIENTS,REDACTED,REDACTED
05.08.2021,PUBLIC HEALTH,REDACTED PERSONAL DATA,500,COVID-19 CONTROL OUTBREAK MGMNT.FUND,OTHER PAYMENTS FOR CLIENTS,REDACTED,REDACTED
05.08.2021,PUBLIC HEALTH,RYE OAK PRIMARY SCHOOL,"15,360.00",PLACE & HEALTH IMPROVEMENT,EXTERNAL AGENCIES AND BODIES,5902480374,5001000059
05.08.2021,PUBLIC HEALTH,LONDON BOROUGH OF LAMBETH,"90,108.22",SEXUAL HEALTH - ADVICE,EXTERNAL AGENCIES AND BODIES,5902480221,1000044545
05.08.2021,REGENERATION,THIS SOLID GROUND LTD,662,14-20 SHAND STREET,MARKETING & PUBLICITY SERVICES,5902480292,1000082494
05.08.2021,REGENERATION,THIS SOLID GROUND LTD,662,7 HOLYROOD STREET,MARKETING & PUBLICITY SERVICES,5902480292,1000082494
05.08.2021,REGENERATION,THIS SOLID GROUND LTD,662,9 HOLYROOD STREET,MARKETING & PUBLICITY SERVICES,5902480292,1000082494
05.08.2021,REGENERATION,THIS SOLID GROUND LTD,"2,425.00","COURAGE YARD, SHAD THAMES",MARKETING & PUBLICITY SERVICES,5902480293,1000082494
05.08.2021,REGENERATION,KALMARS COMMERCIAL LTD,"2,700.00",MISC INDUSTRIAL PROPERTIES,MARKETING & PUBLICITY SERVICES,5902479662,1000081844
05.08.2021,RESIDENT SERVICES,SOUTH OF THE RIVER INVESTMENTS LTD,"3,162.00",TA PLACEMENTS,EXTERNAL AGENCIES AND BODIES,5902480335,1000073638
05.08.2021,RESIDENT SERVICES HGF,OLIVER LANDON LTD,"9,388.00",NIGHTLY TA (NSC),EXTERNAL AGENCIES AND BODIES,5902480248,1000082788
05.08.2021,RESIDENT SERVICES HGF,LODGISTICS ESTATES,"5,398.79",PSL PLACEMENTS,EXTERNAL AGENCIES AND BODIES,5902480389,1000080324
05.08.2021,RESIDENT SERVICES HGF,SMARTSPACE PROPERTY SOLUTIONS LTD,"10,719.82",PSL PLACEMENTS,EXTERNAL AGENCIES AND BODIES,5902480385,1000082769
05.08.2021,RESIDENT SERVICES HGF,BACK ON TRACK HOUSING,"2,209.35",RAPID REHOUSING,GRANTS,5902480367,1000071262
05.08.2021,STRATEGIC FINANCING BUDGETS,COMENSURA LTD,"631,450.52",AGENCY RECOVERY,AGENCY STAFF,5902480376,1000051261
06.08.2021,ADULT SOCIAL CARE,GATEWAY HOUSING LTD,411.1,APPOINTEESHIPS,OTHER PAYMENTS FOR CLIENTS,2103302598,1000087034
06.08.2021,ADULT SOCIAL CARE,GATEWAY HOUSING LTD,411.1,APPOINTEESHIPS,OTHER PAYMENTS FOR CLIENTS,2103302599,1000087034
06.08.2021,ADULT SOCIAL CARE,GATEWAY HOUSING LTD,411.1,APPOINTEESHIPS,OTHER PAYMENTS FOR CLIENTS,2103302600,1000087034
06.08.2021,ADULT SOCIAL CARE,SILVER FERN THERAPY LTD,544.75,APPOINTEESHIPS,OTHER PAYMENTS FOR CLIENTS,2103302603,1000087061
06.08.2021,ADULT SOCIAL CARE,REDACTED PERSONAL DATA,400,APPOINTEESHIPS,OTHER PAYMENTS FOR CLIENTS,REDACTED,REDACTED
06.08.2021,ADULT SOCIAL CARE,THE DRIVE CARE HOMES LTD,"2,090.00",DISABILITIES LAC,OTHER PAYMENTS FOR CLIENTS,2103302508,1000003889
06.08.2021,ADULT SOCIAL CARE,SERVESOUL LTD,265.04,PHY LTS 65+,HOMECARE - SPOT,2103302511,1000081503
06.08.2021,ADULT SOCIAL CARE,SERVESOUL LTD,265.04,PHY LTS 65+,HOMECARE - SPOT,2103302532,1000081503
06.08.2021,ADULT SOCIAL CARE,SERVESOUL LTD,308.77,PHY LTS 65+,HOMECARE - SPOT,2103302519,1000081503
06.08.2021,ADULT SOCIAL CARE,SERVESOUL LTD,325.46,PHY LTS 65+,HOMECARE - SPOT,2103302515,1000081503
06.08.2021,ADULT SOCIAL CARE,SERVESOUL LTD,325.46,PHY LTS 65+,HOMECARE - SPOT,2103302537,1000081503
06.08.2021,ADULT SOCIAL CARE,SERVESOUL LTD,425.6,PHY LTS 65+,HOMECARE - SPOT,2103302530,1000081503
06.08.2021,ADULT SOCIAL CARE,SERVESOUL LTD,650.91,PHY LTS 65+,HOMECARE - SPOT,2103302523,1000081503
06.08.2021,ADULT SOCIAL CARE,SERVESOUL LTD,650.91,PHY LTS 65+,HOMECARE - SPOT,2103302533,1000081503
06.08.2021,ADULT SOCIAL CARE,SERVESOUL LTD,671.77,PHY LTS 65+,HOMECARE - SPOT,2103302512,1000081503
06.08.2021,ADULT SOCIAL CARE,SERVESOUL LTD,671.77,PHY LTS 65+,HOMECARE - SPOT,2103302526,1000081503
06.08.2021,ASSET MANAGEMENT,FITZPATRICK & CO SOLICITORS,"8,152.20",DISREPAIR,LEGAL FEES & COURT COSTS,5902478145,1000076528
06.08.2021,ASSET MANAGEMENT HGF,DISPOSABLES AND CATERING SUPPLIES LTD,"1,112.75",160 TOOLEY ST.,BUILDING R&M,5902479505,1000082869
06.08.2021,CENTRAL FUNCTIONS,CBS MAINTENANCE SERVICES LTD,282,COMMERCIAL PROPERTIES,BUILDING R&M,5902480477,1000072375
06.08.2021,CENTRAL FUNCTIONS,BRESLIN CONSTRUCTION LTD,"2,300.00",COMMERCIAL PROPERTIES,BUILDING R&M,5902480481,1000078031
06.08.2021,CENTRAL FUNCTIONS,BRESLIN CONSTRUCTION LTD,"1,350.00",COMMERCIAL PROPERTIES,BUILDING R&M,2103302568,3000001948
06.08.2021,CENTRAL FUNCTIONS,SILK & MACKMAN SERVICES LTD,"2,100.00",GARAGE REPAIRS,BUILDING R&M,5902480531,1000035282
06.08.2021,CENTRAL FUNCTIONS,HUNTER & PARTNERS LTD,"3,000.00",LEDBURY ESTATE,CONSULTANTS SERVICES,5902479862,1000055088
06.08.2021,CHIEF EXECUTIVE,WALWORTH HOMES LTD,"29,865.46",CAPITAL PS (REGEN),CONST'N MAIN CONTRACT - NON CERTIFICATED,5902480484,1000079197
06.08.2021,CHIEF EXECUTIVE,WALWORTH HOMES LTD,"820,700.61",CAPITAL PS (REGEN),CONST'N MAIN CONTRACT - NON CERTIFICATED,5902480484,1000079197
06.08.2021,CHIEF EXECUTIVE,WALWORTH HOMES LTD,"1,198,635.73",CAPITAL PS (REGEN),CONST'N MAIN CONTRACT - NON CERTIFICATED,5902480574,1000079197
06.08.2021,CHIEF EXECUTIVE,WALWORTH HOMES LTD,"1,466,029.96",CAPITAL PS (REGEN),CONST'N MAIN CONTRACT - NON CERTIFICATED,5902480475,1000079197
06.08.2021,CHIEF EXECUTIVE,WARWICK LANDSCAPING LTD,"111,150.00",CAPITAL PS (REGEN),CONSTRUCTION,2103302570,3000001705
06.08.2021,CHIEF EXECUTIVE,WALWORTH HOMES LTD,"40,588.25",CAPITAL PS (REGEN),CONSTRUCTION FEES,5902480484,1000079197
06.08.2021,CHIEF EXECUTIVE,WALWORTH HOMES LTD,"57,534.52",CAPITAL PS (REGEN),CONSTRUCTION FEES,5902480574,1000079197
06.08.2021,CHIEF EXECUTIVE,WALWORTH HOMES LTD,"70,369.44",CAPITAL PS (REGEN),CONSTRUCTION FEES,5902480475,1000079197
06.08.2021,CHIEF EXECUTIVE,SANCHEZ BENTON ARCHITECTS LTD,574.47,CAPITAL PS (REGEN),CONSTRUCTION FEES - ARCHITECT,5902480498,1000080367
06.08.2021,CHILDREN AND FAMILIES,PARENTS AND CHILDREN TOGETHER,300,ADOPTION SUPP FUND,PROFESSIONAL FEES,5902480539,1000068128
06.08.2021,CHILDREN AND FAMILIES,PARENTS AND CHILDREN TOGETHER,349.5,ADOPTION SUPP FUND,PROFESSIONAL FEES,5902480540,1000068128
06.08.2021,CHILDREN AND FAMILIES,REDACTED PERSONAL DATA,344.57,ADOPTION SUPP FUND,PROFESSIONAL FEES,REDACTED,REDACTED
06.08.2021,CHILDREN AND FAMILIES,REDACTED PERSONAL DATA,421.31,ADOPTION SUPP FUND,PROFESSIONAL FEES,REDACTED,REDACTED
06.08.2021,CHILDREN AND FAMILIES,REDACTED PERSONAL DATA,821.94,ADOPTION SUPP FUND,PROFESSIONAL FEES,REDACTED,REDACTED
06.08.2021,CHILDREN AND FAMILIES,REDACTED PERSONAL DATA,357,ADOPTION SUPP FUND,PROFESSIONAL FEES,REDACTED,REDACTED
06.08.2021,CHILDREN AND FAMILIES,REDACTED PERSONAL DATA,300,FE SUPPORT,CLIENT TRANSPORT,REDACTED,REDACTED
06.08.2021,CHILDREN AND FAMILIES,TACT,396.42,FRIENDS & FAMILY FOSTERING,EXTERNAL AGENCIES AND BODIES,2103302498,1000012941
06.08.2021,CHILDREN AND FAMILIES,TACT,396.42,FRIENDS & FAMILY FOSTERING,EXTERNAL AGENCIES AND BODIES,2103302502,1000012941
06.08.2021,CHILDREN AND FAMILIES,CAPSTONE FOSTER CARE (SOUTH EAST) LTD,"-3,288.96",FRIENDS & FAMILY FOSTERING,EXTERNAL AGENCIES AND BODIES,2103302491,1000050353
06.08.2021,CHILDREN AND FAMILIES,CAPSTONE FOSTER CARE (SOUTH EAST) LTD,"-3,288.96",FRIENDS & FAMILY FOSTERING,EXTERNAL AGENCIES AND BODIES,2103302504,1000050353
06.08.2021,CHILDREN AND FAMILIES,CAPSTONE FOSTER CARE (SOUTH EAST) LTD,"-1,490.02",FRIENDS & FAMILY FOSTERING,EXTERNAL AGENCIES AND BODIES,2103288572,1000050353
06.08.2021,CHILDREN AND FAMILIES,CAPSTONE FOSTER CARE (SOUTH EAST) LTD,"2,114.33",FRIENDS & FAMILY FOSTERING,EXTERNAL AGENCIES AND BODIES,2103302500,1000050353
06.08.2021,CHILDREN AND FAMILIES,CAPSTONE FOSTER CARE (SOUTH EAST) LTD,"2,114.33",FRIENDS & FAMILY FOSTERING,EXTERNAL AGENCIES AND BODIES,2103302503,1000050353
06.08.2021,CHILDREN AND FAMILIES,CAPSTONE FOSTER CARE (SOUTH EAST) LTD,"3,523.88",FRIENDS & FAMILY FOSTERING,EXTERNAL AGENCIES AND BODIES,2103302490,1000050353
06.08.2021,CHILDREN AND FAMILIES,CAPSTONE FOSTER CARE (SOUTH EAST) LTD,"3,523.88",FRIENDS & FAMILY FOSTERING,EXTERNAL AGENCIES AND BODIES,2103302492,1000050353
06.08.2021,CHILDREN AND FAMILIES,FOSTERING FOR YOU LTD,"3,271.21",FRIENDS & FAMILY FOSTERING,EXTERNAL AGENCIES AND BODIES,2103302486,1000080380
06.08.2021,CHILDREN AND FAMILIES,FOSTERING FOR YOU LTD,"3,271.21",FRIENDS & FAMILY FOSTERING,EXTERNAL AGENCIES AND BODIES,2103302487,1000080380
06.08.2021,CHILDREN AND FAMILIES,FOSTERING FOR YOU LTD,"3,443.39",FRIENDS & FAMILY FOSTERING,EXTERNAL AGENCIES AND BODIES,2103302488,1000080380
06.08.2021,CHILDREN AND FAMILIES,FOSTERING FOR YOU LTD,"3,443.39",FRIENDS & FAMILY FOSTERING,EXTERNAL AGENCIES AND BODIES,2103302493,1000080380
06.08.2021,CHILDREN AND FAMILIES,FOSTERING FOR YOU LTD,"3,443.39",FRIENDS & FAMILY FOSTERING,EXTERNAL AGENCIES AND BODIES,2103302507,1000080380
06.08.2021,CHILDREN AND FAMILIES,FOSTERING FOR YOU LTD,"6,057.00",FRIENDS & FAMILY FOSTERING,EXTERNAL AGENCIES AND BODIES,2103302497,1000080380
06.08.2021,CHILDREN AND FAMILIES,FLOURISH FOSTERING LTD,"2,480.25",FRIENDS & FAMILY FOSTERING,EXTERNAL AGENCIES AND BODIES,2103302496,1000084796
06.08.2021,CHILDREN AND FAMILIES,FLOURISH FOSTERING LTD,"4,364.71",FRIENDS & FAMILY FOSTERING,EXTERNAL AGENCIES AND BODIES,2103302495,1000084796
06.08.2021,CHILDREN AND FAMILIES,FLOURISH FOSTERING LTD,"4,570.02",FRIENDS & FAMILY FOSTERING,EXTERNAL AGENCIES AND BODIES,2103302489,1000084796
06.08.2021,CHILDREN AND FAMILIES,FLOURISH FOSTERING LTD,"5,270.00",FRIENDS & FAMILY FOSTERING,EXTERNAL AGENCIES AND BODIES,2103302494,1000084796
06.08.2021,CHILDREN AND FAMILIES,OWNLIFE FOSTERING LIMITED,"4,371.48",FRIENDS & FAMILY FOSTERING,EXTERNAL AGENCIES AND BODIES,2103302501,1000086872
06.08.2021,CHILDREN AND FAMILIES,REDACTED PERSONAL DATA,"1,000.00",LEAVING CARE GRANT,OTHER PAYMENTS FOR CLIENTS,REDACTED,REDACTED
06.08.2021,CHILDREN AND FAMILIES,THE BEXLEY DAY NURSERY LIMITED,415.52,P & R CARE TEAM,EXTERNAL AGENCIES AND BODIES,5902480571,1000033000
06.08.2021,CHILDREN AND FAMILIES,REDACTED PERSONAL DATA,375,P & R CARE TEAM,OTHER PAYMENTS FOR CLIENTS,REDACTED,REDACTED
06.08.2021,CHILDREN AND FAMILIES,ELLIOT LEIGH TLC LTD,"-1,146.86",SEMI-IND CARELEAVERS,COSTS RECOVERED,2103302565,1000079022
06.08.2021,CHILDREN AND FAMILIES,ELLIOT LEIGH TLC LTD,-491.47,SEMI-IND CARELEAVERS,COSTS RECOVERED,2103302564,1000079022
06.08.2021,CHILDREN AND FAMILIES,ELLIOT LEIGH TLC LTD,-449.99,SEMI-IND CARELEAVERS,COSTS RECOVERED,2103302566,1000079022
06.08.2021,CHILDREN AND FAMILIES,CITYGLEN LTD,"1,395.00",SEMI-IND CARELEAVERS,EXTERNAL AGENCIES AND BODIES,5902479967,1000026239
06.08.2021,CHILDREN AND FAMILIES,ELLIOT LEIGH TLC LTD,"1,988.34",SEMI-IND CARELEAVERS,EXTERNAL AGENCIES AND BODIES,2103302541,1000079022
06.08.2021,CHILDREN AND FAMILIES,ELLIOT LEIGH TLC LTD,"2,015.00",SEMI-IND CARELEAVERS,EXTERNAL AGENCIES AND BODIES,2103302542,1000079022
06.08.2021,CHILDREN AND FAMILIES,ELLIOT LEIGH TLC LTD,"2,316.01",SEMI-IND CARELEAVERS,EXTERNAL AGENCIES AND BODIES,2103302554,1000079022
06.08.2021,CHILDREN AND FAMILIES,ELLIOT LEIGH TLC LTD,"2,502.01",SEMI-IND CARELEAVERS,EXTERNAL AGENCIES AND BODIES,2103302553,1000079022
06.08.2021,CHILDREN AND FAMILIES,STEP AHEAD SERVICES LTD,"20,194.29",SEMI-IND LAC 16-17,EXTERNAL AGENCIES AND BODIES,2103302559,1000036544
06.08.2021,CHILDREN AND FAMILIES,STEP AHEAD SERVICES LTD,310,SEMI-IND LAC 16-17,OTHER PAYMENTS FOR CLIENTS,2103302561,1000036544
06.08.2021,CHILDREN AND FAMILIES,APPLE DAYCARE LIMITED,898.42,SPECIAL GUARDIANSHIP,EXTERNAL AGENCIES AND BODIES,5902480488,1000086624
06.08.2021,CHILDREN AND FAMILIES,ORANGE GROVE FOSTERCARE LTD,"-1,210.20",STAYPUT- FOST CARERS,EXTERNAL AGENCIES AND BODIES,2103302550,1000078716
06.08.2021,CHILDREN AND FAMILIES,ORANGE GROVE FOSTERCARE LTD,"3,630.60",STAYPUT- FOST CARERS,EXTERNAL AGENCIES AND BODIES,2103302547,1000078716
06.08.2021,CHILDREN AND FAMILIES,WATERLILY & CO,"5,440.00",STEP UP,TRAINING,5902480502,1000083138
06.08.2021,CHILDREN AND FAMILIES,STEP AHEAD SERVICES LTD,"2,125.71",UASC CARELEAVERS,EXTERNAL AGENCIES AND BODIES,2103302544,1000036544
06.08.2021,CHILDREN AND FAMILIES,STEP AHEAD SERVICES LTD,"3,457.14",UASC CARELEAVERS,EXTERNAL AGENCIES AND BODIES,2103302548,1000036544
06.08.2021,CHILDREN AND FAMILIES,ELLIOT LEIGH TLC LTD,"1,713.68",UASC CARELEAVERS,EXTERNAL AGENCIES AND BODIES,2103302539,1000079022
06.08.2021,CHILDREN AND FAMILIES,ELLIOT LEIGH TLC LTD,"1,727.01",UASC CARELEAVERS,EXTERNAL AGENCIES AND BODIES,2103302551,1000079022
06.08.2021,CHILDREN AND FAMILIES,ELLIOT LEIGH TLC LTD,"2,391.34",UASC CARELEAVERS,EXTERNAL AGENCIES AND BODIES,2103302540,1000079022
06.08.2021,CHILDREN AND FAMILIES,ELLIOT LEIGH TLC LTD,"2,426.06",UASC CARELEAVERS,EXTERNAL AGENCIES AND BODIES,2103302552,1000079022
06.08.2021,CHILDREN AND FAMILIES,PURPLE PEBBLES(CHILD CARE) SERVICES,"2,957.14",UASC LAC 16-17,EXTERNAL AGENCIES AND BODIES,2103302556,1000070705
06.08.2021,CHILDREN AND FAMILIES,EPIC CARE HOME LTD,"3,808.57",UASC LAC 16-17,EXTERNAL AGENCIES AND BODIES,2103302557,1000084192
06.08.2021,CHILDREN AND FAMILIES,PURPLE PEBBLES(CHILD CARE) SERVICES,280,UASC LAC 16-17,OTHER PAYMENTS FOR CLIENTS,2103302560,1000070705
06.08.2021,CHILDREN AND FAMILIES,EPIC CARE HOME LTD,265.72,UASC LAC 16-17,OTHER PAYMENTS FOR CLIENTS,2103302558,1000084192
06.08.2021,COMMUNITIES,ARARA (ASTBURY ROAD AREA RESIDENTS ASSOCIATION),"2,000.00",EAST CENTRAL,GRANTS,5902479576,1000006449
06.08.2021,COMMUNITIES,GALAXY LETTINGS LTD,"1,658.50",NO RECOURSE TO PUBLIC FUNDS,ACCOMMODATION CHARGES,5902480599,1000055897
06.08.2021,COMMUNITIES,LIVING ACCOMMODATION LTD,"2,480.00",NO RECOURSE TO PUBLIC FUNDS,ACCOMMODATION CHARGES,5902480606,1000063985
06.08.2021,COMMUNITIES,RS REAL ESTATE LTD,"6,067.00",NO RECOURSE TO PUBLIC FUNDS,ACCOMMODATION CHARGES,5902480600,1000072485
06.08.2021,COMMUNITIES,TAAKSVALE HOUSING LTD,"31,698.50",NO RECOURSE TO PUBLIC FUNDS,ACCOMMODATION CHARGES,5902480517,1000073665
06.08.2021,COMMUNITIES,FINEFAIR LTD,"5,540.32",NO RECOURSE TO PUBLIC FUNDS,ACCOMMODATION CHARGES,5902480527,1000075570
06.08.2021,COMMUNITIES,SITTARA LTD,"32,205.50",NO RECOURSE TO PUBLIC FUNDS,ACCOMMODATION CHARGES,5902480501,1000080857
06.08.2021,COMMUNITIES,ZFA ACCOMMODATION LTD,"1,193.50",NO RECOURSE TO PUBLIC FUNDS,ACCOMMODATION CHARGES,5902480598,1000082620
06.08.2021,COMMUNITIES,HOMELY HOUSING LETS LTD,"1,060.20",NO RECOURSE TO PUBLIC FUNDS,OTHER PAYMENTS FOR CLIENTS,5902480515,1000050013
06.08.2021,COMMUNITIES HRA,CLIFTON ESTATE T&RA,"1,991.00",RESIDENTS PARTICIPATION FUND,GRANTS,5902480568,1000069623
06.08.2021,CUSTOMER EXPERIENCE,PLAN LONDON LTD,"2,288.00",SALES & ACQUISITIONS,PROFESSIONAL FEES,5902479669,1000056065
06.08.2021,CUSTOMER EXPERIENCE HGF,CHUBB FIRE & SECURITY LTD,"1,611.67",CORONER'S,OP LEASE/HIRE CHARGES:PLANT/EQUIP/FURNIT,5902480556,11166155
06.08.2021,CUSTOMER EXPERIENCE HGF,GUYS & ST THOMAS NHS FOUNDATION TRUST,"1,686.00",CORONER'S,OTHER CONTRACTORS,5902480503,1765536
06.08.2021,CUSTOMER EXPERIENCE HGF,GUYS & ST THOMAS NHS FOUNDATION TRUST,"4,134.00",CORONER'S,OTHER CONTRACTORS,5902480504,1765536
06.08.2021,CUSTOMER EXPERIENCE HGF,IMPERIAL COLLEGE PROJECTS LTD,312,CORONER'S,PROFESSIONAL FEES,5902479758,1000080106
06.08.2021,CUSTOMER EXPERIENCE HGF,IMPERIAL COLLEGE PROJECTS LTD,388,CORONER'S,PROFESSIONAL FEES,5902479756,1000080106
06.08.2021,CUSTOMER EXPERIENCE HGF,IMPERIAL COLLEGE PROJECTS LTD,388,CORONER'S,PROFESSIONAL FEES,5902479760,1000080106
06.08.2021,CUSTOMER EXPERIENCE HGF,IMPERIAL COLLEGE PROJECTS LTD,408,CORONER'S,PROFESSIONAL FEES,5902479705,1000080106
06.08.2021,CUSTOMER EXPERIENCE HGF,IMPERIAL COLLEGE PROJECTS LTD,408,CORONER'S,PROFESSIONAL FEES,5902479708,1000080106
06.08.2021,CUSTOMER EXPERIENCE HGF,IMPERIAL COLLEGE PROJECTS LTD,408,CORONER'S,PROFESSIONAL FEES,5902479763,1000080106
06.08.2021,CUSTOMER EXPERIENCE HGF,IMPERIAL COLLEGE PROJECTS LTD,408,CORONER'S,PROFESSIONAL FEES,5902479764,1000080106
06.08.2021,CUSTOMER EXPERIENCE HGF,NRC PATHOLOGY SERVICES LIMITED,360,CORONER'S,PROFESSIONAL FEES,5902480607,1000085798
06.08.2021,CUSTOMER EXPERIENCE HGF,NRC PATHOLOGY SERVICES LIMITED,360,CORONER'S,PROFESSIONAL FEES,5902480608,1000085798
06.08.2021,CUSTOMER EXPERIENCE HGF,FORENSIC PATHOLOGY SERVICES,461.9,CORONER'S,PROFESSIONAL FEES,5902479627,1000086871
06.08.2021,CUSTOMER EXPERIENCE HGF,FORENSIC PATHOLOGY SERVICES,461.9,CORONER'S,PROFESSIONAL FEES,5902479630,1000086871
06.08.2021,CUSTOMER EXPERIENCE HGF,FORENSIC PATHOLOGY SERVICES,471.9,CORONER'S,PROFESSIONAL FEES,5902479632,1000086871
06.08.2021,CUSTOMER EXPERIENCE HGF,TELEFONICA O2 UK LTD,"70,893.21",IT MANAGEMENT,TELEPHONES (MOBILES),5902480521,11269631
06.08.2021,CUSTOMER EXPERIENCE HGF,THE KNOWLEDGE ACADEMY LTD,"1,000.00",TECHNOLOGY TRANSFORMATION,TRAINING,5902480510,1000064533
06.08.2021,EDUCATION,CATHERINE RUSHFORTH & ASSOCIATES,"1,750.00",L&A SALARIES,TRAINING,5902480559,1000055976
06.08.2021,EMPLOYEE EXPERIENCE,THEATRE PECKHAM,"6,600.00",MEMBER DEVELOPMENT,TRAINING,5902480505,1071668
06.08.2021,EMPLOYEE EXPERIENCE,CENTRE FOR GOVERNANCE & SCRUTINY,800,MEMBER DEVELOPMENT,TRAINING,5902480467,1000076455
06.08.2021,ENV & LEIS,BELL BRUSH COMPANY,438,MANAGEMENT TEAM,MATERIALS,5902479517,1259776
06.08.2021,ENVIRONMENT AND LEISURE,INTO SERVICES LONDON LTD,"2,584.00",CAPITAL PS (LEISURE),CONST'N MAIN CONTRACT - NON CERTIFICATED,5902480136,1000059328
06.08.2021,ENVIRONMENT AND LEISURE,G STOW PLC,"6,900.00",CAPITAL PS (LEISURE),CONSTRUCTION,5902479966,1000055396
06.08.2021,ENVIRONMENT AND LEISURE,SITE ENGINEERING SURVEYS LTD,930,CAPITAL PS (LEISURE),CONSTRUCTION FEES  - EXTERNAL,5902480473,1000004916
06.08.2021,ENVIRONMENT AND LEISURE,METIS CONSULTANTS LIMITED,"1,748.75",CAPITAL PS (LEISURE),CONSTRUCTION FEES  - EXTERNAL,5902480601,1000086330
06.08.2021,ENVIRONMENT DIRECTORATE,LONDON COUNCILS,"33,099.09",ALG ACCOUNT,PROFESSIONAL FEES,5902479612,11237079
06.08.2021,ENVIRONMENT DIRECTORATE,DAWSONGROUP VANS LTD,258.85,COMMERCIAL VEH CTRL A/C,HIRED VEHICLES,5902480432,1000082230
06.08.2021,ENVIRONMENT DIRECTORATE,DAWSONGROUP VANS LTD,258.85,COMMERCIAL VEH CTRL A/C,HIRED VEHICLES,5902480436,1000082230
06.08.2021,ENVIRONMENT DIRECTORATE,DAWSONGROUP VANS LTD,258.85,COMMERCIAL VEH CTRL A/C,HIRED VEHICLES,5902480437,1000082230
06.08.2021,ENVIRONMENT DIRECTORATE,DAWSONGROUP VANS LTD,258.85,COMMERCIAL VEH CTRL A/C,HIRED VEHICLES,5902480438,1000082230
06.08.2021,ENVIRONMENT DIRECTORATE,DAWSONGROUP VANS LTD,275.9,COMMERCIAL VEH CTRL A/C,HIRED VEHICLES,5902480423,1000082230
06.08.2021,ENVIRONMENT DIRECTORATE,DAWSONGROUP VANS LTD,275.9,COMMERCIAL VEH CTRL A/C,HIRED VEHICLES,5902480424,1000082230
06.08.2021,ENVIRONMENT DIRECTORATE,DAWSONGROUP VANS LTD,275.9,COMMERCIAL VEH CTRL A/C,HIRED VEHICLES,5902480425,1000082230
06.08.2021,ENVIRONMENT DIRECTORATE,DAWSONGROUP VANS LTD,275.9,COMMERCIAL VEH CTRL A/C,HIRED VEHICLES,5902480426,1000082230
06.08.2021,ENVIRONMENT DIRECTORATE,DAWSONGROUP VANS LTD,275.9,COMMERCIAL VEH CTRL A/C,HIRED VEHICLES,5902480428,1000082230
06.08.2021,ENVIRONMENT DIRECTORATE,DAWSONGROUP VANS LTD,275.9,COMMERCIAL VEH CTRL A/C,HIRED VEHICLES,5902480429,1000082230
06.08.2021,ENVIRONMENT DIRECTORATE,DAWSONGROUP VANS LTD,275.9,COMMERCIAL VEH CTRL A/C,HIRED VEHICLES,5902480442,1000082230
06.08.2021,ENVIRONMENT DIRECTORATE,DAWSONGROUP VANS LTD,300.08,COMMERCIAL VEH CTRL A/C,HIRED VEHICLES,5902480413,1000082230
06.08.2021,ENVIRONMENT DIRECTORATE,DAWSONGROUP VANS LTD,300.08,COMMERCIAL VEH CTRL A/C,HIRED VEHICLES,5902480414,1000082230
06.08.2021,ENVIRONMENT DIRECTORATE,DAWSONGROUP VANS LTD,300.08,COMMERCIAL VEH CTRL A/C,HIRED VEHICLES,5902480415,1000082230
06.08.2021,ENVIRONMENT DIRECTORATE,DAWSONGROUP VANS LTD,300.08,COMMERCIAL VEH CTRL A/C,HIRED VEHICLES,5902480416,1000082230
06.08.2021,ENVIRONMENT DIRECTORATE,DAWSONGROUP VANS LTD,300.08,COMMERCIAL VEH CTRL A/C,HIRED VEHICLES,5902480417,1000082230
06.08.2021,ENVIRONMENT DIRECTORATE,DAWSONGROUP VANS LTD,300.08,COMMERCIAL VEH CTRL A/C,HIRED VEHICLES,5902480419,1000082230
06.08.2021,ENVIRONMENT DIRECTORATE,DAWSONGROUP VANS LTD,300.08,COMMERCIAL VEH CTRL A/C,HIRED VEHICLES,5902480420,1000082230
06.08.2021,ENVIRONMENT DIRECTORATE,DAWSONGROUP VANS LTD,300.08,COMMERCIAL VEH CTRL A/C,HIRED VEHICLES,5902480421,1000082230
06.08.2021,ENVIRONMENT DIRECTORATE,DAWSONGROUP VANS LTD,300.08,COMMERCIAL VEH CTRL A/C,HIRED VEHICLES,5902480422,1000082230
06.08.2021,ENVIRONMENT DIRECTORATE,DAWSONGROUP VANS LTD,300.08,COMMERCIAL VEH CTRL A/C,HIRED VEHICLES,5902480430,1000082230
06.08.2021,ENVIRONMENT DIRECTORATE,DAWSONGROUP VANS LTD,300.08,COMMERCIAL VEH CTRL A/C,HIRED VEHICLES,5902480440,1000082230
06.08.2021,ENVIRONMENT DIRECTORATE,DAWSONGROUP VANS LTD,324.08,COMMERCIAL VEH CTRL A/C,HIRED VEHICLES,5902480433,1000082230
06.08.2021,ENVIRONMENT DIRECTORATE,DAWSONGROUP VANS LTD,452.6,COMMERCIAL VEH CTRL A/C,HIRED VEHICLES,5902480418,1000082230
06.08.2021,ENVIRONMENT DIRECTORATE,1ENV SOLUTIONS LTD,482.63,PEST CONTROL,MATERIALS,5902480483,1000075410
06.08.2021,ENVIRONMENT DIRECTORATE,1ENV SOLUTIONS LTD,654.65,PEST CONTROL,MATERIALS,5902480486,1000075410
06.08.2021,ENVIRONMENT DIRECTORATE,1ENV SOLUTIONS LTD,"1,784.11",PEST CONTROL,MATERIALS,5902480480,1000075410
06.08.2021,ENVIRONMENT DIRECTORATE,1ENV SOLUTIONS LTD,"2,836.77",PEST CONTROL,MATERIALS,5902480478,1000075410
06.08.2021,ENVIRONMENT DIRECTORATE,BRITISH GAS,332.64,STREET TRADING A/C,ELECTRICITY,5902480528,1000054825
06.08.2021,ENVIRONMENT DIRECTORATE,BRITISH GAS,332.98,STREET TRADING A/C,ELECTRICITY,5902480530,1000054825
06.08.2021,ENVIRONMENT DIRECTORATE,BRITISH GAS,333.86,STREET TRADING A/C,ELECTRICITY,5902480529,1000054825
06.08.2021,ENVIRONMENT DIRECTORATE,VEOLIA ES SOUTHWARK LTD,"31,754.07",WASTE PFI,VEHICLE FUEL,5902480491,1000056979
06.08.2021,F & C S EXCLUDING CORPORATE BUDGETS,NEC SOFTWARE SOLUTIONS UK LTD,268.58,ADMINISTRATIVE SUPPORT,POSTAGES,5902479590,1000087043
06.08.2021,F & C S EXCLUDING CORPORATE BUDGETS,NEC SOFTWARE SOLUTIONS UK LTD,"9,000.00",ADMINISTRATIVE SUPPORT,POSTAGES,5902480584,1000087043
06.08.2021,F & C S EXCLUDING CORPORATE BUDGETS,NEC SOFTWARE SOLUTIONS UK LTD,"30,000.00",ADMINISTRATIVE SUPPORT,POSTAGES,5902480584,1000087043
06.08.2021,HOUSING,SMITH & BYFORD LTD,"552,246.17",SMITH AND BYFORD,I-WORLD CONTRACTORS HOLDING ACCOUNT,2103302567,3000000520
06.08.2021,HOUSING GENERAL FUND,FLEXIFORM BUSINESS FURNITURE LIMITED,"1,200.00",CAPITAL PS (HOUSING GF),FURNITURE & FITTINGS ACQUISITION,5902480450,1000043435
06.08.2021,HOUSING HRA,PARKERS REMOVAL SERVICES,"2,260.00",CAPITAL PS (HRA),CAPITAL GRANTS,5902480537,1000081345
06.08.2021,HOUSING HRA,LASER SURVEYS LIMITED,"3,550.00",CAPITAL PS (HRA),CONSTRUCTION FEES  - EXTERNAL,5902480494,1000051587
06.08.2021,HOUSING HRA,EMS EVENTS LTD,377.46,CAPITAL PS (HRA),CONSTRUCTION FEES  - EXTERNAL,5902479759,1000057494
06.08.2021,HOUSING HRA,RUSKINS TREES & LANDSCAPES LTD,"2,790.00",CAPITAL PS (HRA),CONSTRUCTION FEES  - EXTERNAL,5902480526,1000076566
06.08.2021,HOUSING HRA,PJC CONSULTANCY LTD,280,CAPITAL PS (HRA),CONSTRUCTION FEES  - EXTERNAL,5902480533,1000077403
06.08.2021,HOUSING HRA,KARAKUSEVIC CARSON ARCHITECTS,"34,000.00",CAPITAL PS (HRA),CONSTRUCTION FEES - ARCHITECT,5902480583,1000055150
06.08.2021,HOUSING HRA,CALFORD SEADEN LLP,"7,500.00",CAPITAL PS (HRA),CONSTRUCTION FEES - EMPLOYERS AGENT,5902479792,1061592
06.08.2021,HOUSING HRA,GUILDMORE LTD,"458,353.36",CAPITAL PS (HRA),CONSTRUCTION MAIN CONTRACT -CERTIFICATED,2103302569,3000002150
06.08.2021,HOUSING HRA,WALWORTH HOMES LTD,"22,217.60",CAPITAL PS (REGEN),CONSTRUCTION FEES,5902480490,1000079197
06.08.2021,HOUSING HRA,HTA DESIGN LLP,"1,445.00",CAPITAL PS (REGEN),CONSTRUCTION FEES  - EXTERNAL,5902480472,1000074662
06.08.2021,LEISURE DIRECTORATE,PORTABLE SPACE LTD,"1,920.00",CEMETERIES,BUILDING R&M,5902480482,1000083256
06.08.2021,LEISURE DIRECTORATE,QUADRON SERVICES LIMITED,"5,872.11",SOUTHWARK AREA TEAM,GROUNDS MAINTENANCE,5902480572,1000066528
06.08.2021,NEW BUILD,CALFORD SEADEN (HEALTH & SAFETY) LTD,"3,300.00",DEVELOPMENT DELIVERY,CONSULTANTS SERVICES,5902480487,1097125
06.08.2021,NEW BUILD,WEBB YATES ENGINEERS LTD,"4,050.00",DEVELOPMENT DELIVERY,PROFESSIONAL FEES,5902480514,1000085861
06.08.2021,PLANNING AND TRANSPORT,BUTLER HEGARTY ARCHITECTS LTD,260,PECKHAM TOWNSCAPE HERITAGE INITIATIVE,MISCELLANEOUS EXPENSES,5902480602,1000077437
06.08.2021,PLANNING AND TRANSPORT,BUTLER HEGARTY ARCHITECTS LTD,"1,400.00",PECKHAM TOWNSCAPE HERITAGE INITIATIVE,MISCELLANEOUS EXPENSES,5902480602,1000077437
06.08.2021,PUBLIC HEALTH,BONAMY PHARMACY (MILDCARE LIMITED),952,COVID-19 MASS RAPID TESTING,EXTERNAL AGENCIES AND BODIES,5902480457,1000063072
06.08.2021,PUBLIC HEALTH,BONAMY PHARMACY (MILDCARE LIMITED),"1,092.00",COVID-19 MASS RAPID TESTING,EXTERNAL AGENCIES AND BODIES,5902480459,1000063072
06.08.2021,REGENERATION,BRESLIN CONSTRUCTION LTD,650,CPHA  MANAGED PROPERTIES,BUILDING R&M,5902480535,1000078031
06.08.2021,REGENERATION,WESTCO TRADING LTD,"2,090.00",MASTER PLAN-H/WAY & TRANS INTERCHANGE,MARKETING & PUBLICITY SERVICES,5902480412,1000069599
06.08.2021,RESIDENT SERVICES HGF,QUINARY LTD,"6,987.65",NIGHTLY TA (NSC),EXTERNAL AGENCIES AND BODIES,5902480513,1000029106
06.08.2021,RESIDENT SERVICES HGF,CROWN HOUSING LTD,"5,363.00",NIGHTLY TA (NSC),EXTERNAL AGENCIES AND BODIES,5902480507,1000075070
06.08.2021,RESIDENT SERVICES HGF,SECURENT LTD,"8,608.70",NIGHTLY TA (NSC),EXTERNAL AGENCIES AND BODIES,5902480468,1000079400
06.08.2021,RESIDENT SERVICES HGF,OAK HOUSING LTD,"3,496.18",PSL PLACEMENTS,EXTERNAL AGENCIES AND BODIES,5902480474,1000079310
06.08.2021,RESIDENT SERVICES HGF,CIRCA HOMES LTD,"2,780.93",PSL PLACEMENTS,EXTERNAL AGENCIES AND BODIES,5902480585,1000083021
06.08.2021,SBS SUPPORT,NEC SOFTWARE SOLUTIONS UK LTD,"1,700.00",BUSINESS SUPPORT,CONSULTANTS SERVICES,5902479601,1000087043
07.08.2021,CENTRAL FUNCTIONS,CALFORD SEADEN LLP,650,COMMERCIAL PROPERTIES,PROFESSIONAL FEES,5902480164,1061592
07.08.2021,CHIEF EXECUTIVE,BRESLIN CONSTRUCTION LTD,"20,000.00",CAPITAL PS (REGEN),CONSTRUCTION FEES  - EXTERNAL,2103301473,3000001948
07.08.2021,COMMUNITIES,TOGETHER FOR MENTAL WELLBEING,"13,905.00",SOUTHWARK ANTI VIOLENCE UNIT,PROFESSIONAL FEES,5902479738,1000084108
07.08.2021,COMMUNITIES,FLASHY WINGS MINISTRY,"3,500.00",WEST CENTRAL,GRANTS,5902480120,1000084265
07.08.2021,CUSTOMER EXPERIENCE HGF,ALLIED PUBLICITY SERVICES (MANCHESTER) LTD,"1,013.98",BLUE BADGES,MATERIALS,5902479600,1000082115
07.08.2021,ENV & LEIS,BELL BRUSH COMPANY,420,MANAGEMENT TEAM,MATERIALS,5902479992,1259776
07.08.2021,F & C S EXCLUDING CORPORATE BUDGETS,GRANT THORNTON UK LLP,"32,000.00",EXTERNAL AUDIT GRANT FEES,PROFESSIONAL FEES,5902479727,1000058344
07.08.2021,HOUSING HRA,OSM SURVEYORS LTD,"4,200.00",CAPITAL PS (HRA),CONSTRUCTION FEES  - EXTERNAL,5902480016,1000086022
07.08.2021,HOUSING HRA,CALFORD SEADEN LLP,"1,470.00",CAPITAL PS (HRA),CONSTRUCTION FEES - EMPLOYERS AGENT,5902480005,1061592
07.08.2021,HOUSING HRA,VITAL ENERGI UTILITIES LTD,"56,807.45",CAPITAL PS (HRA),CONSTRUCTION MAIN CONTRACT -CERTIFICATED,2103299287,3000001040
07.08.2021,LEISURE DIRECTORATE,BE ACTIVE SOCIAL ENTERPRISE CIC,"7,500.00",BURGESS AREA TEAM,PROFESSIONAL FEES,5902479896,1000066673
07.08.2021,LEISURE DIRECTORATE,BARNES MEMORIALS LTD,"2,260.00",CEMETERIES,OTHER R&M,5902479754,1000079160
07.08.2021,LEISURE DIRECTORATE,TELESHORE UK LTD,514,CREMATORIUM,MATERIALS,5902479993,1000075290
07.08.2021,LEISURE DIRECTORATE,THE COLUMBARIA COMPANY,316,CREMATORIUM,SUBSCRIPTIONS,5902479970,1632437
07.08.2021,REGENERATION,STRUTT & PARKER,750,CPHA SURPLUS,PROFESSIONAL FEES,5902479713,1000079964
08.08.2021,ASSET MANAGEMENT,ESSENTIAL SITE SKILLS LIMITED,"1,635.00",REPAIRS OPERATIONS,TRAINING,5902480567,1000086849
08.08.2021,CHILDREN AND FAMILIES,NETWORK RECRUITMENT SOLUTIONS,340,CONTACT SERVICE,OTHER PAYMENTS FOR CLIENTS,5902480338,1000071241
08.08.2021,CHILDREN AND FAMILIES,NETWORK RECRUITMENT SOLUTIONS,340,CONTACT SERVICE,OTHER PAYMENTS FOR CLIENTS,5902480339,1000071241
08.08.2021,CHILDREN AND FAMILIES,NETWORK RECRUITMENT SOLUTIONS,424.38,CONTACT SERVICE,OTHER PAYMENTS FOR CLIENTS,5902480329,1000071241
08.08.2021,CHILDREN AND FAMILIES,NETWORK RECRUITMENT SOLUTIONS,525,CONTACT SERVICE,OTHER PAYMENTS FOR CLIENTS,5902480330,1000071241
08.08.2021,CHILDREN AND FAMILIES,NETWORK RECRUITMENT SOLUTIONS,550,CONTACT SERVICE,OTHER PAYMENTS FOR CLIENTS,5902480333,1000071241
08.08.2021,CHILDREN AND FAMILIES,NETWORK RECRUITMENT SOLUTIONS,627,CONTACT SERVICE,OTHER PAYMENTS FOR CLIENTS,5902480334,1000071241
08.08.2021,CHILDREN AND FAMILIES,NETWORK RECRUITMENT SOLUTIONS,"1,050.00",CONTACT SERVICE,OTHER PAYMENTS FOR CLIENTS,5902480337,1000071241
08.08.2021,COMMUNITIES HRA,FAIR COMMUNITY HSG SERVICES LTD,"6,279.86",FAIR CHS TMO,M&M ALLOWANCE CO-OPS,5902480083,1000039650
08.08.2021,ENVIRONMENT DIRECTORATE,PERFORMANCE CHEMICALS LTD,845,ESTATE CLEANING-GENERAL,MATERIALS,5902480275,1000037129
08.08.2021,ENVIRONMENT DIRECTORATE,SOUTHWARK NEWSPAPER LTD,300,HIGHWAYS DEVELOPMENT,MARKETING & PUBLICITY SERVICES,5902480085,1556957
08.08.2021,ENVIRONMENT DIRECTORATE,TYCO INTEGRATED FIRE & SECURITY,"4,119.59",PARKING & CAR PARKS CCTV,PROFESSIONAL FEES,5902480579,1000077948
08.08.2021,ENVIRONMENT DIRECTORATE,TYCO INTEGRATED FIRE & SECURITY,"10,752.25",TOWN CENTRE CCTV,EQUIPMENT PURCHASE & REPAIR,5902480558,1000077948
08.08.2021,ENVIRONMENT DIRECTORATE,TYCO INTEGRATED FIRE & SECURITY,792.97,TOWN CENTRE CCTV,OTHER CONTRACTORS,5902480577,1000077948
08.08.2021,EXTERNAL AFFAIRS,WEB LABS LTD,"2,000.00",MEDIA & E-COMMUNICATIONS,INFORMATION MANAGEMENT,5902479904,1000039819
08.08.2021,HOUSING HRA,CALFORD SEADEN LLP,"2,058.00",CAPITAL PS (HRA),CONSTRUCTION FEES  - EXTERNAL,5902480003,1061592
08.08.2021,HOUSING HRA,KARAKUSEVIC CARSON ARCHITECTS,"42,822.00",CAPITAL PS (HRA),CONSTRUCTION FEES - ARCHITECT,5902480580,1000055150
08.08.2021,HOUSING HRA,CALFORD SEADEN LLP,"1,764.00",CAPITAL PS (HRA),CONSTRUCTION FEES - EMPLOYERS AGENT,5902480029,1061592
08.08.2021,HOUSING HRA,DJJH CONSULTING LTD,483.18,CAPITAL PS (HRA),CONSTRUCTION FEES - EMPLOYERS AGENT,5902479934,1000085261
08.08.2021,HOUSING HRA,KARAKUSEVIC CARSON ARCHITECTS,"47,981.00",CAPITAL PS (REGEN),CONST'N MAIN CONTRACT - NON CERTIFICATED,5902479906,1000055150
08.08.2021,LEISURE DIRECTORATE,WHATEVER DESIGN LTD,528,HOLIDAY PROGRAMME,MARKETING & PUBLICITY SERVICES,5902480001,1000036500
08.08.2021,LEISURE DIRECTORATE,C S G (USHERS) LTD,"11,362.00",TREES PRINCIPAL ROADS,TREE MAINTENANCE,5902479917,1000073203
08.08.2021,LEISURE DIRECTORATE,C S G (USHERS) LTD,"36,089.00",TREES PRINCIPAL ROADS,TREE MAINTENANCE,5902479937,1000073203
08.08.2021,REGENERATION,SOCIAL LIFE LTD,"24,991.67",MASTER PLAN-H/WAY & TRANS INTERCHANGE,PROFESSIONAL FEES,5902479794,1000084157
09.08.2021,ADULT SOCIAL CARE,REDACTED PERSONAL DATA,279.85,APPOINTEESHIPS,OTHER PAYMENTS FOR CLIENTS,REDACTED,REDACTED
09.08.2021,ADULT SOCIAL CARE,TEAM TEACH LTD,"3,050.00",ASW - PROFESSIONAL DEVELOPMENT,TRAINING,5902480719,11257026
09.08.2021,ADULT SOCIAL CARE,CAMBIAN AUTISM SERVICES LTD,"11,219.40",DISABILITIES LAC,RESIDENTIAL CARE,2103303606,1000074719
09.08.2021,ADULT SOCIAL CARE,CAMBIAN AUTISM SERVICES LTD,"30,616.68",DISABILITIES LAC,RESIDENTIAL CARE,2103303607,1000074719
09.08.2021,ADULT SOCIAL CARE,PRIORS COURT SERVICES LTD,"8,320.00",DISABILITIES LAC,RESIDENTIAL CARE,2103303610,1000085127
09.08.2021,ADULT SOCIAL CARE,SERVESOUL LTD,265.04,PHY LTS 65+,HOMECARE - SPOT,2103303584,1000081503
09.08.2021,ADULT SOCIAL CARE,SERVESOUL LTD,265.04,PHY LTS 65+,HOMECARE - SPOT,2103303602,1000081503
09.08.2021,ADULT SOCIAL CARE,SERVESOUL LTD,325.46,PHY LTS 65+,HOMECARE - SPOT,2103303588,1000081503
09.08.2021,ADULT SOCIAL CARE,SERVESOUL LTD,325.46,PHY LTS 65+,HOMECARE - SPOT,2103303597,1000081503
09.08.2021,ADULT SOCIAL CARE,SERVESOUL LTD,650.91,PHY LTS 65+,HOMECARE - SPOT,2103303592,1000081503
09.08.2021,ADULT SOCIAL CARE,SERVESOUL LTD,650.91,PHY LTS 65+,HOMECARE - SPOT,2103303605,1000081503
09.08.2021,ADULT SOCIAL CARE,SERVESOUL LTD,671.77,PHY LTS 65+,HOMECARE - SPOT,2103303585,1000081503
09.08.2021,ADULT SOCIAL CARE,SERVESOUL LTD,671.77,PHY LTS 65+,HOMECARE - SPOT,2103303603,1000081503
09.08.2021,ADULT SOCIAL CARE,CAMBRIDGE HOUSE & TALBOT,"4,586.75",SHORT BREAKS,EXTERNAL AGENCIES AND BODIES,5902480659,1139414
09.08.2021,ADULT SOCIAL CARE,CAPITAL HOMECARE (UK) LTD,"2,660.00",SPECIALIST CARE,SECTION 17 PAYMENTS TO AGENCIES/CARERS,2103303613,1000042589
09.08.2021,ADULT SOCIAL CARE,CHILDREN'S COMPLEX  CARE LTD,366.24,SPECIALIST CARE,SECTION 17 PAYMENTS TO AGENCIES/CARERS,2103303612,1000069262
09.08.2021,ADULT SOCIAL CARE,CHILDREN'S COMPLEX  CARE LTD,366.24,SPECIALIST CARE,SECTION 17 PAYMENTS TO AGENCIES/CARERS,2103303618,1000069262
09.08.2021,ADULT SOCIAL CARE,CHILDREN'S COMPLEX  CARE LTD,961.38,SPECIALIST CARE,SECTION 17 PAYMENTS TO AGENCIES/CARERS,2103303616,1000069262
09.08.2021,ADULT SOCIAL CARE,CHILDREN'S COMPLEX  CARE LTD,"2,366.92",SPECIALIST CARE,SECTION 17 PAYMENTS TO AGENCIES/CARERS,2103303617,1000069262
09.08.2021,ADULT SOCIAL CARE,CHILDREN'S COMPLEX  CARE LTD,"5,104.08",SPECIALIST CARE,SECTION 17 PAYMENTS TO AGENCIES/CARERS,2103303615,1000069262
09.08.2021,ASSET MANAGEMENT,LPS CONSULTING (LONDON) LIMITED,"10,200.00",DIRECTOR OF ASSET MANAGEMENT,PROFESSIONAL FEES,5902480742,1000084208
09.08.2021,ASSET MANAGEMENT,AVONLINE NETWORK SERVICES LTD,548.09,ENG CONTRACTS (NORTH),TV AERIALS R&M,5902480736,1000068672
09.08.2021,ASSET MANAGEMENT,AVONLINE NETWORK SERVICES LTD,891.41,ENG CONTRACTS (NORTH),TV AERIALS R&M,5902480733,1000068672
09.08.2021,ASSET MANAGEMENT,SCS TECHNOLOGIES LTD,"1,914.26",ENG CONTRACTS (NORTH),TV AERIALS R&M,5902480744,1000069919
09.08.2021,ASSET MANAGEMENT,SEDGWICK INTERNATIONAL UK,322,REPAIRS OPERATIONS,PROFESSIONAL FEES,5902480707,1000082289
09.08.2021,ASSET MANAGEMENT HGF,FLAGMAKERS,380.63,160 TOOLEY ST.,BUILDING R&M,5902480694,1000065790
09.08.2021,ASSET MANAGEMENT HGF,TFL TELESALES / OYSTER FULFILMENT,385,160 TOOLEY ST.,PUBLIC TRANSPORT,5902480133,1000059727
09.08.2021,ASSET MANAGEMENT HGF,IWFM,255,CFM OPERATIONAL BUDGET,TRAINING,5902480632,1000078202
09.08.2021,ASSET MANAGEMENT HGF,FLAGMAKERS,363.4,QUEENS RD 1 (BLOCK F),BUILDING R&M,5902480694,1000065790
09.08.2021,ASSET MANAGEMENT HGF,ANTALIS LTD,636.28,QUEENS RD 1 (BLOCK F),STATIONERY,5902480597,1000066919
09.08.2021,CENTRAL FUNCTIONS,MARSHALL SURVEY ASSOCIATES LTD,"3,795.00",COMMERCIAL PROPERTIES,PROFESSIONAL FEES,5902480452,1000051825
09.08.2021,CHIEF EXECUTIVE,F M CONWAY LTD,"6,908.74",CAPITAL PS (REGEN),CONSTRUCTION,2103302060,4001384
09.08.2021,CHIEF EXECUTIVE,CAMBRIDGE ENVIRONMENTAL RESEARCH,"7,500.00",CAPITAL PS (REGEN),CONSTRUCTION FEES  - EXTERNAL,5902480693,1000004793
09.08.2021,CHIEF EXECUTIVE,RED R DESIGN,"1,340.00",CAPITAL PS (REGEN),CONSTRUCTION FEES  - EXTERNAL,5902480773,1000035984
09.08.2021,CHIEF EXECUTIVE'S OFFICE,WELLFAIR2WORK LTD,"34,852.00",CHIEF EXECUTIVE'S OFFICE,EXTERNAL AGENCIES AND BODIES,5902480650,1000078927
09.08.2021,CHILDREN AND FAMILIES,BARNARDO'S FINANCE,"1,894.90",ADOPT LONDON SOUTH,EXTERNAL AGENCIES AND BODIES,5902480724,1000085616
09.08.2021,CHILDREN AND FAMILIES,REDACTED PERSONAL DATA,300,ADOPT LONDON SOUTH,EXTERNAL AGENCIES AND BODIES,REDACTED,REDACTED
09.08.2021,CHILDREN AND FAMILIES,THE FAMILY PLACE LTD,390,ADOPTION SUPP FUND,PROFESSIONAL FEES,5902480729,1000077965
09.08.2021,CHILDREN AND FAMILIES,CAMBIAN WHINFELL SCHOOL LTD,"58,738.32",CHILDREN�S RESID,RESIDENTIAL CARE,2103303608,1000074734
09.08.2021,CHILDREN AND FAMILIES,AREA CAMDEN LTD,"-10,671.48",CHILDREN�S RESID,RESIDENTIAL CARE,2103303611,1000083221
09.08.2021,CHILDREN AND FAMILIES,AREA CAMDEN LTD,"18,378.66",CHILDREN�S RESID,RESIDENTIAL CARE,2103303609,1000083221
09.08.2021,CHILDREN AND FAMILIES,TAVISTOCK & PORTMAN NHS FOUNDATION TRUST ,"16,500.00",FDAC,EXTERNAL AGENCIES AND BODIES,5902480671,1991321
09.08.2021,CHILDREN AND FAMILIES,TACT,"3,906.00",FRIENDS & FAMILY FOSTERING,EXTERNAL AGENCIES AND BODIES,2103303648,1000012941
09.08.2021,CHILDREN AND FAMILIES,TACT,"3,998.72",FRIENDS & FAMILY FOSTERING,EXTERNAL AGENCIES AND BODIES,2103303625,1000012941
09.08.2021,CHILDREN AND FAMILIES,TACT,"4,220.34",FRIENDS & FAMILY FOSTERING,EXTERNAL AGENCIES AND BODIES,2103303649,1000012941
09.08.2021,CHILDREN AND FAMILIES,TACT,"4,956.14",FRIENDS & FAMILY FOSTERING,EXTERNAL AGENCIES AND BODIES,2103303628,1000012941
09.08.2021,CHILDREN AND FAMILIES,TACT,"7,041.34",FRIENDS & FAMILY FOSTERING,EXTERNAL AGENCIES AND BODIES,2103303629,1000012941
09.08.2021,CHILDREN AND FAMILIES,GREATER LONDON FOSTERING,994.8,FRIENDS & FAMILY FOSTERING,EXTERNAL AGENCIES AND BODIES,2103303650,1000029184
09.08.2021,CHILDREN AND FAMILIES,GREATER LONDON FOSTERING,"3,286.00",FRIENDS & FAMILY FOSTERING,EXTERNAL AGENCIES AND BODIES,2103303634,1000029184
09.08.2021,CHILDREN AND FAMILIES,GREATER LONDON FOSTERING,"3,534.00",FRIENDS & FAMILY FOSTERING,EXTERNAL AGENCIES AND BODIES,2103303653,1000029184
09.08.2021,CHILDREN AND FAMILIES,GREATER LONDON FOSTERING,"3,572.13",FRIENDS & FAMILY FOSTERING,EXTERNAL AGENCIES AND BODIES,2103303622,1000029184
09.08.2021,CHILDREN AND FAMILIES,GREATER LONDON FOSTERING,"3,760.30",FRIENDS & FAMILY FOSTERING,EXTERNAL AGENCIES AND BODIES,2103303635,1000029184
09.08.2021,CHILDREN AND FAMILIES,GREATER LONDON FOSTERING,"3,979.20",FRIENDS & FAMILY FOSTERING,EXTERNAL AGENCIES AND BODIES,2103303623,1000029184
09.08.2021,CHILDREN AND FAMILIES,GREATER LONDON FOSTERING,"4,645.35",FRIENDS & FAMILY FOSTERING,EXTERNAL AGENCIES AND BODIES,2103303645,1000029184
09.08.2021,CHILDREN AND FAMILIES,GREATER LONDON FOSTERING,"7,709.70",FRIENDS & FAMILY FOSTERING,EXTERNAL AGENCIES AND BODIES,2103303646,1000029184
09.08.2021,CHILDREN AND FAMILIES,NATIONAL FOSTERING AGENCY LTD,464.28,FRIENDS & FAMILY FOSTERING,EXTERNAL AGENCIES AND BODIES,2103303633,1000038868
09.08.2021,CHILDREN AND FAMILIES,NATIONAL FOSTERING AGENCY LTD,856,FRIENDS & FAMILY FOSTERING,EXTERNAL AGENCIES AND BODIES,2103303640,1000038868
09.08.2021,CHILDREN AND FAMILIES,NATIONAL FOSTERING AGENCY LTD,"2,461.00",FRIENDS & FAMILY FOSTERING,EXTERNAL AGENCIES AND BODIES,2103303639,1000038868
09.08.2021,CHILDREN AND FAMILIES,NATIONAL FOSTERING AGENCY LTD,"3,250.66",FRIENDS & FAMILY FOSTERING,EXTERNAL AGENCIES AND BODIES,2103303641,1000038868
09.08.2021,CHILDREN AND FAMILIES,NATIONAL FOSTERING AGENCY LTD,"3,317.00",FRIENDS & FAMILY FOSTERING,EXTERNAL AGENCIES AND BODIES,2103303627,1000038868
09.08.2021,CHILDREN AND FAMILIES,NATIONAL FOSTERING AGENCY LTD,"3,317.00",FRIENDS & FAMILY FOSTERING,EXTERNAL AGENCIES AND BODIES,2103303631,1000038868
09.08.2021,CHILDREN AND FAMILIES,NATIONAL FOSTERING AGENCY LTD,"3,321.34",FRIENDS & FAMILY FOSTERING,EXTERNAL AGENCIES AND BODIES,2103303644,1000038868
09.08.2021,CHILDREN AND FAMILIES,NATIONAL FOSTERING AGENCY LTD,"3,376.83",FRIENDS & FAMILY FOSTERING,EXTERNAL AGENCIES AND BODIES,2103303619,1000038868
09.08.2021,CHILDREN AND FAMILIES,NATIONAL FOSTERING AGENCY LTD,"3,501.14",FRIENDS & FAMILY FOSTERING,EXTERNAL AGENCIES AND BODIES,2103303638,1000038868
09.08.2021,CHILDREN AND FAMILIES,NATIONAL FOSTERING AGENCY LTD,"4,406.34",FRIENDS & FAMILY FOSTERING,EXTERNAL AGENCIES AND BODIES,2103303637,1000038868
09.08.2021,CHILDREN AND FAMILIES,NATIONAL FOSTERING AGENCY LTD,"4,406.34",FRIENDS & FAMILY FOSTERING,EXTERNAL AGENCIES AND BODIES,2103303642,1000038868
09.08.2021,CHILDREN AND FAMILIES,NATIONAL FOSTERING AGENCY LTD,"4,557.00",FRIENDS & FAMILY FOSTERING,EXTERNAL AGENCIES AND BODIES,2103303636,1000038868
09.08.2021,CHILDREN AND FAMILIES,NATIONAL FOSTERING AGENCY LTD,"4,627.68",FRIENDS & FAMILY FOSTERING,EXTERNAL AGENCIES AND BODIES,2103303643,1000038868
09.08.2021,CHILDREN AND FAMILIES,NATIONAL FOSTERING AGENCY LTD,"5,265.66",FRIENDS & FAMILY FOSTERING,EXTERNAL AGENCIES AND BODIES,2103303626,1000038868
09.08.2021,CHILDREN AND FAMILIES,NATIONAL FOSTERING AGENCY LTD,"5,934.33",FRIENDS & FAMILY FOSTERING,EXTERNAL AGENCIES AND BODIES,2103303651,1000038868
09.08.2021,CHILDREN AND FAMILIES,NATIONAL FOSTERING AGENCY LTD,"6,009.35",FRIENDS & FAMILY FOSTERING,EXTERNAL AGENCIES AND BODIES,2103303652,1000038868
09.08.2021,CHILDREN AND FAMILIES,NATIONAL FOSTERING AGENCY LTD,"6,111.34",FRIENDS & FAMILY FOSTERING,EXTERNAL AGENCIES AND BODIES,2103303632,1000038868
09.08.2021,CHILDREN AND FAMILIES,SUNBEAM FOSTERING AGENCY LTD,"3,432.14",FRIENDS & FAMILY FOSTERING,EXTERNAL AGENCIES AND BODIES,2103303630,1000041457
09.08.2021,CHILDREN AND FAMILIES,RYANCARE FOSTERING SERVICES LTD,"3,541.75",FRIENDS & FAMILY FOSTERING,EXTERNAL AGENCIES AND BODIES,2103303624,1000062376
09.08.2021,CHILDREN AND FAMILIES,SWIIS FOSTER CARE LTD,784,FRIENDS & FAMILY FOSTERING,EXTERNAL AGENCIES AND BODIES,2103303647,1000069633
09.08.2021,CHILDREN AND FAMILIES,DIVERSITY FOSTER CARE LTD,"4,108.69",FRIENDS & FAMILY FOSTERING,EXTERNAL AGENCIES AND BODIES,2103303620,1000081399
09.08.2021,CHILDREN AND FAMILIES,DIVERSITY FOSTER CARE LTD,"4,108.69",FRIENDS & FAMILY FOSTERING,EXTERNAL AGENCIES AND BODIES,2103303621,1000081399
09.08.2021,CHILDREN AND FAMILIES,PILGRIMS CORNER LIMITED,"4,424.63",FRIENDS & FAMILY FOSTERING,EXTERNAL AGENCIES AND BODIES,2103303655,1000084708
09.08.2021,CHILDREN AND FAMILIES,SANCTUARY CARE SERVICES LTD,"2,037.14",SEMI-IND CARELEAVERS,EXTERNAL AGENCIES AND BODIES,2103303577,1000078444
09.08.2021,CHILDREN AND FAMILIES,SYDNEY CARE LTD,"3,228.57",SEMI-IND CARELEAVERS,EXTERNAL AGENCIES AND BODIES,2103303564,1000081598
09.08.2021,CHILDREN AND FAMILIES,SANCTUARY CARE SERVICES LTD,630,SEMI-IND CARELEAVERS,OTHER PAYMENTS FOR CLIENTS,2103303567,1000078444
09.08.2021,CHILDREN AND FAMILIES,OASIS AQUILA HOUSING,"181,981.50",SEMI-IND CONTRACTS,EXTERNAL AGENCIES AND BODIES,5902480767,1000002184
09.08.2021,CHILDREN AND FAMILIES,SYDNEY CARE LTD,"7,612.71",SEMI-IND LAC 16-17,EXTERNAL AGENCIES AND BODIES,2103303579,1000081598
09.08.2021,CHILDREN AND FAMILIES,SYDNEY CARE LTD,310,SEMI-IND LAC 16-17,OTHER PAYMENTS FOR CLIENTS,2103303578,1000081598
09.08.2021,CHILDREN AND FAMILIES,TACT,"1,550.00",STAYPUT- FOST CARERS,EXTERNAL AGENCIES AND BODIES,2103303574,1000012941
09.08.2021,CHILDREN AND FAMILIES,GREATER LONDON FOSTERING,"2,316.54",STAYPUT- FOST CARERS,EXTERNAL AGENCIES AND BODIES,2103303572,1000029184
09.08.2021,CHILDREN AND FAMILIES,NATIONAL FOSTERING AGENCY LTD,"1,860.00",STAYPUT- FOST CARERS,EXTERNAL AGENCIES AND BODIES,2103303571,1000038868
09.08.2021,CHILDREN AND FAMILIES,SANCTUARY CARE SERVICES LTD,"2,037.14",UASC CARELEAVERS,EXTERNAL AGENCIES AND BODIES,2103303575,1000078444
09.08.2021,CHILDREN AND FAMILIES,SANCTUARY CARE SERVICES LTD,630,UASC CARELEAVERS,OTHER PAYMENTS FOR CLIENTS,2103303566,1000078444
09.08.2021,CHILDREN AND FAMILIES,REDACTED PERSONAL DATA,600,UASC LAC 16-17,OTHER PAYMENTS FOR CLIENTS,REDACTED,REDACTED
09.08.2021,COMMUNITIES,SOUTHSIDE PARTNERSHIP LTD,"3,838.07",NO RECOURSE TO PUBLIC FUNDS,ACCOMMODATION CHARGES,5902480697,1716624
09.08.2021,COMMUNITIES,A & M PROPERTY AND CONSTRUCTION LTD,"1,658.50",NO RECOURSE TO PUBLIC FUNDS,ACCOMMODATION CHARGES,5902480612,1000014564
09.08.2021,COMMUNITIES,KINDLY PROPERTIES LTD,"14,633.50",NO RECOURSE TO PUBLIC FUNDS,ACCOMMODATION CHARGES,5902480685,1000060734
09.08.2021,COMMUNITIES,DINARDO SUPPORTS LTD,"1,520.00",NO RECOURSE TO PUBLIC FUNDS,ACCOMMODATION CHARGES,5902480774,1000063093
09.08.2021,COMMUNITIES,STENFORD PROPERTY LTD,"11,098.00",NO RECOURSE TO PUBLIC FUNDS,ACCOMMODATION CHARGES,5902480626,1000074759
09.08.2021,COMMUNITIES,ELIZABETH PETERS CARE HOMES LTD,"2,677.86",NO RECOURSE TO PUBLIC FUNDS,OTHER PAYMENTS FOR CLIENTS,5902480766,1000054061
09.08.2021,COMMUNITIES,LONGFIELD T&RA,"3,000.00",NORTH EAST,GRANTS,5902480748,1000059281
09.08.2021,COMMUNITIES,LONGFIELD T&RA,"3,200.00",NORTH EAST,GRANTS,5902480698,1000059281
09.08.2021,COMMUNITIES HRA,GLOUCESTER GROVE ESTATE TMO,640,GLOUCESTER GROVE ESTATE,M&M ALLOWANCE CO-OPS,5902480638,1000073072
09.08.2021,CUSTOMER EXPERIENCE HGF,FORENSIC PATHOLOGY SERVICES,481.9,CORONER'S,PROFESSIONAL FEES,5902480508,1000086871
09.08.2021,CUSTOMER EXPERIENCE HGF,TUNSTALL HEALTHCARE (UK) LTD,"13,114.50",LAMBETH RESPONSE,EQUIPMENT PURCHASE & REPAIR,5902480070,1012297
09.08.2021,CUSTOMER EXPERIENCE HGF,TUNSTALL HEALTHCARE (UK) LTD,"14,988.00",SMART MOBILE RESPONSE TEAM,EQUIPMENT PURCHASE & REPAIR,5902480063,1012297
09.08.2021,EDUCATION,UNIVERSITY COLLEGE LONDON,400,EDUCATIONAL PSYCHOLOGY,TRAINING,5902480688,1000004681
09.08.2021,ENV & LEIS,CBS MAINTENANCE SERVICES LTD,"2,725.00",MANAGEMENT TEAM,AIR CONDITIONING CONTRACT,5902480620,1000072375
09.08.2021,ENV & LEIS,KAINOS SOFTWARE LIMITED,"3,750.00",STREET WORKS OVERHEADS,SOFTWARE,5902480647,1000085790
09.08.2021,ENVIRONMENT AND LEISURE,F M CONWAY LTD,"17,801.86",CAPITAL PS (LEISURE),CONSTRUCTION,2103302061,4001384
09.08.2021,ENVIRONMENT AND LEISURE,CYCLEHOOP LTD,"1,765.96",CAPITAL PS (LEISURE),CONSTRUCTION,5902480787,1000057894
09.08.2021,ENVIRONMENT AND LEISURE,LEAP ENVIRONMENTAL LTD,"2,392.50",CAPITAL PS (LEISURE),CONSTRUCTION FEES  - EXTERNAL,5902480132,1000083250
09.08.2021,ENVIRONMENT AND LEISURE,LEAP ENVIRONMENTAL LTD,"2,392.50",CAPITAL PS (LEISURE),CONSTRUCTION FEES  - EXTERNAL,5902480132,1000083250
09.08.2021,ENVIRONMENT AND LEISURE,BREEZE LANDSCAPE ARCHITECTS LTD,"3,350.00",CAPITAL PS (LEISURE),CONSTRUCTION FEES - ARCHITECT,5902479878,1000078053
09.08.2021,ENVIRONMENT AND LEISURE,LEAP ENVIRONMENTAL LTD,750,CAPITAL PS (LEISURE),CONSTRUCTION FEES - ENGINEER,5902480099,1000083250
09.08.2021,ENVIRONMENT AND LEISURE,VINCENTSTOKES LTD,"381,530.50",CAPITAL PS (LEISURE),CONSTRUCTION MAIN CONTRACT -CERTIFICATED,2103302563,3000001965
09.08.2021,ENVIRONMENT DIRECTORATE,LEX AUTOLEASE,-540.66,CAR LEASING CTRL A/C,VEHICLE LEASING CHARGES,5902480669,1000069462
09.08.2021,ENVIRONMENT DIRECTORATE,LEX AUTOLEASE,-386.61,CAR LEASING CTRL A/C,VEHICLE LEASING CHARGES,5902480668,1000069462
09.08.2021,ENVIRONMENT DIRECTORATE,LEX AUTOLEASE,-356.35,CAR LEASING CTRL A/C,VEHICLE LEASING CHARGES,5902480670,1000069462
09.08.2021,ENVIRONMENT DIRECTORATE,LEX AUTOLEASE,"1,418.92",CAR LEASING CTRL A/C,VEHICLE LEASING CHARGES,5902480641,1000069462
09.08.2021,ENVIRONMENT DIRECTORATE,LEX AUTOLEASE,"19,188.35",CAR LEASING CTRL A/C,VEHICLE LEASING CHARGES,5902480644,1000069462
09.08.2021,ENVIRONMENT DIRECTORATE,LEX AUTOLEASE,"19,188.35",CAR LEASING CTRL A/C,VEHICLE LEASING CHARGES,5902480645,1000069462
09.08.2021,ENVIRONMENT DIRECTORATE,ARNOLD CLARK VEHICLE MANAGEMENT,-496.78,CAR LEASING CTRL A/C,VEHICLE LEASING CHARGES,5902474482,1000079116
09.08.2021,ENVIRONMENT DIRECTORATE,ARNOLD CLARK VEHICLE MANAGEMENT,-474.37,CAR LEASING CTRL A/C,VEHICLE LEASING CHARGES,5902474482,1000079116
09.08.2021,ENVIRONMENT DIRECTORATE,ARNOLD CLARK VEHICLE MANAGEMENT,-468.97,CAR LEASING CTRL A/C,VEHICLE LEASING CHARGES,5902480738,1000079116
09.08.2021,ENVIRONMENT DIRECTORATE,ARNOLD CLARK VEHICLE MANAGEMENT,-410.76,CAR LEASING CTRL A/C,VEHICLE LEASING CHARGES,5902474480,1000079116
09.08.2021,ENVIRONMENT DIRECTORATE,ARNOLD CLARK VEHICLE MANAGEMENT,-410.32,CAR LEASING CTRL A/C,VEHICLE LEASING CHARGES,5902480740,1000079116
09.08.2021,ENVIRONMENT DIRECTORATE,ARNOLD CLARK VEHICLE MANAGEMENT,-388.37,CAR LEASING CTRL A/C,VEHICLE LEASING CHARGES,5902480755,1000079116
09.08.2021,ENVIRONMENT DIRECTORATE,ARNOLD CLARK VEHICLE MANAGEMENT,-382.79,CAR LEASING CTRL A/C,VEHICLE LEASING CHARGES,5902480738,1000079116
09.08.2021,ENVIRONMENT DIRECTORATE,ARNOLD CLARK VEHICLE MANAGEMENT,-367.87,CAR LEASING CTRL A/C,VEHICLE LEASING CHARGES,5902480740,1000079116
09.08.2021,ENVIRONMENT DIRECTORATE,ARNOLD CLARK VEHICLE MANAGEMENT,-366.95,CAR LEASING CTRL A/C,VEHICLE LEASING CHARGES,5902480755,1000079116
09.08.2021,ENVIRONMENT DIRECTORATE,ARNOLD CLARK VEHICLE MANAGEMENT,-340.15,CAR LEASING CTRL A/C,VEHICLE LEASING CHARGES,5902480734,1000079116
09.08.2021,ENVIRONMENT DIRECTORATE,ARNOLD CLARK VEHICLE MANAGEMENT,-278.89,CAR LEASING CTRL A/C,VEHICLE LEASING CHARGES,5902480734,1000079116
09.08.2021,ENVIRONMENT DIRECTORATE,ARNOLD CLARK VEHICLE MANAGEMENT,-253.54,CAR LEASING CTRL A/C,VEHICLE LEASING CHARGES,5902480781,1000079116
09.08.2021,ENVIRONMENT DIRECTORATE,ARNOLD CLARK VEHICLE MANAGEMENT,264.87,CAR LEASING CTRL A/C,VEHICLE LEASING CHARGES,5902480769,1000079116
09.08.2021,ENVIRONMENT DIRECTORATE,ARNOLD CLARK VEHICLE MANAGEMENT,288.21,CAR LEASING CTRL A/C,VEHICLE LEASING CHARGES,5902480769,1000079116
09.08.2021,ENVIRONMENT DIRECTORATE,ARNOLD CLARK VEHICLE MANAGEMENT,374.41,CAR LEASING CTRL A/C,VEHICLE LEASING CHARGES,5902480674,1000079116
09.08.2021,ENVIRONMENT DIRECTORATE,ARNOLD CLARK VEHICLE MANAGEMENT,386.9,CAR LEASING CTRL A/C,VEHICLE LEASING CHARGES,5902480674,1000079116
09.08.2021,ENVIRONMENT DIRECTORATE,ARNOLD CLARK VEHICLE MANAGEMENT,458.48,CAR LEASING CTRL A/C,VEHICLE LEASING CHARGES,5902480677,1000079116
09.08.2021,ENVIRONMENT DIRECTORATE,ARNOLD CLARK VEHICLE MANAGEMENT,461.2,CAR LEASING CTRL A/C,VEHICLE LEASING CHARGES,5902480677,1000079116
09.08.2021,ENVIRONMENT DIRECTORATE,ARNOLD CLARK VEHICLE MANAGEMENT,482.81,CAR LEASING CTRL A/C,VEHICLE LEASING CHARGES,5902480675,1000079116
09.08.2021,ENVIRONMENT DIRECTORATE,ARNOLD CLARK VEHICLE MANAGEMENT,497.04,CAR LEASING CTRL A/C,VEHICLE LEASING CHARGES,5902480675,1000079116
09.08.2021,ENVIRONMENT DIRECTORATE,ARNOLD CLARK VEHICLE MANAGEMENT,533.62,CAR LEASING CTRL A/C,VEHICLE LEASING CHARGES,5902480782,1000079116
09.08.2021,ENVIRONMENT DIRECTORATE,ARNOLD CLARK VEHICLE MANAGEMENT,580.36,CAR LEASING CTRL A/C,VEHICLE LEASING CHARGES,5902480782,1000079116
09.08.2021,ENVIRONMENT DIRECTORATE,ARNOLD CLARK VEHICLE MANAGEMENT,586.98,CAR LEASING CTRL A/C,VEHICLE LEASING CHARGES,5902480676,1000079116
09.08.2021,ENVIRONMENT DIRECTORATE,ARNOLD CLARK VEHICLE MANAGEMENT,624.91,CAR LEASING CTRL A/C,VEHICLE LEASING CHARGES,5902480768,1000079116
09.08.2021,ENVIRONMENT DIRECTORATE,ARNOLD CLARK VEHICLE MANAGEMENT,626.67,CAR LEASING CTRL A/C,VEHICLE LEASING CHARGES,5902480676,1000079116
09.08.2021,ENVIRONMENT DIRECTORATE,ARNOLD CLARK VEHICLE MANAGEMENT,636.44,CAR LEASING CTRL A/C,VEHICLE LEASING CHARGES,5902480768,1000079116
09.08.2021,ENVIRONMENT DIRECTORATE,ARNOLD CLARK VEHICLE MANAGEMENT,899.59,CAR LEASING CTRL A/C,VEHICLE LEASING CHARGES,5902480673,1000079116
09.08.2021,ENVIRONMENT DIRECTORATE,ARNOLD CLARK VEHICLE MANAGEMENT,960.15,CAR LEASING CTRL A/C,VEHICLE LEASING CHARGES,5902480673,1000079116
09.08.2021,ENVIRONMENT DIRECTORATE,LEX AUTOLEASE,-351.5,CAR LEASING CTRL A/C,VEHICLE REPAIRS & MAINTENANCE,5902480669,1000069462
09.08.2021,ENVIRONMENT DIRECTORATE,LEX AUTOLEASE,-320.39,CAR LEASING CTRL A/C,VEHICLE REPAIRS & MAINTENANCE,5902480668,1000069462
09.08.2021,ENVIRONMENT DIRECTORATE,LEX AUTOLEASE,-305.26,CAR LEASING CTRL A/C,VEHICLE REPAIRS & MAINTENANCE,5902480662,1000069462
09.08.2021,ENVIRONMENT DIRECTORATE,LEX AUTOLEASE,"1,548.78",CAR LEASING CTRL A/C,VEHICLE REPAIRS & MAINTENANCE,5902480641,1000069462
09.08.2021,ENVIRONMENT DIRECTORATE,AUTOMOTIVE LEASING,"1,074.40",COMMERCIAL VEH CTRL A/C,HIRED VEHICLES,5902480622,11014756
09.08.2021,ENVIRONMENT DIRECTORATE,AGENTIS WORKWEAR LTD,393.6,ENGINEERING CRAFTS,"CLOTHING, UNIFORMS & LAUNDRY",5902480730,1000065833
09.08.2021,ENVIRONMENT DIRECTORATE,SIGNSCAPE SYSTEMS LTD,532.41,ENGINEERING CRAFTS,MATERIALS,5902480720,1000052408
09.08.2021,ENVIRONMENT DIRECTORATE,SIGNSCAPE SYSTEMS LTD,"1,064.82",ENGINEERING CRAFTS,MATERIALS,5902480720,1000052408
09.08.2021,ENVIRONMENT DIRECTORATE,SIGNSCAPE SYSTEMS LTD,"1,363.08",ENGINEERING CRAFTS,MATERIALS,5902480720,1000052408
09.08.2021,ENVIRONMENT DIRECTORATE,SIGNSCAPE SYSTEMS LTD,"2,336.91",ENGINEERING CRAFTS,MATERIALS,5902480720,1000052408
09.08.2021,ENVIRONMENT DIRECTORATE,C L ROADMARKINGS LTD,"7,270.76",ENGINEERING CRAFTS,OTHER CONTRACTORS,2103303661,3000000825
09.08.2021,ENVIRONMENT DIRECTORATE,PERFORMANCE CHEMICALS LTD,"1,191.80",ESTATE CLEANING-GENERAL,MATERIALS,5902480672,1000037129
09.08.2021,ENVIRONMENT DIRECTORATE,F H BRUNDLE,"1,640.00",GRANGE DOORS,MATERIALS,5902480712,1082714
09.08.2021,ENVIRONMENT DIRECTORATE,PURPOSE POWDER COATINGS LTD,357,GRANGE DOORS,MATERIALS,5902480726,1000059450
09.08.2021,ENVIRONMENT DIRECTORATE,CADENCE INNOVA LTD.,"17,556.00",RESIDENTIAL SERVICES,EXTERNAL AGENCIES AND BODIES,5902480162,1000085771
09.08.2021,ENVIRONMENT DIRECTORATE,REDACTED PERSONAL DATA,804,RESIDENTIAL SERVICES,MANDATORY STATUTORY FEES & CHARGES,REDACTED,REDACTED
09.08.2021,ENVIRONMENT DIRECTORATE,WEB LABS LTD,"4,500.00",SUSTAINABLE WASTE OVERHEADS,OP LEASE/HIRE CHARGES:PLANT/EQUIP/FURNIT,5902480613,1000039819
09.08.2021,F & C S EXCLUDING CORPORATE BUDGETS,DSI BILLING SERVICES LTD,"2,101.96",ADMINISTRATIVE SUPPORT,POSTAGES,5902480791,1000058640
09.08.2021,F & C S EXCLUDING CORPORATE BUDGETS,DSI BILLING SERVICES LTD,"2,592.94",ADMINISTRATIVE SUPPORT,POSTAGES,5902480790,1000058640
09.08.2021,F & C S EXCLUDING CORPORATE BUDGETS,SWISS POST SOLUTIONS LTD,"1,161.69",CONSTITUTIONAL TEAM,PRINTING,5902480547,1000073459
09.08.2021,F & C S EXCLUDING CORPORATE BUDGETS,REDACTED PERSONAL DATA,500,SESS,OTHER PAYMENTS FOR CLIENTS,REDACTED,REDACTED
09.08.2021,F & C S EXCLUDING CORPORATE BUDGETS,REDACTED PERSONAL DATA,500,SESS,OTHER PAYMENTS FOR CLIENTS,REDACTED,REDACTED
09.08.2021,F & C S EXCLUDING CORPORATE BUDGETS,REDACTED PERSONAL DATA,500,SESS,OTHER PAYMENTS FOR CLIENTS,REDACTED,REDACTED
09.08.2021,F & C S EXCLUDING CORPORATE BUDGETS,REDACTED PERSONAL DATA,500,SESS,OTHER PAYMENTS FOR CLIENTS,REDACTED,REDACTED
09.08.2021,F & C S EXCLUDING CORPORATE BUDGETS,REDACTED PERSONAL DATA,500,SESS,OTHER PAYMENTS FOR CLIENTS,REDACTED,REDACTED
09.08.2021,F & C S EXCLUDING CORPORATE BUDGETS,REDACTED PERSONAL DATA,500,SESS,OTHER PAYMENTS FOR CLIENTS,REDACTED,REDACTED
09.08.2021,F & C S EXCLUDING CORPORATE BUDGETS,REDACTED PERSONAL DATA,500,SESS,OTHER PAYMENTS FOR CLIENTS,REDACTED,REDACTED
09.08.2021,F & C S EXCLUDING CORPORATE BUDGETS,REDACTED PERSONAL DATA,500,SESS,OTHER PAYMENTS FOR CLIENTS,REDACTED,REDACTED
09.08.2021,F & C S EXCLUDING CORPORATE BUDGETS,REDACTED PERSONAL DATA,500,SESS,OTHER PAYMENTS FOR CLIENTS,REDACTED,REDACTED
09.08.2021,F & C S EXCLUDING CORPORATE BUDGETS,REDACTED PERSONAL DATA,500,SESS,OTHER PAYMENTS FOR CLIENTS,REDACTED,REDACTED
09.08.2021,F & C S EXCLUDING CORPORATE BUDGETS,REDACTED PERSONAL DATA,500,SESS,OTHER PAYMENTS FOR CLIENTS,REDACTED,REDACTED
09.08.2021,F & C S EXCLUDING CORPORATE BUDGETS,REDACTED PERSONAL DATA,500,SESS,OTHER PAYMENTS FOR CLIENTS,REDACTED,REDACTED
09.08.2021,F & C S EXCLUDING CORPORATE BUDGETS,REDACTED PERSONAL DATA,500,SESS,OTHER PAYMENTS FOR CLIENTS,REDACTED,REDACTED
09.08.2021,F & C S EXCLUDING CORPORATE BUDGETS,REDACTED PERSONAL DATA,500,SESS,OTHER PAYMENTS FOR CLIENTS,REDACTED,REDACTED
09.08.2021,F & C S EXCLUDING CORPORATE BUDGETS,REDACTED PERSONAL DATA,500,SESS,OTHER PAYMENTS FOR CLIENTS,REDACTED,REDACTED
09.08.2021,F & C S EXCLUDING CORPORATE BUDGETS,REDACTED PERSONAL DATA,500,SESS,OTHER PAYMENTS FOR CLIENTS,REDACTED,REDACTED
09.08.2021,F & C S EXCLUDING CORPORATE BUDGETS,REDACTED PERSONAL DATA,500,SESS,OTHER PAYMENTS FOR CLIENTS,REDACTED,REDACTED
09.08.2021,F & C S EXCLUDING CORPORATE BUDGETS,REDACTED PERSONAL DATA,500,SESS,OTHER PAYMENTS FOR CLIENTS,REDACTED,REDACTED
09.08.2021,F & C S EXCLUDING CORPORATE BUDGETS,REDACTED PERSONAL DATA,500,SESS,OTHER PAYMENTS FOR CLIENTS,REDACTED,REDACTED
09.08.2021,F & C S EXCLUDING CORPORATE BUDGETS,REDACTED PERSONAL DATA,500,SESS,OTHER PAYMENTS FOR CLIENTS,REDACTED,REDACTED
09.08.2021,F & C S EXCLUDING CORPORATE BUDGETS,REDACTED PERSONAL DATA,500,SESS,OTHER PAYMENTS FOR CLIENTS,REDACTED,REDACTED
09.08.2021,HOUSING GENERAL FUND,DAVID MILES & PARTNERS LTD,"1,600.00",CAPITAL PS (REGEN),CONSTRUCTION MAIN CONTRACT,5902480294,1000001119
09.08.2021,HOUSING HRA,OCO HEATING & MECHANICAL,"52,974.63",CAPITAL PS (HRA),CONSTRUCTION,2103303559,4005559
09.08.2021,HOUSING HRA,CRS DRAWING AND DESIGN LTD,"17,985.00",CAPITAL PS (HRA),CONSTRUCTION,5902480785,1000085835
09.08.2021,HOUSING HRA,INVICTA BUILDING SERVICES LTD,"39,783.48",CAPITAL PS (HRA),CONSTRUCTION,2103303558,3000001295
09.08.2021,HOUSING HRA,INVICTA BUILDING SERVICES LTD,"50,904.65",CAPITAL PS (HRA),CONSTRUCTION,2103303560,3000001295
09.08.2021,HOUSING HRA,SUSTAINABLE CONSTRUCTION SERVICES,"2,950.00",CAPITAL PS (HRA),CONSTRUCTION FEES  - EXTERNAL,5902480560,1000086454
09.08.2021,HOUSING HRA,STANNAH LIFT SERVICES LTD,"12,644.00",CAPITAL PS (HRA),UTILITIES INSTALLATION,5902480760,1063595
09.08.2021,HOUSING HRA,WALWORTH HOMES LTD,"176,686.33",CAPITAL PS (REGEN),CONST'N MAIN CONTRACT - NON CERTIFICATED,5902480640,1000079197
09.08.2021,HOUSING HRA,WALWORTH HOMES LTD,"7,074.58",CAPITAL PS (REGEN),CONSTRUCTION FEES,5902480640,1000079197
09.08.2021,HOUSING HRA,MONTAGU EVANS LLP,"1,130.00",CAPITAL PS (REGEN),CONSTRUCTION FEES  - EXTERNAL,5902480135,1000073283
09.08.2021,HOUSING HRA,MONTAGU EVANS LLP,"1,130.00",CAPITAL PS (REGEN),CONSTRUCTION FEES  - EXTERNAL,5902480135,1000073283
09.08.2021,HOUSING HRA,KENT COUNTY COUNCIL - LASER,"15,409.41",RESIDENT SERVICES BUSINESS SUPPORT,ELECTRICITY,6101991845,DIRECT DEBIT PAYMENT
09.08.2021,HOUSING HRA,KENT COUNTY COUNCIL - LASER,"13,910.44",RESIDENT SERVICES BUSINESS SUPPORT,ELECTRICITY,6101991846,DIRECT DEBIT PAYMENT
09.08.2021,LEISURE DIRECTORATE,TECHNICAL SURFACES,582.05,BURGESS SPORTS CENTRE,GROUNDS MAINTENANCE,5902480711,1000011451
09.08.2021,LEISURE DIRECTORATE,VIVEDIA LIMITED,"1,413.00",CREMATORIUM,OTHER R&M,5902480098,1000064867
09.08.2021,PLANNING AND TRANSPORT,SOUTHWARK NEWSPAPER LTD,504,DEV MGT ADMIN & INCOME,MARKETING & PUBLICITY SERVICES,5902480786,1556957
09.08.2021,PLANNING AND TRANSPORT,FARRELLS (LONDON) LLP,"22,500.00",OKR MASTER PLANNING,PROFESSIONAL FEES,5902480405,1000083336
09.08.2021,PUBLIC HEALTH,REDACTED PERSONAL DATA,500,COVID-19 CONTROL OUTBREAK MGMNT.FUND,OTHER PAYMENTS FOR CLIENTS,REDACTED,REDACTED
09.08.2021,PUBLIC HEALTH,REDACTED PERSONAL DATA,500,COVID-19 CONTROL OUTBREAK MGMNT.FUND,OTHER PAYMENTS FOR CLIENTS,REDACTED,REDACTED
09.08.2021,PUBLIC HEALTH,REDACTED PERSONAL DATA,500,COVID-19 CONTROL OUTBREAK MGMNT.FUND,OTHER PAYMENTS FOR CLIENTS,REDACTED,REDACTED
09.08.2021,PUBLIC HEALTH,IMPACT UNION LTD,"2,700.00",PLACE & HEALTH IMPROVEMENT,EXTERNAL AGENCIES AND BODIES,5902480652,1000085136
09.08.2021,RESIDENT SERVICES,L H BRIDGE LTD,"3,375.00",GREAT ESTATES,GROUNDS MAINTENANCE,5902480272,1000056928
09.08.2021,RESIDENT SERVICES,TAAKSVALE HOUSING LTD,"3,819.00",TA PLACEMENTS,EXTERNAL AGENCIES AND BODIES,5902480618,1000073665
09.08.2021,RESIDENT SERVICES,RENT CONNECT HOUSING LTD,"1,860.00",TA PLACEMENTS,EXTERNAL AGENCIES AND BODIES,5902480643,1000074815
09.08.2021,RESIDENT SERVICES,DMS PROPERTIES SERVICES LTD,"4,212.00",TA PLACEMENTS,EXTERNAL AGENCIES AND BODIES,5902480743,1000081522
09.08.2021,RESIDENT SERVICES HGF,BELLS COMMERCIAL LTD,"2,692.30",HOMELESS PROJECTS,GRANTS,5902480778,1000078919
09.08.2021,RESIDENT SERVICES HGF,MSR HOUSING,"1,605.00",NIGHTLY TA (NSC),EXTERNAL AGENCIES AND BODIES,5902480614,1000079359
09.08.2021,RESIDENT SERVICES HGF,MSR HOUSING,"1,658.50",NIGHTLY TA (NSC),EXTERNAL AGENCIES AND BODIES,5902480615,1000079359
09.08.2021,RESIDENT SERVICES HGF,WILLOW ESTATE AGENTS (LONDON) LTD,"2,040.42",PSL PLACEMENTS,EXTERNAL AGENCIES AND BODIES,5902480658,1000060607
09.08.2021,SBS SUPPORT,SIEMENS FINANCIAL SERVICES LIMITED,607.59,R & M OVERHEADS,CATERING MATERIALS & SUPPLIES,5902480704,1000053403
09.08.2021,SBS SUPPORT,SIEMENS FINANCIAL SERVICES LIMITED,607.59,R & M OVERHEADS,CATERING MATERIALS & SUPPLIES,5902480710,1000053403
09.08.2021,SBS SUPPORT,SIEMENS FINANCIAL SERVICES LIMITED,"1,740.00",R & M OVERHEADS,CATERING MATERIALS & SUPPLIES,5902480706,1000053403
09.08.2021,SBS SUPPORT,VPS (UK) LTD,292.88,VOIDS OVERHEADS,OTHER CONTRACTORS,5902480762,1000040614
09.08.2021,SBS SUPPORT,VPS (UK) LTD,664.02,VOIDS OVERHEADS,OTHER CONTRACTORS,5902480702,1000040614
09.08.2021,SBS SUPPORT,RTS WASTE MANAGEMENT LTD,"4,744.80",VOIDS OVERHEADS,WASTE DISPOSAL CONTRACT,5902480735,1000061248
09.08.2021,SOUTHWARK BUILDING SERVICES,KEMICO LIMITED,"5,292.00",STORES/LOGISTICS,CREDITORS -GR/IR CLEARING ACCOUNT,5902480621,1000030226
09.08.2021,SOUTHWARK BUILDING SERVICES,CORBYS & CO,654,STORES/LOGISTICS,CREDITORS -GR/IR CLEARING ACCOUNT,5902480683,1000055320
09.08.2021,SOUTHWARK BUILDING SERVICES,CORBYS & CO,"1,420.00",STORES/LOGISTICS,CREDITORS -GR/IR CLEARING ACCOUNT,5902480683,1000055320
10.08.2021,ADULT SOCIAL CARE,SMART HORIZONS LTD,505,ASW - PROFESSIONAL DEVELOPMENT,TRAINING,5902481220,1000086962
10.08.2021,ADULT SOCIAL CARE,INTRADO SOLUTIONS LIMITED,280.86,DIR OF ASC,LEGAL FEES & COURT COSTS,5902481271,1000084959
10.08.2021,ADULT SOCIAL CARE,JUDGE AND PRIESTLEY SOLICITORS,"1,500.00",DIR OF ASC,PAYMENTS FOR LEGAL SERVICES,5902480381,1472217
10.08.2021,ADULT SOCIAL CARE,JUDGE AND PRIESTLEY SOLICITORS,"2,040.00",DIR OF ASC,PAYMENTS FOR LEGAL SERVICES,5902480388,1472217
10.08.2021,ADULT SOCIAL CARE,NHS SOUTH EAST LONDON CCG,"48,952.00",DIR OF ASC,PROFESSIONAL FEES,5902481212,1000085592
10.08.2021,ADULT SOCIAL CARE,THAMES HOMECARE SERVICE LTD,379.08,DISCHARGE TO ACCESS,HOMECARE - C&V,2103303759,1000079295
10.08.2021,ADULT SOCIAL CARE,THAMES HOMECARE SERVICE LTD,655.2,DISCHARGE TO ACCESS,HOMECARE - SPOT,2103303698,1000079295
10.08.2021,ADULT SOCIAL CARE,THAMES HOMECARE SERVICE LTD,655.2,LD STS 18-64,HOMECARE - IC,2103303752,1000079295
10.08.2021,ADULT SOCIAL CARE,THAMES HOMECARE SERVICE LTD,486.72,MH LTS 65+,HOMECARE - SPOT,2103303798,1000079295
10.08.2021,ADULT SOCIAL CARE,THAMES HOMECARE SERVICE LTD,266.76,PHY LTS 18-64,HOMECARE - SPOT,2103303743,1000079295
10.08.2021,ADULT SOCIAL CARE,THAMES HOMECARE SERVICE LTD,294.84,PHY LTS 18-64,HOMECARE - SPOT,2103303788,1000079295
10.08.2021,ADULT SOCIAL CARE,THAMES HOMECARE SERVICE LTD,308.88,PHY LTS 18-64,HOMECARE - SPOT,2103303787,1000079295
10.08.2021,ADULT SOCIAL CARE,THAMES HOMECARE SERVICE LTD,360.36,PHY LTS 18-64,HOMECARE - SPOT,2103303719,1000079295
10.08.2021,ADULT SOCIAL CARE,THAMES HOMECARE SERVICE LTD,374.4,PHY LTS 18-64,HOMECARE - SPOT,2103303742,1000079295
10.08.2021,ADULT SOCIAL CARE,THAMES HOMECARE SERVICE LTD,397.8,PHY LTS 18-64,HOMECARE - SPOT,2103303711,1000079295
10.08.2021,ADULT SOCIAL CARE,THAMES HOMECARE SERVICE LTD,589.68,PHY LTS 18-64,HOMECARE - SPOT,2103303745,1000079295
10.08.2021,ADULT SOCIAL CARE,THAMES HOMECARE SERVICE LTD,589.68,PHY LTS 18-64,HOMECARE - SPOT,2103303761,1000079295
10.08.2021,ADULT SOCIAL CARE,THAMES HOMECARE SERVICE LTD,655.2,PHY LTS 18-64,HOMECARE - SPOT,2103303731,1000079295
10.08.2021,ADULT SOCIAL CARE,THAMES HOMECARE SERVICE LTD,669.24,PHY LTS 18-64,HOMECARE - SPOT,2103303795,1000079295
10.08.2021,ADULT SOCIAL CARE,THAMES HOMECARE SERVICE LTD,673.92,PHY LTS 18-64,HOMECARE - SPOT,2103303756,1000079295
10.08.2021,ADULT SOCIAL CARE,THAMES HOMECARE SERVICE LTD,720.72,PHY LTS 18-64,HOMECARE - SPOT,2103303807,1000079295
10.08.2021,ADULT SOCIAL CARE,THAMES HOMECARE SERVICE LTD,332.28,PHY LTS 65+,HOMECARE - C&V,2103303805,1000079295
10.08.2021,ADULT SOCIAL CARE,THAMES HOMECARE SERVICE LTD,393.12,PHY LTS 65+,HOMECARE - C&V,2103303783,1000079295
10.08.2021,ADULT SOCIAL CARE,THAMES HOMECARE SERVICE LTD,262.08,PHY LTS 65+,HOMECARE - SPOT,2103303716,1000079295
10.08.2021,ADULT SOCIAL CARE,THAMES HOMECARE SERVICE LTD,271.44,PHY LTS 65+,HOMECARE - SPOT,2103303776,1000079295
10.08.2021,ADULT SOCIAL CARE,THAMES HOMECARE SERVICE LTD,280.8,PHY LTS 65+,HOMECARE - SPOT,2103303706,1000079295
10.08.2021,ADULT SOCIAL CARE,THAMES HOMECARE SERVICE LTD,280.8,PHY LTS 65+,HOMECARE - SPOT,2103303710,1000079295
10.08.2021,ADULT SOCIAL CARE,THAMES HOMECARE SERVICE LTD,280.8,PHY LTS 65+,HOMECARE - SPOT,2103303767,1000079295
10.08.2021,ADULT SOCIAL CARE,THAMES HOMECARE SERVICE LTD,294.84,PHY LTS 65+,HOMECARE - SPOT,2103303701,1000079295
10.08.2021,ADULT SOCIAL CARE,THAMES HOMECARE SERVICE LTD,294.84,PHY LTS 65+,HOMECARE - SPOT,2103303714,1000079295
10.08.2021,ADULT SOCIAL CARE,THAMES HOMECARE SERVICE LTD,294.84,PHY LTS 65+,HOMECARE - SPOT,2103303811,1000079295
10.08.2021,ADULT SOCIAL CARE,THAMES HOMECARE SERVICE LTD,313.56,PHY LTS 65+,HOMECARE - SPOT,2103303723,1000079295
10.08.2021,ADULT SOCIAL CARE,THAMES HOMECARE SERVICE LTD,332.28,PHY LTS 65+,HOMECARE - SPOT,2103303704,1000079295
10.08.2021,ADULT SOCIAL CARE,THAMES HOMECARE SERVICE LTD,332.28,PHY LTS 65+,HOMECARE - SPOT,2103303806,1000079295
10.08.2021,ADULT SOCIAL CARE,THAMES HOMECARE SERVICE LTD,346.32,PHY LTS 65+,HOMECARE - SPOT,2103303695,1000079295
10.08.2021,ADULT SOCIAL CARE,THAMES HOMECARE SERVICE LTD,355.68,PHY LTS 65+,HOMECARE - SPOT,2103303720,1000079295
10.08.2021,ADULT SOCIAL CARE,THAMES HOMECARE SERVICE LTD,360.36,PHY LTS 65+,HOMECARE - SPOT,2103303799,1000079295
10.08.2021,ADULT SOCIAL CARE,THAMES HOMECARE SERVICE LTD,383.76,PHY LTS 65+,HOMECARE - SPOT,2103303738,1000079295
10.08.2021,ADULT SOCIAL CARE,THAMES HOMECARE SERVICE LTD,421.2,PHY LTS 65+,HOMECARE - SPOT,2103303769,1000079295
10.08.2021,ADULT SOCIAL CARE,THAMES HOMECARE SERVICE LTD,524.16,PHY LTS 65+,HOMECARE - SPOT,2103303754,1000079295
10.08.2021,ADULT SOCIAL CARE,THAMES HOMECARE SERVICE LTD,524.16,PHY LTS 65+,HOMECARE - SPOT,2103303774,1000079295
10.08.2021,ADULT SOCIAL CARE,THAMES HOMECARE SERVICE LTD,589.68,PHY LTS 65+,HOMECARE - SPOT,2103303757,1000079295
10.08.2021,ADULT SOCIAL CARE,THAMES HOMECARE SERVICE LTD,589.68,PHY LTS 65+,HOMECARE - SPOT,2103303772,1000079295
10.08.2021,ADULT SOCIAL CARE,THAMES HOMECARE SERVICE LTD,617.76,PHY LTS 65+,HOMECARE - SPOT,2103303781,1000079295
10.08.2021,ADULT SOCIAL CARE,THAMES HOMECARE SERVICE LTD,627.12,PHY LTS 65+,HOMECARE - SPOT,2103303749,1000079295
10.08.2021,ADULT SOCIAL CARE,THAMES HOMECARE SERVICE LTD,627.12,PHY LTS 65+,HOMECARE - SPOT,2103303796,1000079295
10.08.2021,ADULT SOCIAL CARE,THAMES HOMECARE SERVICE LTD,655.2,PHY LTS 65+,HOMECARE - SPOT,2103303724,1000079295
10.08.2021,ADULT SOCIAL CARE,THAMES HOMECARE SERVICE LTD,659.88,PHY LTS 65+,HOMECARE - SPOT,2103303777,1000079295
10.08.2021,ADULT SOCIAL CARE,THAMES HOMECARE SERVICE LTD,664.56,PHY LTS 65+,HOMECARE - SPOT,2103303809,1000079295
10.08.2021,ADULT SOCIAL CARE,THAMES HOMECARE SERVICE LTD,683.28,PHY LTS 65+,HOMECARE - SPOT,2103303735,1000079295
10.08.2021,ADULT SOCIAL CARE,THAMES HOMECARE SERVICE LTD,692.64,PHY LTS 65+,HOMECARE - SPOT,2103303718,1000079295
10.08.2021,ADULT SOCIAL CARE,THAMES HOMECARE SERVICE LTD,692.64,PHY LTS 65+,HOMECARE - SPOT,2103303737,1000079295
10.08.2021,ADULT SOCIAL CARE,THAMES HOMECARE SERVICE LTD,720.72,PHY LTS 65+,HOMECARE - SPOT,2103303741,1000079295
10.08.2021,ADULT SOCIAL CARE,THAMES HOMECARE SERVICE LTD,786.24,PHY LTS 65+,HOMECARE - SPOT,2103303709,1000079295
10.08.2021,ADULT SOCIAL CARE,THAMES HOMECARE SERVICE LTD,786.24,PHY LTS 65+,HOMECARE - SPOT,2103303784,1000079295
10.08.2021,ADULT SOCIAL CARE,THAMES HOMECARE SERVICE LTD,804.96,PHY LTS 65+,HOMECARE - SPOT,2103303782,1000079295
10.08.2021,ADULT SOCIAL CARE,THAMES HOMECARE SERVICE LTD,851.76,PHY LTS 65+,HOMECARE - SPOT,2103303760,1000079295
10.08.2021,ADULT SOCIAL CARE,THAMES HOMECARE SERVICE LTD,865.8,PHY LTS 65+,HOMECARE - SPOT,2103303810,1000079295
10.08.2021,ADULT SOCIAL CARE,THAMES HOMECARE SERVICE LTD,936,PHY LTS 65+,HOMECARE - SPOT,2103303729,1000079295
10.08.2021,ADULT SOCIAL CARE,THAMES HOMECARE SERVICE LTD,"1,076.40",PHY LTS 65+,HOMECARE - SPOT,2103303765,1000079295
10.08.2021,ADULT SOCIAL CARE,THAMES HOMECARE SERVICE LTD,332.28,PHY STS 18-64,HOMECARE - IC,2103303730,1000079295
10.08.2021,ADULT SOCIAL CARE,THAMES HOMECARE SERVICE LTD,449.28,PHY STS 18-64,HOMECARE - IC,2103303747,1000079295
10.08.2021,ADULT SOCIAL CARE,THAMES HOMECARE SERVICE LTD,851.76,PHY STS 18-64,HOMECARE - IC,2103303786,1000079295
10.08.2021,ADULT SOCIAL CARE,LONDON CARE LTD,"2,555.49",PHY STS 65+,HOMECARE - IC,2103303812,1000003398
10.08.2021,ADULT SOCIAL CARE,THAMES HOMECARE SERVICE LTD,262.08,PHY STS 65+,HOMECARE - IC,2103303740,1000079295
10.08.2021,ADULT SOCIAL CARE,THAMES HOMECARE SERVICE LTD,294.84,PHY STS 65+,HOMECARE - IC,2103303727,1000079295
10.08.2021,ADULT SOCIAL CARE,THAMES HOMECARE SERVICE LTD,299.52,PHY STS 65+,HOMECARE - IC,2103303790,1000079295
10.08.2021,ADULT SOCIAL CARE,THAMES HOMECARE SERVICE LTD,533.52,PHY STS 65+,HOMECARE - IC,2103303732,1000079295
10.08.2021,ADULT SOCIAL CARE,THAMES HOMECARE SERVICE LTD,313.56,SEN LTS 65+,HOMECARE - SPOT,2103303808,1000079295
10.08.2021,ADULT SOCIAL CARE,MEDACS HOMECARE,311.4,SPECIALIST CARE,SECTION 17 PAYMENTS TO AGENCIES/CARERS,2103303824,11287415
10.08.2021,ADULT SOCIAL CARE,MEDACS HOMECARE,"1,141.80",SPECIALIST CARE,SECTION 17 PAYMENTS TO AGENCIES/CARERS,2103303826,11287415
10.08.2021,ADULT SOCIAL CARE,MEDACS HOMECARE,"1,211.00",SPECIALIST CARE,SECTION 17 PAYMENTS TO AGENCIES/CARERS,2103303825,11287415
10.08.2021,ASSET MANAGEMENT,ASHFORDS LLP,471.87,DISREPAIR,PAYMENTS FOR LEGAL SERVICES,2103303830,1000055865
10.08.2021,ASSET MANAGEMENT,ASHFORDS LLP,500,DISREPAIR,PAYMENTS FOR LEGAL SERVICES,2103303835,1000055865
10.08.2021,ASSET MANAGEMENT,ASHFORDS LLP,625,DISREPAIR,PAYMENTS FOR LEGAL SERVICES,2103303837,1000055865
10.08.2021,ASSET MANAGEMENT,ASHFORDS LLP,"1,666.67",DISREPAIR,PAYMENTS FOR LEGAL SERVICES,2103303836,1000055865
10.08.2021,ASSET MANAGEMENT,CHESHIRE ESTATE AND LEGAL LTD,"6,561.35",DISREPAIR,PAYMENTS FOR LEGAL SERVICES,2103303832,1000081908
10.08.2021,ASSET MANAGEMENT,BRYHILL TECHNICAL SERVICES,"12,947.53",DISREPAIR,PAYMENTS FOR LEGAL SERVICES,2103303689,3000001722
10.08.2021,ASSET MANAGEMENT,DEIGHTON PIERCE GLYNN LTD,"4,583.33",DISREPAIR,PAYMENTS FOR LEGAL SERVICES,2103303831,1000002120
10.08.2021,ASSET MANAGEMENT,ANTONY HODARI  SOLICITORS,"4,479.17",DISREPAIR,PAYMENTS FOR LEGAL SERVICES,2103303838,1000031040
10.08.2021,ASSET MANAGEMENT,MLA SOLICITORS,"1,250.00",DISREPAIR,PAYMENTS FOR LEGAL SERVICES,2103303834,1000079716
10.08.2021,ASSET MANAGEMENT,CHRIS & CO SOLICITORS,"2,731.32",DISREPAIR,PAYMENTS FOR LEGAL SERVICES,2103303841,1000080247
10.08.2021,ASSET MANAGEMENT,BROWN TURNER ROSS SOLICITORS,"2,916.67",DISREPAIR,PAYMENTS FOR LEGAL SERVICES,2103303833,1000082981
10.08.2021,ASSET MANAGEMENT,BOND TURNER  SOLICITORS,260,DISREPAIR,PAYMENTS FOR LEGAL SERVICES,2103303829,1000085362
10.08.2021,ASSET MANAGEMENT,BOND TURNER  SOLICITORS,583.33,DISREPAIR,PAYMENTS FOR LEGAL SERVICES,2103303828,1000085362
10.08.2021,ASSET MANAGEMENT,BOND TURNER  SOLICITORS,"3,000.00",DISREPAIR,PAYMENTS FOR LEGAL SERVICES,2103303840,1000085362
10.08.2021,ASSET MANAGEMENT,ENVISION  SOLICITORS LIMITED,"2,500.00",DISREPAIR,PAYMENTS FOR LEGAL SERVICES,2103303839,1000086191
10.08.2021,ASSET MANAGEMENT HGF,EXCEL EXECUTIVE LTD,"6,052.11",REPAIR AND MAINTENANCE SERVICES,CAB FARES,5902480703,1000080424
10.08.2021,CENTRAL FUNCTIONS,KENT COUNTY COUNCIL - LASER,-703.64,COMMERCIAL PROPERTIES,GAS,5902481258,1000012926
10.08.2021,CENTRAL FUNCTIONS,KENT COUNTY COUNCIL - LASER,571.11,COMMERCIAL PROPERTIES,GAS,5902481254,1000012926
10.08.2021,CENTRAL FUNCTIONS,KENT COUNTY COUNCIL - LASER,703.64,COMMERCIAL PROPERTIES,GAS,5902481250,1000012926
10.08.2021,CENTRAL FUNCTIONS,CLEANOVATION,615.99,COMMERCIAL PROPERTIES,PREMISES CLEANING,5902480091,1000000539
10.08.2021,CENTRAL FUNCTIONS,CAPITA BUSINESS SERVICES LTD,"25,617.00",EXCHEQUER RENTS,OTHER CONTRACTORS,5902480805,1000006291
10.08.2021,CHIEF EXECUTIVE,MACE LTD,"9,555.00",CAPITAL PS (REGEN),CONSTRUCTION FEES,5902481167,1000067959
10.08.2021,CHIEF EXECUTIVE,MACE LTD,"9,555.00",CAPITAL PS (REGEN),CONSTRUCTION FEES,5902481169,1000067959
10.08.2021,CHIEF EXECUTIVE,MACE LTD,"9,555.00",CAPITAL PS (REGEN),CONSTRUCTION FEES,5902481176,1000067959
10.08.2021,CHIEF EXECUTIVE,MACE LTD,"9,555.00",CAPITAL PS (REGEN),CONSTRUCTION FEES,5902481178,1000067959
10.08.2021,CHIEF EXECUTIVE,MACE LTD,"9,937.20",CAPITAL PS (REGEN),CONSTRUCTION FEES,5902481182,1000067959
10.08.2021,CHIEF EXECUTIVE,MORRIS + COMPANY LTD,"7,296.00",CAPITAL PS (REGEN),CONSTRUCTION FEES,5902480441,1000084228
10.08.2021,CHIEF EXECUTIVE,PURCELL ARCHITECTURE LTD,"14,625.00",CAPITAL PS (REGEN),CONSTRUCTION FEES - ARCHITECT,5902481196,1000082955
10.08.2021,CHIEF EXECUTIVE,HALE ARCHITECTURE LTD,"18,000.00",CAPITAL PS (REGEN),CONSTRUCTION FEES - QUANTITY SURVEYOR,5902480832,1000081139
10.08.2021,CHIEF EXECUTIVE,STANDAGE & CO LTD,"29,804.76",CAPITAL PS (REGEN),CONSTRUCTION MAIN CONTRACT -CERTIFICATED,5902480826,11223389
10.08.2021,CHILDREN AND ADULT,FEILDEN CLEGG BRADLEY STUDIOS LLP,"13,333.33",CAPITAL PS (EDUCATION),CONSTRUCTION FEES  - EXTERNAL,5902480117,1000067957
10.08.2021,CHILDREN AND FAMILIES,REDACTED PERSONAL DATA,450,ADOPTION SUPP FUND,PROFESSIONAL FEES,REDACTED,REDACTED
10.08.2021,CHILDREN AND FAMILIES,BANYA FAMILY PLACEMENT AGENCY LTD,"3,427.10",FRIENDS & FAMILY FOSTERING,EXTERNAL AGENCIES AND BODIES,2103303814,11328315
10.08.2021,CHILDREN AND FAMILIES,BANYA FAMILY PLACEMENT AGENCY LTD,"3,536.89",FRIENDS & FAMILY FOSTERING,EXTERNAL AGENCIES AND BODIES,2103303817,11328315
10.08.2021,CHILDREN AND FAMILIES,BANYA FAMILY PLACEMENT AGENCY LTD,"3,607.47",FRIENDS & FAMILY FOSTERING,EXTERNAL AGENCIES AND BODIES,2103303815,11328315
10.08.2021,CHILDREN AND FAMILIES,BANYA FAMILY PLACEMENT AGENCY LTD,"3,733.38",FRIENDS & FAMILY FOSTERING,EXTERNAL AGENCIES AND BODIES,2103303818,11328315
10.08.2021,CHILDREN AND FAMILIES,BANYA FAMILY PLACEMENT AGENCY LTD,"3,751.00",FRIENDS & FAMILY FOSTERING,EXTERNAL AGENCIES AND BODIES,2103303820,11328315
10.08.2021,CHILDREN AND FAMILIES,BANYA FAMILY PLACEMENT AGENCY LTD,"4,311.77",FRIENDS & FAMILY FOSTERING,EXTERNAL AGENCIES AND BODIES,2103303819,11328315
10.08.2021,CHILDREN AND FAMILIES,BANYA FAMILY PLACEMENT AGENCY LTD,"4,509.26",FRIENDS & FAMILY FOSTERING,EXTERNAL AGENCIES AND BODIES,2103303822,11328315
10.08.2021,CHILDREN AND FAMILIES,LIKA FAMILY FOSTERING,950,FRIENDS & FAMILY FOSTERING,EXTERNAL AGENCIES AND BODIES,2103303823,1000080099
10.08.2021,CHILDREN AND FAMILIES,LIKA FAMILY FOSTERING,"3,996.78",FRIENDS & FAMILY FOSTERING,EXTERNAL AGENCIES AND BODIES,2103303816,1000080099
10.08.2021,CHILDREN AND FAMILIES,LIKA FAMILY FOSTERING,"4,207.14",FRIENDS & FAMILY FOSTERING,EXTERNAL AGENCIES AND BODIES,2103303821,1000080099
10.08.2021,CHILDREN AND FAMILIES,CHANCE FURTHER SUPPORT CIC,657.2,PARENT ASSESSMENTS,RESIDENTIAL CARE,2103303813,1000085852
10.08.2021,COMMISSIONING & CENTRAL,ASSOCIATION OF DIRECTORS OF CHILDRENS SERVICES,300,STRATEGIC DIRECTOR OF C&AS,SUBSCRIPTIONS,5902481270,1000054939
10.08.2021,COMMUNITIES,TECHNIFORM GRAPHICS LTD,625,MAYORAL SUPPORT,FURNITURE PURCHASE & REPAIR,5902481263,1447223
10.08.2021,COMMUNITIES,SOUTHWARK NEWSPAPER LTD,500,MAYORAL SUPPORT,MARKETING & PUBLICITY SERVICES,5902481234,1556957
10.08.2021,COMMUNITIES,SOUTHWARK NEWSPAPER LTD,"1,000.00",MAYORAL SUPPORT,MARKETING & PUBLICITY SERVICES,5902481231,1556957
10.08.2021,COMMUNITIES,FLAMINGO CREATIVE,575,MAYORAL SUPPORT,PRINTING,5902481242,1000044711
10.08.2021,COMMUNITIES,POHWER,"4,183.20",NHS COMPLAINTS ADVOCACY,EXTERNAL AGENCIES AND BODIES,5902481233,1000070508
10.08.2021,COMMUNITIES,POHWER,"4,352.40",NHS COMPLAINTS ADVOCACY,EXTERNAL AGENCIES AND BODIES,5902481230,1000070508
10.08.2021,COMMUNITIES,S & G PROPERTIES,"3,994.66",NO RECOURSE TO PUBLIC FUNDS,ACCOMMODATION CHARGES,5902480901,1000005082
10.08.2021,COMMUNITIES,PURPLE PEBBLES(CHILD CARE) SERVICES,"2,002.60",NO RECOURSE TO PUBLIC FUNDS,ACCOMMODATION CHARGES,5902480695,1000070705
10.08.2021,COMMUNITIES,ALLPAY LTD,363.85,NO RECOURSE TO PUBLIC FUNDS,PROFESSIONAL FEES,5902480595,1000043001
10.08.2021,COMMUNITIES,FRIENDS OF LAVENDER POND,"1,400.00",NORTH EAST,GRANTS,5902481228,1000074631
10.08.2021,COMMUNITIES,BIG LOCAL WORKS,"12,950.00",NORTH EAST,GRANTS,5902481262,1000082263
10.08.2021,COMMUNITIES,UNITY MUSIC ARTS TEAM,"3,000.00",NORTH EAST,GRANTS,5902481257,1000084559
10.08.2021,COMMUNITIES,HM PRISON & PROBATION SERVICE,"6,051.25",SOUTHWARK ANTI VIOLENCE UNIT,PROFESSIONAL FEES,5902481248,1000083827
10.08.2021,CUSTOMER EXPERIENCE,PLANET TRAINING LIMITED,"1,925.00",CUSTOMER SUPPORT,TRAINING,5902480888,1000064733
10.08.2021,CUSTOMER EXPERIENCE HGF,SG PATH LTD,415.8,CORONER'S,PROFESSIONAL FEES,5902481274,1000077883
10.08.2021,CUSTOMER EXPERIENCE HGF,FIELD FISHER WATERHOUSE,"118,794.04",STREATHAM INQUEST,PROFESSIONAL FEES,5902480590,1000047449
10.08.2021,DSG,ALBION PRIMARY SCHOOL,"196,375.00",ALBION PRIMARY SCHOOL,SCHOOLS CAPITATION,5902480904,5001000000
10.08.2021,DSG,ALFRED SALTER PRIMARY SCHOOL,"180,492.00",ALFRED SALTER PRIMARY SCHOOL,SCHOOLS CAPITATION,5902480908,5001000005
10.08.2021,DSG,THE COMPLETE WORKS INDEPENDENT SCHOOL,826,ALTERNATIVE PROVISION,EXTERNAL AGENCIES AND BODIES,5902480853,1000033256
10.08.2021,DSG,THE COMPLETE WORKS INDEPENDENT SCHOOL,"1,652.00",ALTERNATIVE PROVISION,EXTERNAL AGENCIES AND BODIES,5902480851,1000033256
10.08.2021,DSG,THE COMPLETE WORKS INDEPENDENT SCHOOL,"2,006.00",ALTERNATIVE PROVISION,EXTERNAL AGENCIES AND BODIES,5902480849,1000033256
10.08.2021,DSG,THE COMPLETE WORKS INDEPENDENT SCHOOL,"2,242.00",ALTERNATIVE PROVISION,EXTERNAL AGENCIES AND BODIES,5902480850,1000033256
10.08.2021,DSG,ACADEMY21 LTD,"3,515.88",ALTERNATIVE PROVISION,EXTERNAL AGENCIES AND BODIES,5902480866,1000083781
10.08.2021,DSG,ANN BERNADT NURSERY SCHOOL,"23,800.00",ANN BERNADT (SUMNER),EARLY YEARS - 3 AND 4 YEAR OLDS,5902481131,5001000085
10.08.2021,DSG,ANN BERNADT NURSERY SCHOOL,"31,361.00",ANN BERNADT (SUMNER),EARLY YEARS - 3 AND 4 YEAR OLDS,5902481132,5001000085
10.08.2021,DSG,BELLENDEN PRIMARY SCHOOL,"109,467.00",BELLENDEN PRIMARY SCHOOL,SCHOOLS CAPITATION,5902480912,5001000007
10.08.2021,DSG,BEORMUND PRIMARY SCHOOL,"29,167.00",BEORMUND PRIMARY SCHOOL,HIGH NEEDS - TOP UP FUNDING,5902480916,5001000008
10.08.2021,DSG,BEORMUND PRIMARY SCHOOL,"55,271.00",BEORMUND PRIMARY SCHOOL,HIGH NEEDS - TOP UP FUNDING,5902480917,5001000008
10.08.2021,DSG,BESSEMER GRANGE PRIMARY SCHOOL,"251,272.00",BESSEMER GRANGE PRIMARY SCHOOL,SCHOOLS CAPITATION,5902480918,5001000009
10.08.2021,DSG,BOUCHER C OF E PRIMARY SCHOOL,"101,906.00",BOUTCHER CE PRIMARY SCHOOL,SCHOOLS CAPITATION,5902480924,5001000011
10.08.2021,DSG,BRUNSWICK PARK PRIMARY SCHOOL,"182,028.00",BRUNSWICK PARK PRIMARY SCHOOL,SCHOOLS CAPITATION,5902480926,5001000013
10.08.2021,DSG,CAMELOT PRIMARY SCHOOL,"167,063.00",CAMELOT PRIMARY SCHOOL,SCHOOLS CAPITATION,5902480932,5001000014
10.08.2021,DSG,CHARLOTTE  SHARMAN PRIMARY SCHOOL,"67,043.00",CHARLOTTE SHARMAN PRIMARY SCHOOL,SCHOOLS CAPITATION,5902480936,5001000016
10.08.2021,DSG,CHERRY GARDEN SCHOOL,"70,833.00",CHERRY GARDEN PRIMARY SCHOOL,HIGH NEEDS - TOP UP FUNDING,5902480948,5001000020
10.08.2021,DSG,CHERRY GARDEN SCHOOL,"159,948.00",CHERRY GARDEN PRIMARY SCHOOL,HIGH NEEDS - TOP UP FUNDING,5902480949,5001000020
10.08.2021,DSG,COBOURG PRIMARY SCHOOL,"127,714.00",COBOURG PRIMARY SCHOOL,SCHOOLS CAPITATION,5902480950,5001000021
10.08.2021,DSG,COMBER GROVE PRIMARY SCHOOL,"97,935.00",COMBER GROVE PRIMARY SCHOOL,SCHOOLS CAPITATION,5902480954,5001000022
10.08.2021,DSG,CRAMPTON PRIMARY SCHOOL,"97,198.00",CRAMPTON PRIMARY SCHOOL,SCHOOLS CAPITATION,5902480958,5001000023
10.08.2021,DSG,CRAWFORD PRIMARY SCHOOL,"216,913.00",CRAWFORD PRIMARY SCHOOL,SCHOOLS CAPITATION,5902480960,5001000024
10.08.2021,DSG,DOG KENNEL HILL PRIMARY SCHOOL,"118,602.00",DOG KENNEL HILL PRIMARY SCHOOL,SCHOOLS CAPITATION,5902480964,5001000025
10.08.2021,DSG,DULWICH VILLAGE CE INFANTS SCHOOL,"123,691.00",DULWICH VILLAGE CE INFANTS' SCHOOL,SCHOOLS CAPITATION,5902480968,5001000027
10.08.2021,DSG,DULWICH WOOD CHILDRENS CENTRE,"29,706.00",DULWICH WOOD NURSERY SCHOOL,EARLY YEARS - 3 AND 4 YEAR OLDS,5902481154,5001000099
10.08.2021,DSG,DULWICH WOOD CHILDRENS CENTRE,"32,014.00",DULWICH WOOD NURSERY SCHOOL,EARLY YEARS - 3 AND 4 YEAR OLDS,5902481155,5001000099
10.08.2021,DSG,DULWICH WOOD PRIMARY SCHOOL,"168,620.00",DULWICH WOOD PRIMARY SCHOOL,SCHOOLS CAPITATION,5902481016,5001000042
10.08.2021,DSG,ENGLISH MARTYRS RC PRIMARY SCHOOL,"147,035.00",ENGLISH MARTYRS RC PRIMARY SCHOOL,SCHOOLS CAPITATION,5902480978,5001000030
10.08.2021,DSG,EVELINA HOSPITAL SCHOOL,"60,259.00",EVELINA HOSPITAL SCHOOL,HIGH NEEDS - BASE FUNDING,5902480983,5001000031
10.08.2021,DSG,EVELINA HOSPITAL SCHOOL,"44,167.00",EVELINA HOSPITAL SCHOOL,HIGH NEEDS - TOP UP FUNDING,5902480982,5001000031
10.08.2021,DSG,FRIARS PRIMARY (FOUNDATION) SCHOOL,"91,435.00",FRIARS FOUNDATION PRIMARY SCHOOL,SCHOOLS CAPITATION,5902480988,5001000033
10.08.2021,DSG,GOODRICH PRIMARY SCHOOL,"243,047.00",GOODRICH PRIMARY SCHOOL,SCHOOLS CAPITATION,5902480970,5001000028
10.08.2021,DSG,GRANGE PRIMARY SCHOOL,"175,159.00",GRANGE PRIMARY SCHOOL,SCHOOLS CAPITATION,5902480974,5001000029
10.08.2021,DSG,HAYMERLE SCHOOL,"64,167.00",HAYMERLE PRIMARY SCHOOL,HIGH NEEDS - TOP UP FUNDING,5902481018,5001000045
10.08.2021,DSG,HAYMERLE SCHOOL,"130,175.00",HAYMERLE PRIMARY SCHOOL,HIGH NEEDS - TOP UP FUNDING,5902481019,5001000045
10.08.2021,DSG,HEBER PRIMARY SCHOOL,"162,845.00",HEBER PRIMARY SCHOOL,SCHOOLS CAPITATION,5902480992,5001000035
10.08.2021,DSG,HIGHSHORE SCHOOL,"116,667.00",HIGHSHORE,HIGH NEEDS - TOP UP FUNDING,5902481020,5001000046
10.08.2021,DSG,HIGHSHORE SCHOOL,"168,922.00",HIGHSHORE,HIGH NEEDS - TOP UP FUNDING,5902481021,5001000046
10.08.2021,DSG,HOLLYDALE PRIMARY SCHOOL,"93,603.00",HOLLYDALE PRIMARY SCHOOL,SCHOOLS CAPITATION,5902480996,5001000036
10.08.2021,DSG,ILDERTON PRIMARY SCHOOL,"149,517.00",ILDERTON PRIMARY SCHOOL,SCHOOLS CAPITATION,5902480998,5001000037
10.08.2021,DSG,IVYDALE PRIMARY SCHOOL,"202,195.00",IVYDALE PRIMARY SCHOOL,SCHOOLS CAPITATION,5902481002,5001000038
10.08.2021,DSG,JOHN RUSKIN PRIMARY SCHOOL,"205,187.00",JOHN RUSKIN PRIMARY SCHOOL,SCHOOLS CAPITATION,5902481006,5001000040
10.08.2021,DSG,KEYWORTH PRIMARY SCHOOL,"157,030.00",KEYWORTH PRIMARY SCHOOL,SCHOOLS CAPITATION,5902481012,5001000041
10.08.2021,DSG,KINTORE WAY CHILDRENS CENTRE,"31,020.00",KINTORE WAY CHILDRENS CENTRE,EARLY YEARS - 3 AND 4 YEAR OLDS,5902481022,5001000047
10.08.2021,DSG,KINTORE WAY CHILDRENS CENTRE,"56,466.00",KINTORE WAY CHILDRENS CENTRE,EARLY YEARS - 3 AND 4 YEAR OLDS,5902481023,5001000047
10.08.2021,DSG,THE GROVE CHILDRENS CENTRE,"10,271.00",LBS MAINSTREAM,SCHOOLS CAPITATION,5902481139,5001000090
10.08.2021,DSG,ALBION PRIMARY SCHOOL,"3,875.00",LBS MAINSTREAM,SCHOOLS CAPITATION,5902480907,5001000000
10.08.2021,DSG,ALFRED SALTER PRIMARY SCHOOL,"11,923.00",LBS MAINSTREAM,SCHOOLS CAPITATION,5902480911,5001000005
10.08.2021,DSG,BELLENDEN PRIMARY SCHOOL,"3,667.00",LBS MAINSTREAM,SCHOOLS CAPITATION,5902480915,5001000007
10.08.2021,DSG,BESSEMER GRANGE PRIMARY SCHOOL,"12,000.00",LBS MAINSTREAM,SCHOOLS CAPITATION,5902480921,5001000009
10.08.2021,DSG,BOUCHER C OF E PRIMARY SCHOOL,"4,726.00",LBS MAINSTREAM,SCHOOLS CAPITATION,5902480925,5001000011
10.08.2021,DSG,BRUNSWICK PARK PRIMARY SCHOOL,"10,759.00",LBS MAINSTREAM,SCHOOLS CAPITATION,5902480931,5001000013
10.08.2021,DSG,CAMELOT PRIMARY SCHOOL,"6,289.00",LBS MAINSTREAM,SCHOOLS CAPITATION,5902480935,5001000014
10.08.2021,DSG,CHARLOTTE  SHARMAN PRIMARY SCHOOL,"2,162.00",LBS MAINSTREAM,SCHOOLS CAPITATION,5902480939,5001000016
10.08.2021,DSG,ST JOSEPHS RC JUNIOR  SCHOOL,469,LBS MAINSTREAM,SCHOOLS CAPITATION,5902480941,5001000017
10.08.2021,DSG,ST JOSEPHS CATHOLIC INFANTS SCHOOL,"1,333.00",LBS MAINSTREAM,SCHOOLS CAPITATION,5902480943,5001000018
10.08.2021,DSG,ST JUDES CHURCH OF ENGLAND PRIMARY,"1,000.00",LBS MAINSTREAM,SCHOOLS CAPITATION,5902480947,5001000019
10.08.2021,DSG,COBOURG PRIMARY SCHOOL,"5,726.00",LBS MAINSTREAM,SCHOOLS CAPITATION,5902480953,5001000021
10.08.2021,DSG,COMBER GROVE PRIMARY SCHOOL,"4,000.00",LBS MAINSTREAM,SCHOOLS CAPITATION,5902480957,5001000022
10.08.2021,DSG,CRAMPTON PRIMARY SCHOOL,"2,651.00",LBS MAINSTREAM,SCHOOLS CAPITATION,5902480959,5001000023
10.08.2021,DSG,CRAWFORD PRIMARY SCHOOL,"6,580.00",LBS MAINSTREAM,SCHOOLS CAPITATION,5902480963,5001000024
10.08.2021,DSG,DOG KENNEL HILL PRIMARY SCHOOL,"5,772.00",LBS MAINSTREAM,SCHOOLS CAPITATION,5902480967,5001000025
10.08.2021,DSG,DULWICH VILLAGE CE INFANTS SCHOOL,"2,201.00",LBS MAINSTREAM,SCHOOLS CAPITATION,5902480969,5001000027
10.08.2021,DSG,GOODRICH PRIMARY SCHOOL,"2,485.00",LBS MAINSTREAM,SCHOOLS CAPITATION,5902480973,5001000028
10.08.2021,DSG,GRANGE PRIMARY SCHOOL,"6,393.00",LBS MAINSTREAM,SCHOOLS CAPITATION,5902480977,5001000029
10.08.2021,DSG,ENGLISH MARTYRS RC PRIMARY SCHOOL,"3,679.00",LBS MAINSTREAM,SCHOOLS CAPITATION,5902480981,5001000030
10.08.2021,DSG,PHOENIX PRIMARY SCHOOL,"10,973.00",LBS MAINSTREAM,SCHOOLS CAPITATION,5902480987,5001000032
10.08.2021,DSG,FRIARS PRIMARY (FOUNDATION) SCHOOL,"5,393.00",LBS MAINSTREAM,SCHOOLS CAPITATION,5902480991,5001000033
10.08.2021,DSG,HEBER PRIMARY SCHOOL,"6,060.00",LBS MAINSTREAM,SCHOOLS CAPITATION,5902480995,5001000035
10.08.2021,DSG,HOLLYDALE PRIMARY SCHOOL,"4,060.00",LBS MAINSTREAM,SCHOOLS CAPITATION,5902480997,5001000036
10.08.2021,DSG,ILDERTON PRIMARY SCHOOL,"6,350.00",LBS MAINSTREAM,SCHOOLS CAPITATION,5902481001,5001000037
10.08.2021,DSG,IVYDALE PRIMARY SCHOOL,"6,450.00",LBS MAINSTREAM,SCHOOLS CAPITATION,5902481005,5001000038
10.08.2021,DSG,JOHN RUSKIN PRIMARY SCHOOL,"17,393.00",LBS MAINSTREAM,SCHOOLS CAPITATION,5902481011,5001000040
10.08.2021,DSG,KEYWORTH PRIMARY SCHOOL,"6,667.00",LBS MAINSTREAM,SCHOOLS CAPITATION,5902481015,5001000041
10.08.2021,DSG,DULWICH WOOD PRIMARY SCHOOL,"4,726.00",LBS MAINSTREAM,SCHOOLS CAPITATION,5902481017,5001000042
10.08.2021,DSG,KINTORE WAY CHILDRENS CENTRE,"6,844.00",LBS MAINSTREAM,SCHOOLS CAPITATION,5902481024,5001000047
10.08.2021,DSG,MICHAEL FARADAY PRIMARY SCHOOL,"7,594.00",LBS MAINSTREAM,SCHOOLS CAPITATION,5902481028,5001000048
10.08.2021,DSG,NOTRE DAME RC GIRLS SCHOOL,"1,716.00",LBS MAINSTREAM,SCHOOLS CAPITATION,5902481032,5001000050
10.08.2021,DSG,OLIVER GOLDSMITH PRIMARY SCHOOL,"4,333.00",LBS MAINSTREAM,SCHOOLS CAPITATION,5902481036,5001000051
10.08.2021,DSG,PETER HILLS CE SCHOOL,"1,333.00",LBS MAINSTREAM,SCHOOLS CAPITATION,5902481040,5001000053
10.08.2021,DSG,PILGRIM'S WAY PRIMARY SCHOOL,"4,453.00",LBS MAINSTREAM,SCHOOLS CAPITATION,5902481044,5001000054
10.08.2021,DSG,RIVERSIDE PRIMARY SCHOOL,"8,631.00",LBS MAINSTREAM,SCHOOLS CAPITATION,5902481048,5001000056
10.08.2021,DSG,ROBERT BROWNING PRIMARY SCHOOL,"8,333.00",LBS MAINSTREAM,SCHOOLS CAPITATION,5902481052,5001000057
10.08.2021,DSG,ROTHERHITHE PRIMARY SCHOOL,"5,650.00",LBS MAINSTREAM,SCHOOLS CAPITATION,5902481056,5001000058
10.08.2021,DSG,RYE OAK PRIMARY SCHOOL,"6,000.00",LBS MAINSTREAM,SCHOOLS CAPITATION,5902481062,5001000059
10.08.2021,DSG,SNOWSFIELDS PRIMARY SCHOOL,"5,333.00",LBS MAINSTREAM,SCHOOLS CAPITATION,5902481068,5001000061
10.08.2021,DSG,SOUTHWARK PARK PRIMARY SCHOOL,"8,000.00",LBS MAINSTREAM,SCHOOLS CAPITATION,5902481072,5001000062
10.08.2021,DSG,ST ANTHONYS RC SCHOOL,"2,689.00",LBS MAINSTREAM,SCHOOLS CAPITATION,5902481076,5001000064
10.08.2021,DSG,ST FRANCESCA CABRINI PRIMARY SCHOOL,428,LBS MAINSTREAM,SCHOOLS CAPITATION,5902481080,5001000065
10.08.2021,DSG,ST FRANCIS'S RC PRIMARY SCHOOL,"3,107.00",LBS MAINSTREAM,SCHOOLS CAPITATION,5902481084,5001000067
10.08.2021,DSG,ST GEORGES RC SCHOOL,"2,667.00",LBS MAINSTREAM,SCHOOLS CAPITATION,5902481088,5001000068
10.08.2021,DSG,ST GEORGES CE SCHOOL,"7,060.00",LBS MAINSTREAM,SCHOOLS CAPITATION,5902481090,5001000069
10.08.2021,DSG,ST JAMES CE SCHOOL,"10,226.00",LBS MAINSTREAM,SCHOOLS CAPITATION,5902481094,5001000070
10.08.2021,DSG,ST JAMES THE GREAT RC SCHOOL,"6,425.00",LBS MAINSTREAM,SCHOOLS CAPITATION,5902481098,5001000071
10.08.2021,DSG,ST JOHNS & ST CLEMENTS CE SCHOOL,"1,702.00",LBS MAINSTREAM,SCHOOLS CAPITATION,5902481102,5001000073
10.08.2021,DSG,THE ST THOMAS THE APOSTLE COLLEGE,"10,792.00",LBS MAINSTREAM,SCHOOLS CAPITATION,5902481105,5001000074
10.08.2021,DSG,ST JOHNS RC PRIMARY SCHOOL,"6,119.00",LBS MAINSTREAM,SCHOOLS CAPITATION,5902481109,5001000075
10.08.2021,DSG,ST JOSEPHS CATHOLIC SCHOOL,"6,667.00",LBS MAINSTREAM,SCHOOLS CAPITATION,5902481113,5001000076
10.08.2021,DSG,ST JOSEPHS RC PRIMARY SCHOOL,"4,584.00",LBS MAINSTREAM,SCHOOLS CAPITATION,5902481117,5001000077
10.08.2021,DSG,ST JOSEPHS CATHOLIC PRIMARY SCHOOL,"1,667.00",LBS MAINSTREAM,SCHOOLS CAPITATION,5902481121,5001000078
10.08.2021,DSG,ST MARY MAGDALENE CE SCHOOL,613,LBS MAINSTREAM,SCHOOLS CAPITATION,5902481123,5001000080
10.08.2021,DSG,ST PETERS CE SCHOOL,"2,060.00",LBS MAINSTREAM,SCHOOLS CAPITATION,5902481127,5001000083
10.08.2021,DSG,ST SAVIOURS & ST OLAVES SCHOOL,"3,594.00",LBS MAINSTREAM,SCHOOLS CAPITATION,5902481130,5001000084
10.08.2021,DSG,CATHEDRAL SCHOOL OF ST SAVIOUR & MARY,"3,000.00",LBS MAINSTREAM,SCHOOLS CAPITATION,5902481136,5001000088
10.08.2021,DSG,TOWER BRIDGE PRIMARY SCHOOL,"8,000.00",LBS MAINSTREAM,SCHOOLS CAPITATION,5902481143,5001000095
10.08.2021,DSG,TOWNSEND PRIMARY SCHOOL,"3,512.00",LBS MAINSTREAM,SCHOOLS CAPITATION,5902481147,5001000096
10.08.2021,DSG,VICTORY SCHOOL,906,LBS MAINSTREAM,SCHOOLS CAPITATION,5902481153,5001000098
10.08.2021,DSG,BRUNSWICK PARK PRIMARY SCHOOL,"8,375.00",LBS RB / SEN UNIT,SCHOOLS CAPITATION,5902480929,5001000013
10.08.2021,DSG,BRUNSWICK PARK PRIMARY SCHOOL,"13,027.00",LBS RB / SEN UNIT,SCHOOLS CAPITATION,5902480930,5001000013
10.08.2021,DSG,JOHN RUSKIN PRIMARY SCHOOL,"10,902.00",LBS RB / SEN UNIT,SCHOOLS CAPITATION,5902481010,5001000040
10.08.2021,DSG,JOHN RUSKIN PRIMARY SCHOOL,"14,000.00",LBS RB / SEN UNIT,SCHOOLS CAPITATION,5902481009,5001000040
10.08.2021,DSG,RYE OAK PRIMARY SCHOOL,"7,417.00",LBS RB / SEN UNIT,SCHOOLS CAPITATION,5902481060,5001000059
10.08.2021,DSG,RYE OAK PRIMARY SCHOOL,"16,835.00",LBS RB / SEN UNIT,SCHOOLS CAPITATION,5902481061,5001000059
10.08.2021,DSG,SNOWSFIELDS PRIMARY SCHOOL,"7,333.00",LBS RB / SEN UNIT,SCHOOLS CAPITATION,5902481066,5001000061
10.08.2021,DSG,SNOWSFIELDS PRIMARY SCHOOL,"16,389.00",LBS RB / SEN UNIT,SCHOOLS CAPITATION,5902481067,5001000061
10.08.2021,DSG,ST JOHNS & ST CLEMENTS CE SCHOOL,"8,167.00",LBS RB / SEN UNIT,SCHOOLS CAPITATION,5902481100,5001000073
10.08.2021,DSG,ST JOHNS & ST CLEMENTS CE SCHOOL,"9,380.00",LBS RB / SEN UNIT,SCHOOLS CAPITATION,5902481101,5001000073
10.08.2021,DSG,BETHLEM & MAUDSLEY HOSPITAL SCHOOL,"53,333.00",MAUDSLEY & BETHLEM,HIGH NEEDS - TOP UP FUNDING,5902480922,5001000010
10.08.2021,DSG,BETHLEM & MAUDSLEY HOSPITAL SCHOOL,"106,754.00",MAUDSLEY & BETHLEM,HIGH NEEDS - TOP UP FUNDING,5902480923,5001000010
10.08.2021,DSG,MICHAEL FARADAY PRIMARY SCHOOL,"198,763.00",MICHAEL FARADAY PRIMARY SCHOOL,SCHOOLS CAPITATION,5902481025,5001000048
10.08.2021,DSG,NELL GWYNN NURSERY SCHOOL,"23,612.00",NELL GWYNN CHILDRENS CENTRE,EARLY YEARS - 3 AND 4 YEAR OLDS,5902481029,5001000049
10.08.2021,DSG,NELL GWYNN NURSERY SCHOOL,"35,383.00",NELL GWYNN CHILDRENS CENTRE,EARLY YEARS - 3 AND 4 YEAR OLDS,5902481030,5001000049
10.08.2021,DSG,NOTRE DAME RC GIRLS SCHOOL,"403,264.00",NOTRE DAME RC GIRLS' SCHOOL,SCHOOLS CAPITATION,5902481031,5001000050
10.08.2021,DSG,ALBION PRIMARY SCHOOL,"1,437.00",NURSERY ED GRANT 3 AND 4 YR OLDS,EARLY YEARS - 3 AND 4 YEAR OLDS,5902480905,5001000000
10.08.2021,DSG,ALBION PRIMARY SCHOOL,"17,670.00",NURSERY ED GRANT 3 AND 4 YR OLDS,EARLY YEARS - 3 AND 4 YEAR OLDS,5902480906,5001000000
10.08.2021,DSG,ALFRED SALTER PRIMARY SCHOOL,725,NURSERY ED GRANT 3 AND 4 YR OLDS,EARLY YEARS - 3 AND 4 YEAR OLDS,5902480909,5001000005
10.08.2021,DSG,ALFRED SALTER PRIMARY SCHOOL,"9,148.00",NURSERY ED GRANT 3 AND 4 YR OLDS,EARLY YEARS - 3 AND 4 YEAR OLDS,5902480910,5001000005
10.08.2021,DSG,BELLENDEN PRIMARY SCHOOL,633,NURSERY ED GRANT 3 AND 4 YR OLDS,EARLY YEARS - 3 AND 4 YEAR OLDS,5902480913,5001000007
10.08.2021,DSG,BELLENDEN PRIMARY SCHOOL,"10,456.00",NURSERY ED GRANT 3 AND 4 YR OLDS,EARLY YEARS - 3 AND 4 YEAR OLDS,5902480914,5001000007
